BODY NAME,SERVICE LABEL ,SERVICE CODE,EXPENDITURE CATEGORY,DATE,TRANSACTION NUMBER, NET AMOUNT ,SUPPLIER NAME,SUPPLIER ID
NEWARK AND SHERWOOD DISTRICT COUNCIL,CORPORATE,G998,CTAX PRECEPT TO COUNTY,14/04/2022,390403,"6,774,472.80",NOTTINGHAMSHIRE COUNTY COUNCIL,100393
NEWARK AND SHERWOOD DISTRICT COUNCIL,CORPORATE,G998,CTAX PRECEPT TO COUNTY,25/05/2022,393479,"6,774,472.80",NOTTINGHAMSHIRE COUNTY COUNCIL,100393
NEWARK AND SHERWOOD DISTRICT COUNCIL,CORPORATE,G998,CTAX PRECEPT TO COUNTY,28/06/2022,395892,"6,774,472.80",NOTTINGHAMSHIRE COUNTY COUNCIL,100393
NEWARK AND SHERWOOD DISTRICT COUNCIL,POLICY & FINANCE,G450,CTAX POST OFFICE,17/06/2022,395195,"1,657,212.00",POST OFFICE LIMITED,107552
NEWARK AND SHERWOOD DISTRICT COUNCIL,POLICY & FINANCE,G450,NDR NSDC LEVY PYMT TO COUNTY,14/04/2022,390403,"1,138,812.00",NOTTINGHAMSHIRE COUNTY COUNCIL,100393
NEWARK AND SHERWOOD DISTRICT COUNCIL,POLICY & FINANCE,G450,NDR NSDC LEVY PYMT TO COUNTY,25/05/2022,393479,"1,138,812.00",NOTTINGHAMSHIRE COUNTY COUNCIL,100393
NEWARK AND SHERWOOD DISTRICT COUNCIL,POLICY & FINANCE,G450,NDR NSDC LEVY PYMT TO COUNTY,28/06/2022,395892,"1,138,812.00",NOTTINGHAMSHIRE COUNTY COUNCIL,100393
NEWARK AND SHERWOOD DISTRICT COUNCIL,CAPITAL,G997,LAND AQUISITION,13/05/2022,392678,"1,082,150.00",SILLS & BETTERIDGE SOLICITORS,107559
NEWARK AND SHERWOOD DISTRICT COUNCIL,CORPORATE,G998,CTAX PRECEPT TO POLICE,14/04/2022,390404,"1,047,637.00",NOTTS POLICE AND CRIME COMMISSIONER,101784
NEWARK AND SHERWOOD DISTRICT COUNCIL,CORPORATE,G998,CTAX PRECEPT TO POLICE,25/05/2022,393480,"1,047,637.00",NOTTS POLICE AND CRIME COMMISSIONER,101784
NEWARK AND SHERWOOD DISTRICT COUNCIL,CORPORATE,G998,CTAX PRECEPT TO POLICE,28/06/2022,395893,"1,047,637.00",NOTTS POLICE AND CRIME COMMISSIONER,101784
NEWARK AND SHERWOOD DISTRICT COUNCIL,LEISURE & ENVIRONMENT,G440,ACTIVE4TODAY MANAGEMENT FEE,17/06/2022,395034,"731,645.00",ACTIVE4TODAY LTD,105072
NEWARK AND SHERWOOD DISTRICT COUNCIL,POLICY & FINANCE,G450,CTAX NSDC PARISH PRECEPT PYMTS,22/04/2022,390667,"527,270.00",NEWARK TOWN COUNCIL,100374
NEWARK AND SHERWOOD DISTRICT COUNCIL,CAPITAL,G997,LAND AQUISITION,11/05/2022,392251,"450,000.00",ELLIOT MATHER LLP,107495
NEWARK AND SHERWOOD DISTRICT COUNCIL,POLICY & FINANCE,G992,HRA CAPITAL RECEIPT,22/04/2022,390879,"443,000.08",DEPARTMENT LEVELLING UP HOUSING & COMMUNI,107488
NEWARK AND SHERWOOD DISTRICT COUNCIL,POLICY & FINANCE,G450,CIL LOCAL MONIES PAYMENT,27/05/2022,393673,"398,249.92",FERNWOOD PARISH COUNCIL,100164
NEWARK AND SHERWOOD DISTRICT COUNCIL,CORPORATE,G998,NDR IN-YEAR SHARE COUNTY FIRE,14/04/2022,390403,"348,667.00",NOTTINGHAMSHIRE COUNTY COUNCIL,100393
NEWARK AND SHERWOOD DISTRICT COUNCIL,CORPORATE,G998,NDR IN-YEAR SHARE COUNTY FIRE,25/05/2022,393479,"348,667.00",NOTTINGHAMSHIRE COUNTY COUNCIL,100393
NEWARK AND SHERWOOD DISTRICT COUNCIL,CORPORATE,G998,NDR IN-YEAR SHARE COUNTY FIRE,28/06/2022,395892,"348,667.00",NOTTINGHAMSHIRE COUNTY COUNCIL,100393
NEWARK AND SHERWOOD DISTRICT COUNCIL,CORPORATE,G998,CTAX PRECEPT TO FIRE,25/05/2022,393481,"348,471.00",NOTTINGHAMSHIRE FIRE AUTHORITY,101572
NEWARK AND SHERWOOD DISTRICT COUNCIL,CORPORATE,G998,CTAX PRECEPT TO FIRE,28/06/2022,395894,"348,471.00",NOTTINGHAMSHIRE FIRE AUTHORITY,101572
NEWARK AND SHERWOOD DISTRICT COUNCIL,CORPORATE,G998,CTAX PRECEPT TO FIRE,14/04/2022,390405,"348,468.00",NOTTINGHAMSHIRE FIRE AUTHORITY,101572
NEWARK AND SHERWOOD DISTRICT COUNCIL,POLICY & FINANCE,G450,DRAINAGE RATES,27/05/2022,393403,"333,073.00",TRENT VALLEY INTERNAL DRAINAGE BOARD,101631
NEWARK AND SHERWOOD DISTRICT COUNCIL,CAPITAL,G997,CONSTRUCTION,31/05/2022,394033,"331,809.51",NOTTINGHAMSHIRE YMCA,101730
NEWARK AND SHERWOOD DISTRICT COUNCIL,CAPITAL,G997,CONSTRUCTION,06/05/2022,391873,"331,399.46",LOVELL PARTNERSHIP LTD,101192
NEWARK AND SHERWOOD DISTRICT COUNCIL,POLICY & FINANCE,G450,CTAX NSDC PARISH PRECEPT PYMTS,22/04/2022,390668,"231,739.00",OLLERTON & BOUGHTON TOWN COUNCIL,100968
NEWARK AND SHERWOOD DISTRICT COUNCIL,POLICY & FINANCE,G992,SECTION 106 RECEIPTS LONG TERM,13/05/2022,392477,"189,216.00",TAYLOR WIMPEY PLC,107563
NEWARK AND SHERWOOD DISTRICT COUNCIL,CORPORATE,G998,CTAX PRECEPT SURP/DEF COUNTY,14/04/2022,390403,"172,084.90",NOTTINGHAMSHIRE COUNTY COUNCIL,100393
NEWARK AND SHERWOOD DISTRICT COUNCIL,CORPORATE,G998,CTAX PRECEPT SURP/DEF COUNTY,25/05/2022,393479,"172,084.90",NOTTINGHAMSHIRE COUNTY COUNCIL,100393
NEWARK AND SHERWOOD DISTRICT COUNCIL,CORPORATE,G998,CTAX PRECEPT SURP/DEF COUNTY,28/06/2022,395892,"172,084.90",NOTTINGHAMSHIRE COUNTY COUNCIL,100393
NEWARK AND SHERWOOD DISTRICT COUNCIL,POLICY & FINANCE,G450,CTAX NSDC PARISH PRECEPT PYMTS,22/04/2022,390621,"167,408.50",BALDERTON PARISH COUNCIL,100029
NEWARK AND SHERWOOD DISTRICT COUNCIL,HOMES & COMMUNITIES,G430,NEWARK TOWN COUNCIL,13/05/2022,392476,"166,440.00",NEWARK TOWN COUNCIL,100374
NEWARK AND SHERWOOD DISTRICT COUNCIL,POLICY & FINANCE,G450,S106 EDUCATION AND OTHER PYMT,06/05/2022,391951,"162,267.20",FARNSFIELD PARISH COUNCIL,100163
NEWARK AND SHERWOOD DISTRICT COUNCIL,CAPITAL,G997,CONSTRUCTION,22/04/2022,390822,"142,355.60",ROBERT WOODHEAD LTD,100461
NEWARK AND SHERWOOD DISTRICT COUNCIL,CAPITAL,G997,CONSTRUCTION,24/06/2022,395625,"140,680.75",ROBERT WOODHEAD LTD,100461
NEWARK AND SHERWOOD DISTRICT COUNCIL,CAPITAL,G997,CONSTRUCTION,09/06/2022,393022,"137,396.60",ROBERT WOODHEAD LTD,100461
NEWARK AND SHERWOOD DISTRICT COUNCIL,POLICY & FINANCE,G450,S106 EDUCATION AND OTHER PYMT,30/06/2022,396149,"130,127.87",NOTTINGHAMSHIRE COUNTY COUNCIL,100393
NEWARK AND SHERWOOD DISTRICT COUNCIL,POLICY & FINANCE,G450,CTAX NSDC PARISH PRECEPT PYMTS,22/04/2022,390669,"128,014.00",SOUTHWELL TOWN COUNCIL,100515
NEWARK AND SHERWOOD DISTRICT COUNCIL,CAPITAL,G997,CONSTRUCTION,24/06/2022,395444,"107,761.16",ROBERT WOODHEAD LTD,100461
NEWARK AND SHERWOOD DISTRICT COUNCIL,CAPITAL,G997,CONSTRUCTION,10/06/2022,394370,"104,030.71",NOVUS PROPERTY SOLUTIONS LTD,107362
NEWARK AND SHERWOOD DISTRICT COUNCIL,POLICY & FINANCE,G992,SUSPENSE - GENERAL,25/04/2022,391110,"99,736.01",REDACTED PERSONAL DATA,107519
NEWARK AND SHERWOOD DISTRICT COUNCIL,POLICY & FINANCE,G450,CTAX NSDC PARISH PRECEPT PYMTS,22/04/2022,390631,"83,100.00",CLIPSTONE PARISH COUNCIL,100097
NEWARK AND SHERWOOD DISTRICT COUNCIL,POLICY & FINANCE,G450,CTAX NSDC PARISH PRECEPT PYMTS,22/04/2022,390636,"79,500.00",EDWINSTOWE PARISH COUNCIL,100143
NEWARK AND SHERWOOD DISTRICT COUNCIL,LEISURE & ENVIRONMENT,G440,PAYMENTS TO NOTTS COUNTY CNCL,06/05/2022,391773,"78,536.66",NOTTINGHAMSHIRE COUNTY COUNCIL,100393
NEWARK AND SHERWOOD DISTRICT COUNCIL,POLICY & FINANCE,G450,RENT,28/05/2022,393972,"77,500.00",KNIGHT FRANK LLP,107425
NEWARK AND SHERWOOD DISTRICT COUNCIL,POLICY & FINANCE,G450,REPAIRS AND MAINTENANCE,30/05/2022,393975,"77,500.00",KNIGHT FRANK LLP,107425
NEWARK AND SHERWOOD DISTRICT COUNCIL,ECONOMIC DEVELOPMENT,G420,CONTRACTUAL SERVICES,10/06/2022,394317,"73,636.42",SOUTH KESTEVEN DISTRICT COUNCIL,103477
NEWARK AND SHERWOOD DISTRICT COUNCIL,CAPITAL,G997,CONSTRUCTION,17/06/2022,394640,"70,639.75",MATTHEWS & TANNERT LTD,101312
NEWARK AND SHERWOOD DISTRICT COUNCIL,CAPITAL,G997,CONSTRUCTION,24/06/2022,395321,"66,688.81",HARMONY FIRE LTD,107179
NEWARK AND SHERWOOD DISTRICT COUNCIL,CAPITAL,G997,CONSTRUCTION,14/04/2022,390340,"60,256.39",MATTHEWS & TANNERT LTD,101312
NEWARK AND SHERWOOD DISTRICT COUNCIL,CAPITAL,G997,CONSTRUCTION,08/04/2022,389896,"59,363.73",BDA SURVEYING LTD,106961
NEWARK AND SHERWOOD DISTRICT COUNCIL,CAPITAL,G997,CONSTRUCTION,22/04/2022,390868,"54,134.96",LOVELL PARTNERSHIP LTD,101192
NEWARK AND SHERWOOD DISTRICT COUNCIL,CAPITAL,G997,CONSTRUCTION,13/05/2022,392300,"49,039.60",BDA SURVEYING LTD,106961
NEWARK AND SHERWOOD DISTRICT COUNCIL,CAPITAL,G997,CONSTRUCTION,27/05/2022,393639,"47,460.25",NOVUS PROPERTY SOLUTIONS LTD,107362
NEWARK AND SHERWOOD DISTRICT COUNCIL,CAPITAL,G997,CONSTRUCTION,17/06/2022,394639,"47,024.67",MATTHEWS & TANNERT LTD,101312
NEWARK AND SHERWOOD DISTRICT COUNCIL,LEISURE & ENVIRONMENT,G440,PAYMENTS TO NOTTS COUNTY CNCL,17/06/2022,394881,"45,562.56",NOTTINGHAMSHIRE COUNTY COUNCIL,100393
NEWARK AND SHERWOOD DISTRICT COUNCIL,CAPITAL,G997,CONSTRUCTION,27/05/2022,393563,"44,843.62",MATTHEWS & TANNERT LTD,101312
NEWARK AND SHERWOOD DISTRICT COUNCIL,CAPITAL,G997,CONSTRUCTION,27/05/2022,393196,"44,766.87",ROBERT WOODHEAD LTD,100461
NEWARK AND SHERWOOD DISTRICT COUNCIL,CAPITAL,G997,CONSTRUCTION,29/04/2022,390828,"44,627.43",ROBERT WOODHEAD LTD,100461
NEWARK AND SHERWOOD DISTRICT COUNCIL,POLICY & FINANCE,G450,CTAX NSDC PARISH PRECEPT PYMTS,22/04/2022,390640,"42,686.00",FARNSFIELD PARISH COUNCIL,100163
NEWARK AND SHERWOOD DISTRICT COUNCIL,POLICY & FINANCE,G450,CTAX NSDC PARISH PRECEPT PYMTS,22/04/2022,390665,"40,474.50",FERNWOOD PARISH COUNCIL,100164
NEWARK AND SHERWOOD DISTRICT COUNCIL,POLICY & FINANCE,G450,CTAX NSDC PARISH PRECEPT PYMTS,22/04/2022,390649,"39,283.00",LOWDHAM PARISH COUNCIL,100288
NEWARK AND SHERWOOD DISTRICT COUNCIL,POLICY & FINANCE,G450,CTAX NSDC PARISH PRECEPT PYMTS,22/04/2022,390627,"39,231.50",BLIDWORTH PARISH COUNCIL,100045
NEWARK AND SHERWOOD DISTRICT COUNCIL,ECONOMIC DEVELOPMENT,G420,PROFESSIONAL SERVICES,08/04/2022,389710,"38,890.00",HATCH ASSOCIATES LIMITED,106907
NEWARK AND SHERWOOD DISTRICT COUNCIL,CORPORATE,G998,NDR IN-YEAR SHARE COUNTY FIRE,14/04/2022,390405,"38,741.00",NOTTINGHAMSHIRE FIRE AUTHORITY,101572
NEWARK AND SHERWOOD DISTRICT COUNCIL,CORPORATE,G998,NDR IN-YEAR SHARE COUNTY FIRE,25/05/2022,393481,"38,741.00",NOTTINGHAMSHIRE FIRE AUTHORITY,101572
NEWARK AND SHERWOOD DISTRICT COUNCIL,CORPORATE,G998,NDR IN-YEAR SHARE COUNTY FIRE,28/06/2022,395894,"38,741.00",NOTTINGHAMSHIRE FIRE AUTHORITY,101572
NEWARK AND SHERWOOD DISTRICT COUNCIL,CAPITAL,G997,CONSTRUCTION,17/06/2022,394597,"38,715.45",BDA SURVEYING LTD,106961
NEWARK AND SHERWOOD DISTRICT COUNCIL,POLICY & FINANCE,G450,COMPUTER SOFTWARE,13/05/2022,390800,"37,863.27",PAY360 LIMITED,107548
NEWARK AND SHERWOOD DISTRICT COUNCIL,POLICY & FINANCE,G450,CTAX NSDC PARISH PRECEPT PYMTS,22/04/2022,390625,"37,500.00",BILSTHORPE PARISH COUNCIL,100042
NEWARK AND SHERWOOD DISTRICT COUNCIL,CAPITAL,G997,CONSTRUCTION,24/06/2022,395506,"37,133.40",LINDUM GROUP LTD,100651
NEWARK AND SHERWOOD DISTRICT COUNCIL,CAPITAL,G997,CONSTRUCTION,17/06/2022,394913,"35,878.97",LINDUM GROUP LTD,100651
NEWARK AND SHERWOOD DISTRICT COUNCIL,CAPITAL,G997,VEHICLE AQUISITION,17/06/2022,395001,"32,462.50",PERRYS MOTOR SALES LTD,107134
NEWARK AND SHERWOOD DISTRICT COUNCIL,CAPITAL,G997,VEHICLE AQUISITION,17/06/2022,395002,"32,462.50",PERRYS MOTOR SALES LTD,107134
NEWARK AND SHERWOOD DISTRICT COUNCIL,POLICY & FINANCE,G450,PROFESSIONAL SERVICES,08/04/2022,389955,"32,286.75",LINCOLNSHIRE COUNTY COUNCIL,101652
NEWARK AND SHERWOOD DISTRICT COUNCIL,POLICY & FINANCE,G450,CTAX NSDC PARISH PRECEPT PYMTS,22/04/2022,390653,"32,187.50",RAINWORTH PARISH COUNCIL,100444
NEWARK AND SHERWOOD DISTRICT COUNCIL,CAPITAL,G997,LAND AQUISITION,23/05/2022,393379,"32,000.00",HM REVENUE AND CUSTOMS,105608
NEWARK AND SHERWOOD DISTRICT COUNCIL,POLICY & FINANCE,G450,COMPUTER SOFTWARE MAINTENANCE,27/05/2022,393353,"31,490.00",MERITEC LTD,105609
NEWARK AND SHERWOOD DISTRICT COUNCIL,POLICY & FINANCE,G450,HYBRID MAIL,24/06/2022,395269,"31,065.53",NOTTINGHAMSHIRE COUNTY COUNCIL,100393
NEWARK AND SHERWOOD DISTRICT COUNCIL,ECONOMIC DEVELOPMENT,G420,PROFESSIONAL SERVICES,13/05/2022,392267,"29,805.00",CORNERSTONE BARRISTERS,105521
NEWARK AND SHERWOOD DISTRICT COUNCIL,CAPITAL,G997,CONSTRUCTION,13/05/2022,392506,"28,938.42",BELL GROUP UK,100039
NEWARK AND SHERWOOD DISTRICT COUNCIL,POLICY & FINANCE,G450,CTAX NSDC PARISH PRECEPT PYMTS,22/04/2022,390639,"28,569.00",FARNDON PARISH COUNCIL,100162
NEWARK AND SHERWOOD DISTRICT COUNCIL,CAPITAL,G997,CONSTRUCTION,30/06/2022,396160,"27,865.32",PENNINGTON CHOICES LIMITED,106399
NEWARK AND SHERWOOD DISTRICT COUNCIL,ECONOMIC DEVELOPMENT,G420,AGENCY REPAYMENTS,20/05/2022,392817,"27,854.50",REDACTED PERSONAL DATA,101254
NEWARK AND SHERWOOD DISTRICT COUNCIL,CAPITAL,G997,CONSTRUCTION,24/06/2022,395322,"27,094.46",HARMONY FIRE LTD,107179
NEWARK AND SHERWOOD DISTRICT COUNCIL,CORPORATE,G998,CTAX PRECEPT SURP/DEF POLICE,14/04/2022,390404,"26,732.00",NOTTS POLICE AND CRIME COMMISSIONER,101784
NEWARK AND SHERWOOD DISTRICT COUNCIL,CORPORATE,G998,CTAX PRECEPT SURP/DEF POLICE,25/05/2022,393480,"26,732.00",NOTTS POLICE AND CRIME COMMISSIONER,101784
NEWARK AND SHERWOOD DISTRICT COUNCIL,CORPORATE,G998,CTAX PRECEPT SURP/DEF POLICE,28/06/2022,395893,"26,732.00",NOTTS POLICE AND CRIME COMMISSIONER,101784
NEWARK AND SHERWOOD DISTRICT COUNCIL,CAPITAL,G997,CONSTRUCTION,27/05/2022,393021,"25,111.85",ROBERT WOODHEAD LTD,100461
NEWARK AND SHERWOOD DISTRICT COUNCIL,CAPITAL,G997,CONSTRUCTION,29/04/2022,391365,"24,797.50",HARMONY FIRE LTD,107179
NEWARK AND SHERWOOD DISTRICT COUNCIL,LEISURE & ENVIRONMENT,G440,PETROL AND DIESEL,24/06/2022,395580,"24,193.61",PACE FUELCARE - CERTAS ENERGY UK LTD,106340
NEWARK AND SHERWOOD DISTRICT COUNCIL,ECONOMIC DEVELOPMENT,G420,RENT,13/05/2022,392472,"24,191.63",NOTTINGHAMSHIRE COUNTY COUNCIL,100393
NEWARK AND SHERWOOD DISTRICT COUNCIL,CAPITAL,G997,CONSTRUCTION,10/06/2022,393632,"23,644.62",MOORES FURNITURE GROUP LTD,107264
NEWARK AND SHERWOOD DISTRICT COUNCIL,CAPITAL,G997,VEHICLE AQUISITION,22/04/2022,390866,"23,538.07",PERRYS EAST MIDLANDS LTD,106767
NEWARK AND SHERWOOD DISTRICT COUNCIL,POLICY & FINANCE,G450,CTAX NSDC PARISH PRECEPT PYMTS,22/04/2022,390633,"23,297.00",COLLINGHAM PARISH COUNCIL,100104
NEWARK AND SHERWOOD DISTRICT COUNCIL,POLICY & FINANCE,G450,GAIN/LOSS ON DISPOSAL (I&E),28/04/2022,391286,"23,000.00",RHH LIMITED,106577
NEWARK AND SHERWOOD DISTRICT COUNCIL,HOUSING REVENUE ACCOUNT,G410,MATERIALS,28/05/2022,393964,"22,860.06",QUANTUM BILLING - INPROVA GROUP,106944
NEWARK AND SHERWOOD DISTRICT COUNCIL,CAPITAL,G997,CONSTRUCTION,30/06/2022,395256,"22,843.38",LINDUM GROUP LTD,100651
NEWARK AND SHERWOOD DISTRICT COUNCIL,LEISURE & ENVIRONMENT,G440,PETROL AND DIESEL,17/06/2022,394708,"22,405.49",PACE FUELCARE - CERTAS ENERGY UK LTD,106340
NEWARK AND SHERWOOD DISTRICT COUNCIL,CAPITAL,G997,CONSTRUCTION,17/06/2022,394974,"22,285.71",MATTHEWS & TANNERT LTD,101312
NEWARK AND SHERWOOD DISTRICT COUNCIL,HOUSING REVENUE ACCOUNT,G410,PROFESSIONAL SERVICES,27/05/2022,393721,"21,800.00",WILKS HEAD AND EVE LLP,106230
NEWARK AND SHERWOOD DISTRICT COUNCIL,LEISURE & ENVIRONMENT,G440,PETROL AND DIESEL,13/05/2022,392295,"21,674.76",PACE FUELCARE - CERTAS ENERGY UK LTD,106340
NEWARK AND SHERWOOD DISTRICT COUNCIL,HOUSING REVENUE ACCOUNT,G410,CONTRACTUAL SERVICES,06/05/2022,391869,"21,270.83",ROBERT WOODHEAD LTD,100461
NEWARK AND SHERWOOD DISTRICT COUNCIL,POLICY & FINANCE,G450,CTAX NSDC PARISH PRECEPT PYMTS,22/04/2022,390661,"21,250.00",WALESBY PARISH COUNCIL,100594
NEWARK AND SHERWOOD DISTRICT COUNCIL,LEISURE & ENVIRONMENT,G440,PETROL AND DIESEL,10/06/2022,393991,"20,930.10",PACE FUELCARE - CERTAS ENERGY UK LTD,106340
NEWARK AND SHERWOOD DISTRICT COUNCIL,LEISURE & ENVIRONMENT,G440,PETROL AND DIESEL,06/05/2022,391759,"20,906.79",PACE FUELCARE - CERTAS ENERGY UK LTD,106340
NEWARK AND SHERWOOD DISTRICT COUNCIL,ECONOMIC DEVELOPMENT,G420,PUBLIC REALMS STUDY,14/04/2022,390322,"20,602.88",LEONARD DESIGN LIMITED,106569
NEWARK AND SHERWOOD DISTRICT COUNCIL,LEISURE & ENVIRONMENT,G440,PETROL AND DIESEL,14/04/2022,390360,"20,001.00",PACE FUELCARE - CERTAS ENERGY UK LTD,106340
NEWARK AND SHERWOOD DISTRICT COUNCIL,CAPITAL,G997,CONSTRUCTION,10/06/2022,394368,"18,792.89",ELITE CONSTRUCTION NR LTD,105936
NEWARK AND SHERWOOD DISTRICT COUNCIL,HOUSING REVENUE ACCOUNT,G410,ELECTRICITY,30/06/2022,395982,"18,546.07",SCOTTISH & SOUTHERN ENERGY GROUP,103454
NEWARK AND SHERWOOD DISTRICT COUNCIL,ECONOMIC DEVELOPMENT,G420,PROFESSIONAL SERVICES,17/06/2022,394674,"18,000.00",QUOD LIMITED,107460
NEWARK AND SHERWOOD DISTRICT COUNCIL,POLICY & FINANCE,G450,S106 EDUCATION AND OTHER PYMT,17/06/2022,394997,"17,973.44",NOTTINGHAMSHIRE COUNTY COUNCIL,100393
NEWARK AND SHERWOOD DISTRICT COUNCIL,CAPITAL,G997,CONSTRUCTION,20/05/2022,392851,"17,957.95",NEIL SHACKLOCK PLUMBING AND HEATING  LTD,104679
NEWARK AND SHERWOOD DISTRICT COUNCIL,POLICY & FINANCE,G450,CTAX POST OFFICE,20/06/2022,395251,"17,909.00",POST OFFICE LIMITED,107552
NEWARK AND SHERWOOD DISTRICT COUNCIL,POLICY & FINANCE,G450,PUBLICATIONS,08/04/2022,389886,"17,522.64",THOMSON REUTERS,103561
NEWARK AND SHERWOOD DISTRICT COUNCIL,HOMES & COMMUNITIES,G430,GOV GRANT EXPENDITURE,06/05/2022,391823,"17,500.00",SHERWOOD & NEWARK CITIZENS ADVICE BUREAU,102100
NEWARK AND SHERWOOD DISTRICT COUNCIL,CAPITAL,G997,CONSTRUCTION,20/05/2022,393070,"17,411.13",NEIL SHACKLOCK PLUMBING AND HEATING  LTD,104679
NEWARK AND SHERWOOD DISTRICT COUNCIL,HOUSING REVENUE ACCOUNT,G410,CONTRACTUAL SERVICES,14/04/2022,390398,"16,551.75",ROBERT WOODHEAD LTD,100461
NEWARK AND SHERWOOD DISTRICT COUNCIL,CAPITAL,G997,CONSTRUCTION,10/06/2022,394374,"16,284.15",NEIL SHACKLOCK PLUMBING AND HEATING  LTD,104679
NEWARK AND SHERWOOD DISTRICT COUNCIL,HOUSING REVENUE ACCOUNT,G410,CONTRACTUAL SERVICES,30/06/2022,394877,"15,870.05",AB ENVIRONMENT SOLUTIONS LTD,101797
NEWARK AND SHERWOOD DISTRICT COUNCIL,HOUSING REVENUE ACCOUNT,G410,PROFESSIONAL SERVICES,23/06/2022,395556,"15,840.00",NATURAL HR LTD,107540
NEWARK AND SHERWOOD DISTRICT COUNCIL,ECONOMIC DEVELOPMENT,G420,AGENCY REPAYMENTS,17/06/2022,394273,"15,772.50",STRICTLY THEATRE COMPANY,106142
NEWARK AND SHERWOOD DISTRICT COUNCIL,ECONOMIC DEVELOPMENT,G420,EQUIPMENT REPAIRS & RENEWALS,13/05/2022,392298,"15,650.00",PARTIC MOTOR SPARES LTD,100421
NEWARK AND SHERWOOD DISTRICT COUNCIL,POLICY & FINANCE,G450,COMPUTER SOFTWARE MAINTENANCE,20/05/2022,393028,"15,433.41",VIRGIN MEDIA BUSINESS,100934
NEWARK AND SHERWOOD DISTRICT COUNCIL,ECONOMIC DEVELOPMENT,G420,AGENCY REPAYMENTS,17/06/2022,394715,"15,153.75",ROCK THE PARK (WREXHAM) LTD,107558
NEWARK AND SHERWOOD DISTRICT COUNCIL,CAPITAL,G997,DISABLED FACILITIES,31/05/2022,394012,"15,000.00",VAUGHANDALE CONSTRUCTION LTD,100590
NEWARK AND SHERWOOD DISTRICT COUNCIL,LEISURE & ENVIRONMENT,G440,PETROL AND DIESEL,08/04/2022,389678,"14,525.45",PACE FUELCARE - CERTAS ENERGY UK LTD,106340
NEWARK AND SHERWOOD DISTRICT COUNCIL,ECONOMIC DEVELOPMENT,G420,AGENCY REPAYMENTS,31/05/2022,394122,"14,444.00",SOUTHWELL DANCE SCHOOL,101279
NEWARK AND SHERWOOD DISTRICT COUNCIL,LEISURE & ENVIRONMENT,G440,PETROL AND DIESEL,20/05/2022,392779,"14,414.43",PACE FUELCARE - CERTAS ENERGY UK LTD,106340
NEWARK AND SHERWOOD DISTRICT COUNCIL,CAPITAL,G997,CONSTRUCTION,10/06/2022,394224,"14,022.95",BELL GROUP UK,100039
NEWARK AND SHERWOOD DISTRICT COUNCIL,CAPITAL,G997,CONSTRUCTION,24/06/2022,391965,"13,870.64",RILMAC INSULATION LTD,107557
NEWARK AND SHERWOOD DISTRICT COUNCIL,POLICY & FINANCE,G450,CTAX NSDC PARISH PRECEPT PYMTS,22/04/2022,390637,"13,500.00",ELSTON PARISH COUNCIL,100149
NEWARK AND SHERWOOD DISTRICT COUNCIL,POLICY & FINANCE,G450,CTAX NSDC PARISH PRECEPT PYMTS,22/04/2022,390657,"13,346.00",SUTTON-ON-TRENT PARISH COUNCIL,100528
NEWARK AND SHERWOOD DISTRICT COUNCIL,LEISURE & ENVIRONMENT,G440,REFUSE BIN PURCHASES,27/05/2022,393357,"13,272.00",ONE51 ES PLASTICS (UK) LTD T/A MGB,105761
NEWARK AND SHERWOOD DISTRICT COUNCIL,CAPITAL,G997,DISABLED FACILITIES,30/06/2022,396112,"13,210.00",TRENT VALLEY PLUMBING & BUILDING LTD,105751
NEWARK AND SHERWOOD DISTRICT COUNCIL,HOUSING REVENUE ACCOUNT,G410,APPLIANCE SERVICING,24/06/2022,395621,"13,200.69",AARON SERVICES,107225
NEWARK AND SHERWOOD DISTRICT COUNCIL,POLICY & FINANCE,G450,ELECTRICITY,27/05/2022,393499,"12,942.41",EDF ENERGY 1 LTD,101140
NEWARK AND SHERWOOD DISTRICT COUNCIL,POLICY & FINANCE,G450,CIL LOCAL MONIES PAYMENT,27/05/2022,393675,"12,755.79",NEWARK TOWN COUNCIL,100374
NEWARK AND SHERWOOD DISTRICT COUNCIL,POLICY & FINANCE,G450,COMPUTER SOFTWARE,14/04/2022,390324,"12,731.70",AXESS SYSTEMS LTD,101850
NEWARK AND SHERWOOD DISTRICT COUNCIL,HOUSING REVENUE ACCOUNT,G410,CONTRACTUAL SERVICES,17/06/2022,394876,"12,540.30",AB ENVIRONMENT SOLUTIONS LTD,101797
NEWARK AND SHERWOOD DISTRICT COUNCIL,CAPITAL,G997,CONSTRUCTION,06/05/2022,391889,"12,460.04",MOORES FURNITURE GROUP LTD,107264
NEWARK AND SHERWOOD DISTRICT COUNCIL,POLICY & FINANCE,G450,HYBRID MAIL,14/04/2022,389899,"12,456.20",NOTTINGHAMSHIRE COUNTY COUNCIL,100393
NEWARK AND SHERWOOD DISTRICT COUNCIL,CAPITAL,G997,CONSTRUCTION,29/04/2022,391399,"12,048.88",HARMONY FIRE LTD,107179
NEWARK AND SHERWOOD DISTRICT COUNCIL,CAPITAL,G997,LAND AQUISITION,18/05/2022,392803,"12,000.00",HM REVENUE AND CUSTOMS,105608
NEWARK AND SHERWOOD DISTRICT COUNCIL,HOUSING REVENUE ACCOUNT,G410,MATERIALS,28/04/2022,391282,"11,874.77",QUANTUM BILLING - INPROVA GROUP,106944
NEWARK AND SHERWOOD DISTRICT COUNCIL,HOUSING REVENUE ACCOUNT,G410,ELECTRICITY,28/05/2022,393965,"11,622.62",SCOTTISH & SOUTHERN ENERGY GROUP,103454
NEWARK AND SHERWOOD DISTRICT COUNCIL,HOUSING REVENUE ACCOUNT,G410,APPLIANCE SERVICING,22/04/2022,390600,"11,613.25",AARON SERVICES,107225
NEWARK AND SHERWOOD DISTRICT COUNCIL,POLICY & FINANCE,G450,COMPUTER SOFTWARE MAINTENANCE,30/06/2022,393351,"11,475.00",MERITEC LTD,105609
NEWARK AND SHERWOOD DISTRICT COUNCIL,HOUSING REVENUE ACCOUNT,G410,APPLIANCE SERVICING,06/05/2022,391928,"11,229.00",AARON SERVICES,107225
NEWARK AND SHERWOOD DISTRICT COUNCIL,CAPITAL,G997,DISABLED FACILITIES,10/06/2022,394120,"11,202.76",BERWICK BUILDING LIMITED,105813
NEWARK AND SHERWOOD DISTRICT COUNCIL,CAPITAL,G997,CONSTRUCTION,29/04/2022,391366,"11,180.13",HARMONY FIRE LTD,107179
NEWARK AND SHERWOOD DISTRICT COUNCIL,POLICY & FINANCE,G450,SUBSCRIPTIONS,13/05/2022,392680,"11,089.63",LOCAL GOVERNMENT ASSOCIATION,100283
NEWARK AND SHERWOOD DISTRICT COUNCIL,CAPITAL,G997,DISABLED FACILITIES,08/04/2022,389687,"11,000.00",VAUGHANDALE CONSTRUCTION LTD,100590
NEWARK AND SHERWOOD DISTRICT COUNCIL,POLICY & FINANCE,G450,CONTRACTUAL SERVICES,17/06/2022,394745,"10,882.26",ATLAS FACILITIES MANAGEMENT LIMITED,106088
NEWARK AND SHERWOOD DISTRICT COUNCIL,LEISURE & ENVIRONMENT,G440,REFUSE BIN PURCHASES,10/06/2022,394231,"10,773.00",CRAEMER UK LTD,101504
NEWARK AND SHERWOOD DISTRICT COUNCIL,CAPITAL,G997,CONSTRUCTION,17/06/2022,395000,"10,693.50",NEIL SHACKLOCK PLUMBING AND HEATING  LTD,104679
NEWARK AND SHERWOOD DISTRICT COUNCIL,POLICY & FINANCE,G450,CTAX NSDC PARISH PRECEPT PYMTS,22/04/2022,390642,"10,656.00",GUNTHORPE PARISH COUNCIL,100192
NEWARK AND SHERWOOD DISTRICT COUNCIL,ECONOMIC DEVELOPMENT,G420,ARTISTS FEES,24/06/2022,395618,"10,387.62",STEVE STEINMAN PRODUCTIONS,106581
NEWARK AND SHERWOOD DISTRICT COUNCIL,HOUSING REVENUE ACCOUNT,G410,MATERIALS,23/06/2022,395564,"10,232.34",QUANTUM BILLING - INPROVA GROUP,106944
NEWARK AND SHERWOOD DISTRICT COUNCIL,CAPITAL,G997,CONSTRUCTION,20/05/2022,392872,"10,229.99",MATTHEWS & TANNERT LTD,101312
NEWARK AND SHERWOOD DISTRICT COUNCIL,CAPITAL,G997,DISABLED FACILITIES,31/05/2022,394013,"10,047.15",VAUGHANDALE CONSTRUCTION LTD,100590
NEWARK AND SHERWOOD DISTRICT COUNCIL,LEISURE & ENVIRONMENT,G440,CONTRACTUAL SERVICES,17/06/2022,392262,"10,000.00",NOTTINGHAMSHIRE COUNTY COUNCIL,100393
NEWARK AND SHERWOOD DISTRICT COUNCIL,CAPITAL,G997,DISABLED FACILITIES,31/05/2022,394062,"10,000.00",BERWICK BUILDING LIMITED,105813
NEWARK AND SHERWOOD DISTRICT COUNCIL,HOMES & COMMUNITIES,G430,GOV GRANT EXPENDITURE,06/05/2022,391824,"10,000.00",SHERWOOD & NEWARK CITIZENS ADVICE BUREAU,102100
NEWARK AND SHERWOOD DISTRICT COUNCIL,HOMES & COMMUNITIES,G430,NEWSLETTERS,13/05/2022,392290,"10,000.00",GRANICUS-FIRMSTEP LTD,107187
NEWARK AND SHERWOOD DISTRICT COUNCIL,CAPITAL,G997,CONSTRUCTION,17/06/2022,394975,"9,824.09",MATTHEWS & TANNERT LTD,101312
NEWARK AND SHERWOOD DISTRICT COUNCIL,CAPITAL,G997,CONSTRUCTION,20/05/2022,393069,"9,780.00",NEIL SHACKLOCK PLUMBING AND HEATING  LTD,104679
NEWARK AND SHERWOOD DISTRICT COUNCIL,POLICY & FINANCE,G450,HARDWARE MAINTENANCE,29/04/2022,391177,"9,735.00",STORM TECHNOLOGIES LTD,105838
NEWARK AND SHERWOOD DISTRICT COUNCIL,HOUSING REVENUE ACCOUNT,G410,TENANT INVOLVEMENT,27/05/2022,393489,"9,728.28",PARKIN CONTRACTORS LTD,102009
NEWARK AND SHERWOOD DISTRICT COUNCIL,ECONOMIC DEVELOPMENT,G420,PREMISES REPAIRS & RENEWALS,08/04/2022,389045,"9,651.00",NOTTINGHAM GROUNDS MAINTENANCE LTD,105832
NEWARK AND SHERWOOD DISTRICT COUNCIL,ECONOMIC DEVELOPMENT,G420,RENT,14/04/2022,390370,"9,433.96",THE WELBECK ESTATES COMPANY LTD,101113
NEWARK AND SHERWOOD DISTRICT COUNCIL,ECONOMIC DEVELOPMENT,G420,RENT,24/06/2022,395364,"9,433.96",THE WELBECK ESTATES COMPANY LTD,101113
NEWARK AND SHERWOOD DISTRICT COUNCIL,ECONOMIC DEVELOPMENT,G420,AGENCY REPAYMENTS,08/04/2022,389763,"9,369.00",REDACTED PERSONAL DATA,107484
NEWARK AND SHERWOOD DISTRICT COUNCIL,POLICY & FINANCE,G450,AUDIT FEES (INTERNAL/EXTERNAL),06/05/2022,391832,"9,303.00",MAZARS LLP,106302
NEWARK AND SHERWOOD DISTRICT COUNCIL,POLICY & FINANCE,G450,CTAX NSDC PARISH PRECEPT PYMTS,22/04/2022,390650,"9,202.50",NORTH MUSKHAM PARISH COUNCIL,100383
NEWARK AND SHERWOOD DISTRICT COUNCIL,POLICY & FINANCE,G450,CTAX NSDC PARISH PRECEPT PYMTS,22/04/2022,390626,"9,158.50",BLEASBY PARISH COUNCIL,100044
NEWARK AND SHERWOOD DISTRICT COUNCIL,POLICY & FINANCE,G450,CTAX NSDC PARISH PRECEPT PYMTS,22/04/2022,390652,"8,970.50",OXTON PARISH COUNCIL,100417
NEWARK AND SHERWOOD DISTRICT COUNCIL,POLICY & FINANCE,G450,ICT ORDERED EQUIPMENT,08/04/2022,389910,"8,928.00",IKEN BUSINESS LIMITED,107421
NEWARK AND SHERWOOD DISTRICT COUNCIL,HOUSING REVENUE ACCOUNT,G410,CLEANING CONTRACT,13/05/2022,392370,"8,856.74",HI-SPEC FACILITIES SUPPORT CO PLC,101303
NEWARK AND SHERWOOD DISTRICT COUNCIL,HOUSING REVENUE ACCOUNT,G410,CLEANING CONTRACT,17/06/2022,394797,"8,856.74",HI-SPEC FACILITIES SUPPORT CO PLC,101303
NEWARK AND SHERWOOD DISTRICT COUNCIL,HOMES & COMMUNITIES,G430,NEWARK HOMESTART,29/04/2022,391397,"8,577.00",HOME-START NEWARK,100212
NEWARK AND SHERWOOD DISTRICT COUNCIL,POLICY & FINANCE,G450,STANDING CHARGES TELEPHONES,08/04/2022,389655,"8,572.82",8X8 UK LIMITED,106958
NEWARK AND SHERWOOD DISTRICT COUNCIL,POLICY & FINANCE,G450,STANDING CHARGES TELEPHONES,22/04/2022,390883,"8,556.86",8X8 UK LIMITED,106958
NEWARK AND SHERWOOD DISTRICT COUNCIL,POLICY & FINANCE,G450,STANDING CHARGES TELEPHONES,17/06/2022,394763,"8,532.86",8X8 UK LIMITED,106958
NEWARK AND SHERWOOD DISTRICT COUNCIL,POLICY & FINANCE,G450,STANDING CHARGES TELEPHONES,13/05/2022,392163,"8,502.86",8X8 UK LIMITED,106958
NEWARK AND SHERWOOD DISTRICT COUNCIL,POLICY & FINANCE,G450,COMPUTER SOFTWARE MAINTENANCE,24/06/2022,395395,"8,450.40",VIRGIN MEDIA BUSINESS,100934
NEWARK AND SHERWOOD DISTRICT COUNCIL,HOMES & COMMUNITIES,G430,BT LINES,17/06/2022,394998,"8,390.46",BRITISH TELECOMMUNICATIONS PLC,100057
NEWARK AND SHERWOOD DISTRICT COUNCIL,CAPITAL,G997,CONSTRUCTION,20/05/2022,393146,"8,349.54",NOVUS PROPERTY SOLUTIONS LTD,107362
NEWARK AND SHERWOOD DISTRICT COUNCIL,CAPITAL,G997,CONSTRUCTION,08/04/2022,389556,"8,274.00",HANKINSON LIMITED,107317
NEWARK AND SHERWOOD DISTRICT COUNCIL,CAPITAL,G997,CONSTRUCTION,24/06/2022,395623,"8,217.95",FCC RECYCLING (UK) LTD,102190
NEWARK AND SHERWOOD DISTRICT COUNCIL,ECONOMIC DEVELOPMENT,G420,REPAIRS AND MAINTENANCE,20/05/2022,392715,"8,159.00",JOHNSON ELECTRICAL SOLUTIONS LTD,107173
NEWARK AND SHERWOOD DISTRICT COUNCIL,POLICY & FINANCE,G450,CTAX NSDC PARISH PRECEPT PYMTS,22/04/2022,390632,"8,060.50",CODDINGTON PARISH COUNCIL,100103
NEWARK AND SHERWOOD DISTRICT COUNCIL,CAPITAL,G997,CONSTRUCTION,10/06/2022,394246,"8,000.00",SOUL ARCHITECTS LIMITED,107281
NEWARK AND SHERWOOD DISTRICT COUNCIL,CAPITAL,G997,DISABLED FACILITIES,30/06/2022,396114,"7,952.85",VAUGHANDALE CONSTRUCTION LTD,100590
NEWARK AND SHERWOOD DISTRICT COUNCIL,HOUSING REVENUE ACCOUNT,G410,FIRE ALARM AND EMERGENCY LIGHT,27/05/2022,393593,"7,920.51",HD ELECTRICAL SYSTEMS LTD,105293
NEWARK AND SHERWOOD DISTRICT COUNCIL,HOUSING REVENUE ACCOUNT,G410,FIRE ALARM AND EMERGENCY LIGHT,24/06/2022,395494,"7,920.51",HD ELECTRICAL SYSTEMS LTD,105293
NEWARK AND SHERWOOD DISTRICT COUNCIL,POLICY & FINANCE,G450,ELECTRICITY,06/05/2022,391807,"7,907.06",EDF ENERGY 1 LTD,101140
NEWARK AND SHERWOOD DISTRICT COUNCIL,POLICY & FINANCE,G450,COMPUTER SOFTWARE MAINTENANCE,29/04/2022,391093,"7,839.28",VIRGIN MEDIA BUSINESS,100934
NEWARK AND SHERWOOD DISTRICT COUNCIL,HOUSING REVENUE ACCOUNT,G410,LEGIONELLA TESTING & REMEDIALS,29/04/2022,391336,"7,700.51",HD ELECTRICAL SYSTEMS LTD,105293
NEWARK AND SHERWOOD DISTRICT COUNCIL,POLICY & FINANCE,G450,CTAX NSDC PARISH PRECEPT PYMTS,22/04/2022,390638,"7,621.00",EPPERSTONE PARISH COUNCIL,100152
NEWARK AND SHERWOOD DISTRICT COUNCIL,CAPITAL,G997,CONSTRUCTION,10/06/2022,394373,"7,612.50",NEIL SHACKLOCK PLUMBING AND HEATING  LTD,104679
NEWARK AND SHERWOOD DISTRICT COUNCIL,ECONOMIC DEVELOPMENT,G420,EQUIPMENT REPAIRS & RENEWALS,08/04/2022,389718,"7,600.00",ECOSERVE NATIONWIDE LTD,107494
NEWARK AND SHERWOOD DISTRICT COUNCIL,HOUSING REVENUE ACCOUNT,G410,APPLIANCE SERVICING,30/06/2022,396002,"7,586.41",AARON SERVICES,107225
NEWARK AND SHERWOOD DISTRICT COUNCIL,LEISURE & ENVIRONMENT,G440,REFUSE BIN PURCHASES,10/06/2022,394232,"7,566.00",CRAEMER UK LTD,101504
NEWARK AND SHERWOOD DISTRICT COUNCIL,HOUSING REVENUE ACCOUNT,G410,PERIODIC ELECTRICAL TESTING,22/04/2022,390674,"7,558.57",FARRENDALE LTD,106640
NEWARK AND SHERWOOD DISTRICT COUNCIL,CAPITAL,G997,CONSTRUCTION,10/06/2022,394365,"7,500.00",ELITE CONSTRUCTION NR LTD,105936
NEWARK AND SHERWOOD DISTRICT COUNCIL,CAPITAL,G997,LAND AQUISITION,22/04/2022,390734,"7,500.00",INLINE PROPERTY CONSULTANTS,107508
NEWARK AND SHERWOOD DISTRICT COUNCIL,ECONOMIC DEVELOPMENT,G420,RENT,08/04/2022,389707,"7,500.00",DATCH PROPERTIES LIMITED,106634
NEWARK AND SHERWOOD DISTRICT COUNCIL,CAPITAL,G997,CONSTRUCTION,29/04/2022,391367,"7,453.42",HARMONY FIRE LTD,107179
NEWARK AND SHERWOOD DISTRICT COUNCIL,ECONOMIC DEVELOPMENT,G420,BUILDING CONTROL CON 29,10/06/2022,392000,"7,397.31",SOUTH KESTEVEN DISTRICT COUNCIL,103477
NEWARK AND SHERWOOD DISTRICT COUNCIL,ECONOMIC DEVELOPMENT,G420,PROFESSIONAL SERVICES,08/04/2022,389657,"7,370.70",MARTIN ASHLEY LLP,106192
NEWARK AND SHERWOOD DISTRICT COUNCIL,ECONOMIC DEVELOPMENT,G420,PROFESSIONAL SERVICES,13/05/2022,392186,"7,305.00",INSPIRE,105677
NEWARK AND SHERWOOD DISTRICT COUNCIL,CAPITAL,G997,CONSTRUCTION,30/06/2022,396171,"7,284.36",KOMPAN LTD,100262
NEWARK AND SHERWOOD DISTRICT COUNCIL,ECONOMIC DEVELOPMENT,G420,ARTISTS FEES,30/06/2022,396139,"7,251.05",JENDAGI PRODUCTIONS LTD,106646
NEWARK AND SHERWOOD DISTRICT COUNCIL,POLICY & FINANCE,G450,COMPUTER SOFTWARE MAINTENANCE,29/04/2022,391094,"7,250.00",VIRGIN MEDIA BUSINESS,100934
NEWARK AND SHERWOOD DISTRICT COUNCIL,CAPITAL,G997,CONSTRUCTION,08/04/2022,389532,"7,246.20",NATIONWIDE WINDOWS LIMITED,101404
NEWARK AND SHERWOOD DISTRICT COUNCIL,HOMES & COMMUNITIES,G430,LICENCES,22/04/2022,390881,"7,118.30",NLA MEDIA ACCESS LIMITED,107544
NEWARK AND SHERWOOD DISTRICT COUNCIL,POLICY & FINANCE,G450,PROFESSIONAL SERVICES,20/05/2022,392183,"7,116.00",CIVICA UK LTD,105867
NEWARK AND SHERWOOD DISTRICT COUNCIL,CAPITAL,G997,DISABLED FACILITIES,30/06/2022,396111,"6,978.25",VAUGHANDALE CONSTRUCTION LTD,100590
NEWARK AND SHERWOOD DISTRICT COUNCIL,CAPITAL,G997,DISABLED FACILITIES,10/06/2022,394319,"6,920.16",ACIS LTD,107472
NEWARK AND SHERWOOD DISTRICT COUNCIL,POLICY & FINANCE,G450,COMPUTER SOFTWARE,06/05/2022,391186,"6,900.00",HOUSE ON THE HILL SOFTWARE LTD,107417
NEWARK AND SHERWOOD DISTRICT COUNCIL,CAPITAL,G997,CONSTRUCTION,06/05/2022,391826,"6,900.00",GPR CONSTRUCTION LTD,100190
NEWARK AND SHERWOOD DISTRICT COUNCIL,ECONOMIC DEVELOPMENT,G420,REPAIRS AND MAINTENANCE,31/05/2022,394118,"6,878.33",NEWARK HEATING SERVICES LTD,107542
NEWARK AND SHERWOOD DISTRICT COUNCIL,POLICY & FINANCE,G450,CTAX NSDC PARISH PRECEPT PYMTS,22/04/2022,390655,"6,858.50",SOUTH MUSKHAM PARISH COUNCIL,100512
NEWARK AND SHERWOOD DISTRICT COUNCIL,POLICY & FINANCE,G450,CTAX NSDC PARISH PRECEPT PYMTS,22/04/2022,390645,"6,850.00",HOVERINGHAM PARISH COUNCIL,100215
NEWARK AND SHERWOOD DISTRICT COUNCIL,CAPITAL,G997,CONSTRUCTION,20/05/2022,393138,"6,841.95",NOVUS PROPERTY SOLUTIONS LTD,107362
NEWARK AND SHERWOOD DISTRICT COUNCIL,LEISURE & ENVIRONMENT,G440,PAYMENTS TO NOTTS COUNTY CNCL,06/05/2022,391173,"6,820.00",NOTTINGHAMSHIRE COUNTY COUNCIL,100393
NEWARK AND SHERWOOD DISTRICT COUNCIL,POLICY & FINANCE,G450,WATER SAFETY (LEGIONELLA),17/06/2022,394747,"6,775.00",COOPER PLUMBING,100110
NEWARK AND SHERWOOD DISTRICT COUNCIL,CAPITAL,G997,DISABLED FACILITIES,06/05/2022,391833,"6,760.07",VAUGHANDALE CONSTRUCTION LTD,100590
NEWARK AND SHERWOOD DISTRICT COUNCIL,ECONOMIC DEVELOPMENT,G420,PROFESSIONAL SERVICES,08/04/2022,389660,"6,752.00",ULYETT LANDSCAPES LTD,100582
NEWARK AND SHERWOOD DISTRICT COUNCIL,ECONOMIC DEVELOPMENT,G420,CONTRACTUAL SERVICES,30/06/2022,395829,"6,625.81",WATCH-IT SECURITY SERVICES LTD,103618
NEWARK AND SHERWOOD DISTRICT COUNCIL,POLICY & FINANCE,G450,PROFESSIONAL SERVICES,13/05/2022,392237,"6,600.00",INFORM CPI LIMITED,104513
NEWARK AND SHERWOOD DISTRICT COUNCIL,HOUSING REVENUE ACCOUNT,G410,CONTRACTUAL SERVICES,20/05/2022,393169,"6,598.32",NOVUS PROPERTY SOLUTIONS LTD,107362
NEWARK AND SHERWOOD DISTRICT COUNCIL,POLICY & FINANCE,G450,PROFESSIONAL SERVICES,17/06/2022,394775,"6,587.03",CIVICA UK LTD,105867
NEWARK AND SHERWOOD DISTRICT COUNCIL,HOUSING REVENUE ACCOUNT,G410,SPEECH CALL MAINTENANCE,27/05/2022,393588,"6,576.44",TUNSTALL HEALTHCARE LTD,100883
NEWARK AND SHERWOOD DISTRICT COUNCIL,POLICY & FINANCE,G450,PROFESSIONAL SERVICES,20/05/2022,389954,"6,500.00",CIVICA UK LTD,105867
NEWARK AND SHERWOOD DISTRICT COUNCIL,LEISURE & ENVIRONMENT,G440,REFUSE BIN PURCHASES,31/05/2022,393391,"6,500.00",UK CONTAINER MAINTENANCE LTD,100578
NEWARK AND SHERWOOD DISTRICT COUNCIL,ECONOMIC DEVELOPMENT,G420,CONTRACTUAL SERVICES,14/04/2022,390366,"6,440.00",INOVEM LTD,105503
NEWARK AND SHERWOOD DISTRICT COUNCIL,HOUSING REVENUE ACCOUNT,G410,AGENCY STAFF,22/04/2022,390584,"6,400.98",AARON SERVICES,107225
NEWARK AND SHERWOOD DISTRICT COUNCIL,CAPITAL,G997,DISABLED FACILITIES,29/04/2022,391294,"6,388.00",STANNAH LIFTS SERVICE LTD,101327
NEWARK AND SHERWOOD DISTRICT COUNCIL,POLICY & FINANCE,G450,PREMISES SECURITY,08/04/2022,389837,"6,384.00",FOREMOST SECURITY,105979
NEWARK AND SHERWOOD DISTRICT COUNCIL,CAPITAL,G997,CONSTRUCTION,29/04/2022,391363,"6,370.00",HARMONY FIRE LTD,107179
NEWARK AND SHERWOOD DISTRICT COUNCIL,ECONOMIC DEVELOPMENT,G420,PROFESSIONAL SERVICES,17/06/2022,390441,"6,369.00",SMITH AND ROPER,107560
NEWARK AND SHERWOOD DISTRICT COUNCIL,HOUSING REVENUE ACCOUNT,G410,PERIODIC ELECTRICAL TESTING,17/06/2022,394636,"6,342.37",FARRENDALE LTD,106640
NEWARK AND SHERWOOD DISTRICT COUNCIL,POLICY & FINANCE,G450,COMPUTER SOFTWARE MAINTENANCE,24/06/2022,395397,"6,329.33",VIRGIN MEDIA BUSINESS,100934
NEWARK AND SHERWOOD DISTRICT COUNCIL,HOUSING REVENUE ACCOUNT,G410,CONTRACTUAL SERVICES,27/05/2022,393650,"6,311.19",NOVUS PROPERTY SOLUTIONS LTD,107362
NEWARK AND SHERWOOD DISTRICT COUNCIL,ECONOMIC DEVELOPMENT,G420,REPAIRS AND MAINTENANCE,31/05/2022,394059,"6,300.00",DIRECT PUMPS AND TANKS LTD,106211
NEWARK AND SHERWOOD DISTRICT COUNCIL,POLICY & FINANCE,G450,LEGAL FEES OUTSOURCED,22/04/2022,390732,"6,237.80",BEVAN BRITTAN LLP,101500
NEWARK AND SHERWOOD DISTRICT COUNCIL,POLICY & FINANCE,G450,HARDWARE MAINTENANCE,29/04/2022,390864,"6,145.92",INSIGHT DIRECT (UK) LTD,100226
NEWARK AND SHERWOOD DISTRICT COUNCIL,HOUSING REVENUE ACCOUNT,G410,SPEECH CALL MAINTENANCE,06/05/2022,391888,"6,107.61",TUNSTALL HEALTHCARE LTD,100883
NEWARK AND SHERWOOD DISTRICT COUNCIL,POLICY & FINANCE,G450,CTAX NSDC PARISH PRECEPT PYMTS,22/04/2022,390659,"6,034.00",THURGARTON PARISH COUNCIL,100564
NEWARK AND SHERWOOD DISTRICT COUNCIL,POLICY & FINANCE,G450,CIL LOCAL MONIES PAYMENT,27/05/2022,393677,"6,033.93",SOUTH CLIFTON PARISH COUNCIL,100510
NEWARK AND SHERWOOD DISTRICT COUNCIL,POLICY & FINANCE,G450,HARDWARE MAINTENANCE,29/04/2022,391146,"6,000.00",CIVICA UK LTD,105867
NEWARK AND SHERWOOD DISTRICT COUNCIL,POLICY & FINANCE,G450,REPAIRS AND MAINTENANCE,14/04/2022,385613,"5,970.00",KIRK & BILLS LTD,105630
NEWARK AND SHERWOOD DISTRICT COUNCIL,CAPITAL,G997,CONSTRUCTION,30/06/2022,395583,"5,950.00",MASON CLARK ASSOCIATES LTD,107518
NEWARK AND SHERWOOD DISTRICT COUNCIL,CAPITAL,G997,CONSTRUCTION,10/06/2022,393562,"5,943.62",MATTHEWS & TANNERT LTD,101312
NEWARK AND SHERWOOD DISTRICT COUNCIL,CAPITAL,G997,DISABLED FACILITIES,13/05/2022,392303,"5,937.78",VAUGHANDALE CONSTRUCTION LTD,100590
NEWARK AND SHERWOOD DISTRICT COUNCIL,HOUSING REVENUE ACCOUNT,G410,CONTRACTUAL SERVICES,10/06/2022,393117,"5,935.73",TUNSTALL RESPONSE LTD,106876
NEWARK AND SHERWOOD DISTRICT COUNCIL,CAPITAL,G997,CONSTRUCTION,29/04/2022,391341,"5,930.52",PENNINGTON CHOICES LIMITED,106399
NEWARK AND SHERWOOD DISTRICT COUNCIL,POLICY & FINANCE,G450,DRAINAGE RATES,22/04/2022,390972,"5,913.74",UPPER WITHAM INTERNAL DRAINAGE BOARD,101956
NEWARK AND SHERWOOD DISTRICT COUNCIL,CAPITAL,G997,CONSTRUCTION,27/05/2022,393339,"5,900.00",TETRA TECH LTD,106871
NEWARK AND SHERWOOD DISTRICT COUNCIL,HOUSING REVENUE ACCOUNT,G410,APPLIANCE SERVICING,24/06/2022,395622,"5,861.38",AARON SERVICES,107225
NEWARK AND SHERWOOD DISTRICT COUNCIL,CAPITAL,G997,CONSTRUCTION,10/06/2022,394242,"5,794.01",ROBERT WOODHEAD LTD,100461
NEWARK AND SHERWOOD DISTRICT COUNCIL,CAPITAL,G997,CONSTRUCTION,10/06/2022,394310,"5,757.53",NATIONWIDE WINDOWS LIMITED,101404
NEWARK AND SHERWOOD DISTRICT COUNCIL,POLICY & FINANCE,G450,HARDWARE MAINTENANCE,14/04/2022,390318,"5,724.00",CENTERPRISE INTERNATIONAL LIMITED,106091
NEWARK AND SHERWOOD DISTRICT COUNCIL,ECONOMIC DEVELOPMENT,G420,ELECTRICITY,27/05/2022,393503,"5,676.58",EDF ENERGY 1 LTD,101140
NEWARK AND SHERWOOD DISTRICT COUNCIL,ECONOMIC DEVELOPMENT,G420,ARTISTS FEES,31/05/2022,394130,"5,661.85",ARTISTES INTERNATIONAL MANAGEMENT LTD,101285
NEWARK AND SHERWOOD DISTRICT COUNCIL,CAPITAL,G997,CONSTRUCTION,06/05/2022,391906,"5,631.00",PREMIER MOBILITY (UK) LIMITED,106576
NEWARK AND SHERWOOD DISTRICT COUNCIL,ECONOMIC DEVELOPMENT,G420,AGENCY STAFF,27/05/2022,393332,"5,600.00",Q A BUSINESS ASSIST LTD,105267
NEWARK AND SHERWOOD DISTRICT COUNCIL,HOMES & COMMUNITIES,G430,THIRD PARTY AGENTS,29/04/2022,391252,"5,600.00",BROXTOWE BOROUGH COUNCIL,100063
NEWARK AND SHERWOOD DISTRICT COUNCIL,CAPITAL,G997,CONSTRUCTION,22/04/2022,390687,"5,590.07",HARMONY FIRE LTD,107179
NEWARK AND SHERWOOD DISTRICT COUNCIL,CAPITAL,G997,CONSTRUCTION,22/04/2022,390694,"5,590.07",HARMONY FIRE LTD,107179
NEWARK AND SHERWOOD DISTRICT COUNCIL,POLICY & FINANCE,G450,PREMISES SECURITY,24/06/2022,394781,"5,544.00",FOREMOST SECURITY,105979
NEWARK AND SHERWOOD DISTRICT COUNCIL,POLICY & FINANCE,G450,HARDWARE MAINTENANCE,06/05/2022,391777,"5,542.00",MTI TECHNOLOGY LTD,105884
NEWARK AND SHERWOOD DISTRICT COUNCIL,POLICY & FINANCE,G450,CIL LOCAL MONIES PAYMENT,27/05/2022,393674,"5,523.54",HARBY PARISH COUNCIL,100197
NEWARK AND SHERWOOD DISTRICT COUNCIL,LEISURE & ENVIRONMENT,G440,TYRES,17/06/2022,394742,"5,509.40",LODGE TYRE CO LTD,104560
NEWARK AND SHERWOOD DISTRICT COUNCIL,POLICY & FINANCE,G450,CTAX NSDC PARISH PRECEPT PYMTS,22/04/2022,390635,"5,500.00",EDINGLEY PARISH COUNCIL,100142
NEWARK AND SHERWOOD DISTRICT COUNCIL,LEISURE & ENVIRONMENT,G440,PROFESSIONAL SERVICES,27/05/2022,393354,"5,500.00",MERITEC LTD,105609
NEWARK AND SHERWOOD DISTRICT COUNCIL,ECONOMIC DEVELOPMENT,G420,PROMOTION OF EVENTS,08/04/2022,389551,"5,490.00",ROBERT MARSHALL & SONS LTD,105315
NEWARK AND SHERWOOD DISTRICT COUNCIL,HOUSING REVENUE ACCOUNT,G410,CONTRACTUAL SERVICES,27/05/2022,393651,"5,433.97",NOVUS PROPERTY SOLUTIONS LTD,107362
NEWARK AND SHERWOOD DISTRICT COUNCIL,ECONOMIC DEVELOPMENT,G420,OTHER EQUIPMENT AND TOOLS,22/04/2022,390720,"5,424.96",STAGE ELECTRICS,100517
NEWARK AND SHERWOOD DISTRICT COUNCIL,CAPITAL,G997,DISABLED FACILITIES,30/06/2022,396110,"5,400.00",3MS GOLD SERVICES LTD,100002
NEWARK AND SHERWOOD DISTRICT COUNCIL,HOMES & COMMUNITIES,G430,PLAY LEADERSHIP,29/04/2022,391309,"5,400.00",NEWARK & SHERWOOD COMMUNITY HUB,106310
NEWARK AND SHERWOOD DISTRICT COUNCIL,HOMES & COMMUNITIES,G430,PLAY LEADERSHIP,30/06/2022,396138,"5,400.00",NEWARK & SHERWOOD COMMUNITY HUB,106310
NEWARK AND SHERWOOD DISTRICT COUNCIL,ECONOMIC DEVELOPMENT,G420,PROFESSIONAL SERVICES,17/06/2022,392224,"5,340.00",NOTTINGHAMSHIRE COUNTY COUNCIL,100393
NEWARK AND SHERWOOD DISTRICT COUNCIL,HOMES & COMMUNITIES,G430,ELECTRICITY,28/05/2022,393965,"5,326.84",SCOTTISH & SOUTHERN ENERGY GROUP,103454
NEWARK AND SHERWOOD DISTRICT COUNCIL,POLICY & FINANCE,G450,PREMISES SECURITY,06/05/2022,391996,"5,292.00",FOREMOST SECURITY,105979
NEWARK AND SHERWOOD DISTRICT COUNCIL,HOUSING REVENUE ACCOUNT,G410,APPLIANCE SERVICING,27/05/2022,393564,"5,252.13",AARON SERVICES,107225
NEWARK AND SHERWOOD DISTRICT COUNCIL,HOMES & COMMUNITIES,G430,NEWSLETTERS,27/05/2022,393477,"5,217.14",SITEIMPROVE LTD,105890
NEWARK AND SHERWOOD DISTRICT COUNCIL,LEISURE & ENVIRONMENT,G440,TYRES,08/04/2022,389546,"5,174.20",LODGE TYRE CO LTD,104560
NEWARK AND SHERWOOD DISTRICT COUNCIL,ECONOMIC DEVELOPMENT,G420,ARTISTS FEES,10/06/2022,394274,"5,153.82",PARK PROMOTIONS LTD,100767
NEWARK AND SHERWOOD DISTRICT COUNCIL,CAPITAL,G997,DISABLED FACILITIES,06/05/2022,391861,"5,141.18",VAUGHANDALE CONSTRUCTION LTD,100590
NEWARK AND SHERWOOD DISTRICT COUNCIL,LEISURE & ENVIRONMENT,G440,AGENCY STAFF,20/05/2022,393057,"5,112.00",VIVID RESOURCING,106488
NEWARK AND SHERWOOD DISTRICT COUNCIL,CAPITAL,G997,CONSTRUCTION,20/05/2022,392712,"5,073.00",AVIECO LTD,107296
NEWARK AND SHERWOOD DISTRICT COUNCIL,HOMES & COMMUNITIES,G430,COUNCIL FOR VOLUNTARY SERVICES,06/05/2022,391828,"5,067.00",NEWARK & SHERWOOD CVS,101027
NEWARK AND SHERWOOD DISTRICT COUNCIL,ECONOMIC DEVELOPMENT,G420,PROFESSIONAL SERVICES,10/06/2022,394243,"5,016.37",RUSKIN TREE CONSULTANCY,106947
NEWARK AND SHERWOOD DISTRICT COUNCIL,CAPITAL,G997,CONSTRUCTION,20/05/2022,392850,"5,000.00",NEIL SHACKLOCK PLUMBING AND HEATING  LTD,104679
NEWARK AND SHERWOOD DISTRICT COUNCIL,ECONOMIC DEVELOPMENT,G420,EQUIPMENT REPAIRS & RENEWALS,30/06/2022,395841,"5,000.00",REDACTED PERSONAL DATA,106498
NEWARK AND SHERWOOD DISTRICT COUNCIL,ECONOMIC DEVELOPMENT,G420,PARTNER/STAKEHOLDER INITIATIVE,30/06/2022,396122,"5,000.00",NOTTINGHAMSHIRE COUNTY COUNCIL,100393
NEWARK AND SHERWOOD DISTRICT COUNCIL,ECONOMIC DEVELOPMENT,G420,OTHER EQUIPMENT AND TOOLS,13/05/2022,392298,"4,995.08",PARTIC MOTOR SPARES LTD,100421
NEWARK AND SHERWOOD DISTRICT COUNCIL,POLICY & FINANCE,G450,CTAX NSDC PARISH PRECEPT PYMTS,22/04/2022,390666,"4,987.50",KINGS CLIPSTONE PARISH COUNCIL,101090
NEWARK AND SHERWOOD DISTRICT COUNCIL,POLICY & FINANCE,G450,COMPUTER SOFTWARE,14/04/2022,389916,"4,980.00",GREEN REWARDS LIMITED T/A JUMP,107416
NEWARK AND SHERWOOD DISTRICT COUNCIL,CAPITAL,G997,CONSTRUCTION,22/04/2022,390581,"4,968.94",HARMONY FIRE LTD,107179
NEWARK AND SHERWOOD DISTRICT COUNCIL,CAPITAL,G997,DISABLED FACILITIES,13/05/2022,392504,"4,922.50",VAUGHANDALE CONSTRUCTION LTD,100590
NEWARK AND SHERWOOD DISTRICT COUNCIL,POLICY & FINANCE,G450,EQUIPMENT REPAIRS & RENEWALS,31/05/2022,394073,"4,922.50",CIVICA UK LTD,105867
NEWARK AND SHERWOOD DISTRICT COUNCIL,POLICY & FINANCE,G992,NDR RENEWABLE ENERGY,14/04/2022,390403,"4,915.00",NOTTINGHAMSHIRE COUNTY COUNCIL,100393
NEWARK AND SHERWOOD DISTRICT COUNCIL,POLICY & FINANCE,G992,NDR RENEWABLE ENERGY,25/05/2022,393479,"4,915.00",NOTTINGHAMSHIRE COUNTY COUNCIL,100393
NEWARK AND SHERWOOD DISTRICT COUNCIL,POLICY & FINANCE,G992,NDR RENEWABLE ENERGY,28/06/2022,395892,"4,915.00",NOTTINGHAMSHIRE COUNTY COUNCIL,100393
NEWARK AND SHERWOOD DISTRICT COUNCIL,HOUSING REVENUE ACCOUNT,G410,CONTRACTUAL SERVICES,30/06/2022,396054,"4,885.20",J WRIGHT ROOFING LTD,105753
NEWARK AND SHERWOOD DISTRICT COUNCIL,ECONOMIC DEVELOPMENT,G420,ARTISTS FEES,08/04/2022,389949,"4,882.80",ARTISTES INTERNATIONAL MANAGEMENT LTD,101285
NEWARK AND SHERWOOD DISTRICT COUNCIL,HOUSING REVENUE ACCOUNT,G410,APPLIANCE SERVICING,30/06/2022,395940,"4,851.42",RENUVO LIMITED,107076
NEWARK AND SHERWOOD DISTRICT COUNCIL,ECONOMIC DEVELOPMENT,G420,PAYMENTS TO NOTTS COUNTY CNCL,30/06/2022,396129,"4,824.00",NOTTINGHAMSHIRE COUNTY COUNCIL,100393
NEWARK AND SHERWOOD DISTRICT COUNCIL,ECONOMIC DEVELOPMENT,G420,RENT,13/05/2022,392473,"4,809.25",BLUEPRINT LIMITED PARTNERSHIP,100050
NEWARK AND SHERWOOD DISTRICT COUNCIL,ECONOMIC DEVELOPMENT,G420,CONTRACTUAL SERVICES,27/05/2022,393484,"4,805.12",WATCH-IT SECURITY SERVICES LTD,103618
NEWARK AND SHERWOOD DISTRICT COUNCIL,CAPITAL,G997,CONSTRUCTION,20/05/2022,393148,"4,778.60",NOVUS PROPERTY SOLUTIONS LTD,107362
NEWARK AND SHERWOOD DISTRICT COUNCIL,POLICY & FINANCE,G450,POSTAGES,08/04/2022,389994,"4,750.00",EVOLUTION IN TECHNOLOGY LIMITED,106252
NEWARK AND SHERWOOD DISTRICT COUNCIL,ECONOMIC DEVELOPMENT,G420,CONTRACTUAL SERVICES,14/04/2022,390303,"4,737.26",NORTH KESTEVEN DISTRICT COUNCIL,101538
NEWARK AND SHERWOOD DISTRICT COUNCIL,ECONOMIC DEVELOPMENT,G420,AGENCY REPAYMENTS,24/06/2022,395613,"4,710.00",GEMMA SHAW SCHOOL OF DANCING,101690
NEWARK AND SHERWOOD DISTRICT COUNCIL,CAPITAL,G997,CONSTRUCTION,29/04/2022,391316,"4,700.00",STUDIO G ASSOCIATES,104539
NEWARK AND SHERWOOD DISTRICT COUNCIL,ECONOMIC DEVELOPMENT,G420,PROFESSIONAL SERVICES,22/04/2022,390844,"4,700.00",BUSINESS DOCTORS,107031
NEWARK AND SHERWOOD DISTRICT COUNCIL,HOUSING REVENUE ACCOUNT,G410,CONTRACTUAL SERVICES,20/05/2022,393171,"4,667.78",NOVUS PROPERTY SOLUTIONS LTD,107362
NEWARK AND SHERWOOD DISTRICT COUNCIL,ECONOMIC DEVELOPMENT,G420,PAYMENTS TO NOTTS COUNTY CNCL,06/05/2022,391817,"4,644.00",VIA EAST MIDLANDS LTD,105795
NEWARK AND SHERWOOD DISTRICT COUNCIL,POLICY & FINANCE,G450,WORLDPAY PROCESS CHARGES,20/06/2022,395234,"4,608.10",CARDNET MERCHANT SERVICES,107481
NEWARK AND SHERWOOD DISTRICT COUNCIL,HOUSING REVENUE ACCOUNT,G410,CONTRACTUAL SERVICES,30/06/2022,396009,"4,608.00",HD ELECTRICAL SYSTEMS LTD,105293
NEWARK AND SHERWOOD DISTRICT COUNCIL,POLICY & FINANCE,G450,CTAX NSDC PARISH PRECEPT PYMTS,22/04/2022,390651,"4,561.50",NORWELL PARISH COUNCIL,100388
NEWARK AND SHERWOOD DISTRICT COUNCIL,HOUSING REVENUE ACCOUNT,G410,CONTRACTUAL SERVICES,27/05/2022,393652,"4,522.56",NOVUS PROPERTY SOLUTIONS LTD,107362
NEWARK AND SHERWOOD DISTRICT COUNCIL,CAPITAL,G997,DISABLED FACILITIES,08/04/2022,389648,"4,502.00",D CRESSWELL AND SON (ELECTRICIANS) LTD,107167
NEWARK AND SHERWOOD DISTRICT COUNCIL,POLICY & FINANCE,G450,COMPUTER SOFTWARE MAINTENANCE,31/05/2022,394009,"4,500.00",MERITEC LTD,105609
NEWARK AND SHERWOOD DISTRICT COUNCIL,POLICY & FINANCE,G450,CTAX NSDC PARISH PRECEPT PYMTS,22/04/2022,390664,"4,500.00",WINTHORPE WITH LANGFORD PARISH COUNCIL,101576
NEWARK AND SHERWOOD DISTRICT COUNCIL,LEISURE & ENVIRONMENT,G440,TYRES,06/05/2022,391762,"4,454.00",LODGE TYRE CO LTD,104560
NEWARK AND SHERWOOD DISTRICT COUNCIL,HOUSING REVENUE ACCOUNT,G410,CONTRACTUAL SERVICES,27/05/2022,393649,"4,443.57",NOVUS PROPERTY SOLUTIONS LTD,107362
NEWARK AND SHERWOOD DISTRICT COUNCIL,CAPITAL,G997,VEHICLE AQUISITION,30/06/2022,395896,"4,436.88",RUSSELLS (KIRBYMOORSIDE) LTD,106779
NEWARK AND SHERWOOD DISTRICT COUNCIL,HOUSING REVENUE ACCOUNT,G410,PROFESSIONAL SERVICES,27/05/2022,393622,"4,400.00",VIEWPOINT COMMUNITY INTEREST COMPANY,106797
NEWARK AND SHERWOOD DISTRICT COUNCIL,ECONOMIC DEVELOPMENT,G420,CONTRACTUAL SERVICES,29/04/2022,391257,"4,354.64",WATCH-IT SECURITY SERVICES LTD,103618
NEWARK AND SHERWOOD DISTRICT COUNCIL,ECONOMIC DEVELOPMENT,G420,AGENCY REPAYMENTS,31/05/2022,394128,"4,345.00",TGC CONCERTS LTD,107565
NEWARK AND SHERWOOD DISTRICT COUNCIL,CAPITAL,G997,CONSTRUCTION,27/05/2022,393547,"4,337.34",DCR ELECTRICAL LTD,101799
NEWARK AND SHERWOOD DISTRICT COUNCIL,POLICY & FINANCE,G450,ICT SERVICE APPLICATIONS,27/05/2022,393465,"4,332.00",JGP RESOURCING LIMITED,101356
NEWARK AND SHERWOOD DISTRICT COUNCIL,POLICY & FINANCE,G450,PROFESSIONAL SERVICES,30/06/2022,395629,"4,288.00",CIVICA UK LTD,105867
NEWARK AND SHERWOOD DISTRICT COUNCIL,HOUSING REVENUE ACCOUNT,G410,CONTRACTUAL SERVICES,27/05/2022,393648,"4,260.29",NOVUS PROPERTY SOLUTIONS LTD,107362
NEWARK AND SHERWOOD DISTRICT COUNCIL,POLICY & FINANCE,G450,CTAX NSDC PARISH PRECEPT PYMTS,22/04/2022,390641,"4,250.00",FISKERTON PARISH COUNCIL,100166
NEWARK AND SHERWOOD DISTRICT COUNCIL,POLICY & FINANCE,G450,COMPUTER SOFTWARE MAINTENANCE,31/05/2022,394067,"4,200.00",VIRGIN MEDIA BUSINESS,100934
NEWARK AND SHERWOOD DISTRICT COUNCIL,ECONOMIC DEVELOPMENT,G420,EXP ADDITIONAL RESTRICTIONS GR,14/04/2022,390323,"4,187.50",VISPERA LIMITED,107292
NEWARK AND SHERWOOD DISTRICT COUNCIL,ECONOMIC DEVELOPMENT,G420,ARTISTS FEES,08/04/2022,389756,"4,168.77",THE ULTIMATE CLASSIC ROCK SHOW LTD,107566
NEWARK AND SHERWOOD DISTRICT COUNCIL,ECONOMIC DEVELOPMENT,G420,ARTISTS FEES,06/05/2022,391706,"4,150.17",ENTERTAINERS SHOW PROVIDERS LTD,106029
NEWARK AND SHERWOOD DISTRICT COUNCIL,POLICY & FINANCE,G450,CONTRACTUAL SERVICES,30/06/2022,390320,"4,147.57",ATLAS FACILITIES MANAGEMENT LIMITED,106088
NEWARK AND SHERWOOD DISTRICT COUNCIL,POLICY & FINANCE,G450,CTAX NSDC PARISH PRECEPT PYMTS,22/04/2022,390628,"4,125.00",BULCOTE PARISH COUNCIL,100065
NEWARK AND SHERWOOD DISTRICT COUNCIL,HOUSING REVENUE ACCOUNT,G410,SPEECH CALL MAINTENANCE,27/05/2022,393589,"4,118.37",TUNSTALL HEALTHCARE LTD,100883
NEWARK AND SHERWOOD DISTRICT COUNCIL,POLICY & FINANCE,G450,CTAX NSDC PARISH PRECEPT PYMTS,22/04/2022,390660,"4,100.00",UPTON PARISH COUNCIL,100586
NEWARK AND SHERWOOD DISTRICT COUNCIL,HOMES & COMMUNITIES,G430,MISCELLANEOUS EXPENSES,20/05/2022,393175,"4,075.00",SOCIAL ACTION HUB,107082
NEWARK AND SHERWOOD DISTRICT COUNCIL,CAPITAL,G997,CONSTRUCTION,22/04/2022,390728,"4,025.00",AVIECO LTD,107296
NEWARK AND SHERWOOD DISTRICT COUNCIL,CAPITAL,G997,CONSTRUCTION,20/05/2022,393143,"4,003.70",NOVUS PROPERTY SOLUTIONS LTD,107362
NEWARK AND SHERWOOD DISTRICT COUNCIL,CAPITAL,G997,CONSTRUCTION,20/05/2022,393145,"4,003.70",NOVUS PROPERTY SOLUTIONS LTD,107362
NEWARK AND SHERWOOD DISTRICT COUNCIL,HOUSING REVENUE ACCOUNT,G410,CONTRACTUAL SERVICES,31/05/2022,394086,"3,981.52",J WRIGHT ROOFING LTD,105753
NEWARK AND SHERWOOD DISTRICT COUNCIL,ECONOMIC DEVELOPMENT,G420,REPAIRS AND MAINTENANCE,20/05/2022,392218,"3,975.00",P J LILLEY LTD,100418
NEWARK AND SHERWOOD DISTRICT COUNCIL,ECONOMIC DEVELOPMENT,G420,ARTISTS FEES,14/04/2022,390348,"3,949.42",THE BIRMINGHAM STAGE CO (LONDON) LTD,107287
NEWARK AND SHERWOOD DISTRICT COUNCIL,ECONOMIC DEVELOPMENT,G420,CONTRACTUAL SERVICES,08/04/2022,389885,"3,928.96",WATCH-IT SECURITY SERVICES LTD,103618
NEWARK AND SHERWOOD DISTRICT COUNCIL,CAPITAL,G997,CONSTRUCTION,17/06/2022,394927,"3,914.00",TRISEC LTD,100982
NEWARK AND SHERWOOD DISTRICT COUNCIL,CAPITAL,G997,DISABLED FACILITIES,13/05/2022,392228,"3,910.00",ABAKUS ENGINEERING LTD,105379
NEWARK AND SHERWOOD DISTRICT COUNCIL,CAPITAL,G997,DISABLED FACILITIES,08/04/2022,389650,"3,905.00",JOHN WHITEHEAD PLUMBING AND HEATING,107207
NEWARK AND SHERWOOD DISTRICT COUNCIL,CAPITAL,G997,DISABLED FACILITIES,08/04/2022,389843,"3,897.00",D CRESSWELL AND SON (ELECTRICIANS) LTD,107167
NEWARK AND SHERWOOD DISTRICT COUNCIL,POLICY & FINANCE,G450,CIL LOCAL MONIES PAYMENT,27/05/2022,393678,"3,893.83",THURGARTON PARISH COUNCIL,100564
NEWARK AND SHERWOOD DISTRICT COUNCIL,CAPITAL,G997,CONSTRUCTION,31/05/2022,394017,"3,885.00",AVIECO LTD,107296
NEWARK AND SHERWOOD DISTRICT COUNCIL,CAPITAL,G997,DISABLED FACILITIES,14/04/2022,390326,"3,878.56",REDACTED PERSONAL DATA,105579
NEWARK AND SHERWOOD DISTRICT COUNCIL,ECONOMIC DEVELOPMENT,G420,AGENCY STAFF,17/06/2022,392206,"3,850.00",PAYSTREAM MY MAX 3 LTD,107549
NEWARK AND SHERWOOD DISTRICT COUNCIL,POLICY & FINANCE,G450,BROKERS FEES - INSURANCE,10/06/2022,394233,"3,850.00",ARTHUR J GALLAGHER INSURANCE BROKERS LIMITED,106423
NEWARK AND SHERWOOD DISTRICT COUNCIL,HOUSING REVENUE ACCOUNT,G410,APPLIANCE SERVICING,30/06/2022,395956,"3,830.39",RENUVO LIMITED,107076
NEWARK AND SHERWOOD DISTRICT COUNCIL,POLICY & FINANCE,G450,CTAX NSDC PARISH PRECEPT PYMTS,22/04/2022,390624,"3,830.00",BESTHORPE PARISH MEETING,100041
NEWARK AND SHERWOOD DISTRICT COUNCIL,POLICY & FINANCE,G450,COMPUTER SOFTWARE,08/04/2022,389867,"3,810.00",DATASTOX LTD,106633
NEWARK AND SHERWOOD DISTRICT COUNCIL,ECONOMIC DEVELOPMENT,G420,PROF SERV - EXTERNAL CONTRACTS,10/06/2022,394420,"3,800.00",FOXSTONE FORESTRY LTD,106901
NEWARK AND SHERWOOD DISTRICT COUNCIL,CAPITAL,G997,DISABLED FACILITIES,30/06/2022,396090,"3,773.00",OBAM DOMESTIC LIFT SERVICES LTD,106266
NEWARK AND SHERWOOD DISTRICT COUNCIL,POLICY & FINANCE,G450,CTAX NSDC PARISH PRECEPT PYMTS,22/04/2022,390647,"3,750.00",KIRTON PARISH COUNCIL,100260
NEWARK AND SHERWOOD DISTRICT COUNCIL,CAPITAL,G997,DISABLED FACILITIES,08/04/2022,389647,"3,748.58",JOHN WHITEHEAD PLUMBING AND HEATING,107207
NEWARK AND SHERWOOD DISTRICT COUNCIL,HOUSING REVENUE ACCOUNT,G410,SPEECH CALL MAINTENANCE,13/05/2022,391978,"3,747.00",TUNSTALL HEALTHCARE LTD,100883
NEWARK AND SHERWOOD DISTRICT COUNCIL,HOUSING REVENUE ACCOUNT,G410,CONTRACTUAL SERVICES,27/05/2022,393644,"3,742.69",NOVUS PROPERTY SOLUTIONS LTD,107362
NEWARK AND SHERWOOD DISTRICT COUNCIL,ECONOMIC DEVELOPMENT,G420,PROFESSIONAL SERVICES,10/06/2022,394266,"3,730.00",LEPUS CONSULTING LTD,105442
NEWARK AND SHERWOOD DISTRICT COUNCIL,ECONOMIC DEVELOPMENT,G420,AGENCY REPAYMENTS,08/04/2022,389758,"3,692.00",NEW YOUTH THEATRE (GRANTHAM),106573
NEWARK AND SHERWOOD DISTRICT COUNCIL,HOUSING REVENUE ACCOUNT,G410,APPLIANCE SERVICING,24/06/2022,395496,"3,690.00",HD ELECTRICAL SYSTEMS LTD,105293
NEWARK AND SHERWOOD DISTRICT COUNCIL,POLICY & FINANCE,G450,REPAIRS AND MAINTENANCE,30/06/2022,395832,"3,680.00",GARY HOWARD SERVICES,107504
NEWARK AND SHERWOOD DISTRICT COUNCIL,CAPITAL,G997,CONSTRUCTION,22/04/2022,390602,"3,600.80",LINDUM GROUP LTD,100651
NEWARK AND SHERWOOD DISTRICT COUNCIL,CAPITAL,G997,VEHICLE AQUISITION,30/06/2022,395923,"3,600.00",DAVENPORT BROS.,105816
NEWARK AND SHERWOOD DISTRICT COUNCIL,ECONOMIC DEVELOPMENT,G420,STREET NAME PLATE MAINTENANCE,14/04/2022,390383,"3,599.45",S P G CONSTRUCTION LTD,100477
NEWARK AND SHERWOOD DISTRICT COUNCIL,HOUSING REVENUE ACCOUNT,G410,CONTRACTUAL SERVICES,20/05/2022,393150,"3,592.50",NOVUS PROPERTY SOLUTIONS LTD,107362
NEWARK AND SHERWOOD DISTRICT COUNCIL,ECONOMIC DEVELOPMENT,G420,LICENCES,08/04/2022,389608,"3,589.52",PPL PRS LTD,106267
NEWARK AND SHERWOOD DISTRICT COUNCIL,CAPITAL,G997,CONSTRUCTION,30/06/2022,396162,"3,580.56",PETER COX LTD,100818
NEWARK AND SHERWOOD DISTRICT COUNCIL,HOMES & COMMUNITIES,G430,WIRELESS MAINTENANCE,24/06/2022,395384,"3,544.00",SYNECTICS SECURITY LTD,106788
NEWARK AND SHERWOOD DISTRICT COUNCIL,ECONOMIC DEVELOPMENT,G420,ELECTRICITY,29/04/2022,391167,"3,538.82",EDF ENERGY 1 LTD,101140
NEWARK AND SHERWOOD DISTRICT COUNCIL,HOUSING REVENUE ACCOUNT,G410,CONTRACTUAL SERVICES,30/06/2022,396052,"3,513.11",J WRIGHT ROOFING LTD,105753
NEWARK AND SHERWOOD DISTRICT COUNCIL,ECONOMIC DEVELOPMENT,G420,PROFESSIONAL SERVICES,08/04/2022,389708,"3,506.07",VIA EAST MIDLANDS LTD,105795
NEWARK AND SHERWOOD DISTRICT COUNCIL,POLICY & FINANCE,G450,COMPUTER SOFTWARE,22/04/2022,390801,"3,501.30",PAY360 LIMITED,107548
NEWARK AND SHERWOOD DISTRICT COUNCIL,ECONOMIC DEVELOPMENT,G420,AGENCY STAFF,17/06/2022,394768,"3,500.00",PAYSTREAM MY MAX 3 LTD,107549
NEWARK AND SHERWOOD DISTRICT COUNCIL,HOUSING REVENUE ACCOUNT,G410,AUDIT FEES (INTERNAL/EXTERNAL),27/05/2022,393471,"3,500.00",MAZARS LLP,106302
NEWARK AND SHERWOOD DISTRICT COUNCIL,POLICY & FINANCE,G450,CTAX NSDC PARISH PRECEPT PYMTS,22/04/2022,390616,"3,500.00",ROLLESTON PARISH COUNCIL,100466
NEWARK AND SHERWOOD DISTRICT COUNCIL,POLICY & FINANCE,G450,PROFESSIONAL SERVICES,31/05/2022,393720,"3,500.00",DJS RESEARCH LTD,107490
NEWARK AND SHERWOOD DISTRICT COUNCIL,ECONOMIC DEVELOPMENT,G420,ELECTRICITY,29/04/2022,391168,"3,491.78",EDF ENERGY 1 LTD,101140
NEWARK AND SHERWOOD DISTRICT COUNCIL,CAPITAL,G997,DISABLED FACILITIES,24/06/2022,395007,"3,483.80",VAUGHANDALE CONSTRUCTION LTD,100590
NEWARK AND SHERWOOD DISTRICT COUNCIL,ECONOMIC DEVELOPMENT,G420,PROF SERV - EXTERNAL CONTRACTS,22/04/2022,390719,"3,475.00",FOXSTONE FORESTRY LTD,106901
NEWARK AND SHERWOOD DISTRICT COUNCIL,ECONOMIC DEVELOPMENT,G420,ELECTRICITY,27/05/2022,393501,"3,473.02",EDF ENERGY 1 LTD,101140
NEWARK AND SHERWOOD DISTRICT COUNCIL,CAPITAL,G997,DISABLED FACILITIES,17/06/2022,394756,"3,471.05",MATTHEWS & TANNERT LTD,101312
NEWARK AND SHERWOOD DISTRICT COUNCIL,POLICY & FINANCE,G450,CONTRACTUAL SERVICES,13/05/2022,392487,"3,461.00",SPECIALIST COMPUTER CENTRES PLC,100773
NEWARK AND SHERWOOD DISTRICT COUNCIL,POLICY & FINANCE,G450,CONTRACTUAL SERVICES,30/06/2022,395942,"3,461.00",SPECIALIST COMPUTER CENTRES PLC,100773
NEWARK AND SHERWOOD DISTRICT COUNCIL,CAPITAL,G997,DISABLED FACILITIES,08/04/2022,389686,"3,441.26",VAUGHANDALE CONSTRUCTION LTD,100590
NEWARK AND SHERWOOD DISTRICT COUNCIL,LEISURE & ENVIRONMENT,G440,CONTRACTUAL SERVICES,30/06/2022,395840,"3,440.00",SUPERBEE COMMUNITY STUDIO CIC,107124
NEWARK AND SHERWOOD DISTRICT COUNCIL,CAPITAL,G997,DISABLED FACILITIES,08/04/2022,389995,"3,400.00",ABAKUS ENGINEERING LTD,105379
NEWARK AND SHERWOOD DISTRICT COUNCIL,LEISURE & ENVIRONMENT,G440,OIL AND LUBRICANTS,22/04/2022,390724,"3,387.03",WITHAM OIL & PAINT LTD,105620
NEWARK AND SHERWOOD DISTRICT COUNCIL,CAPITAL,G997,DISABLED FACILITIES,30/06/2022,396104,"3,384.89",JOHN WHITEHEAD PLUMBING AND HEATING,107207
NEWARK AND SHERWOOD DISTRICT COUNCIL,ECONOMIC DEVELOPMENT,G420,ARTISTS FEES,08/04/2022,389761,"3,382.20",LITTLE WANDER LTD,107514
NEWARK AND SHERWOOD DISTRICT COUNCIL,HOUSING REVENUE ACCOUNT,G410,CONTRACTUAL SERVICES,20/05/2022,393163,"3,331.79",NOVUS PROPERTY SOLUTIONS LTD,107362
NEWARK AND SHERWOOD DISTRICT COUNCIL,CAPITAL,G997,DISABLED FACILITIES,29/04/2022,391293,"3,319.00",D CRESSWELL AND SON (ELECTRICIANS) LTD,107167
NEWARK AND SHERWOOD DISTRICT COUNCIL,CAPITAL,G997,CONSTRUCTION,13/05/2022,392283,"3,300.00",STUDIO G ASSOCIATES,104539
NEWARK AND SHERWOOD DISTRICT COUNCIL,CAPITAL,G997,CONSTRUCTION,17/06/2022,394596,"3,281.54",BDA SURVEYING LTD,106961
NEWARK AND SHERWOOD DISTRICT COUNCIL,POLICY & FINANCE,G450,SUBSCRIPTIONS,17/06/2022,394603,"3,263.00",DISTRICT COUNCILS' NETWORK,103759
NEWARK AND SHERWOOD DISTRICT COUNCIL,ECONOMIC DEVELOPMENT,G420,ARTISTS FEES,31/05/2022,394126,"3,260.16",MAPLE TREE ENTERTAINMENT LIMITED,104531
NEWARK AND SHERWOOD DISTRICT COUNCIL,POLICY & FINANCE,G450,CTAX NSDC PARISH PRECEPT PYMTS,22/04/2022,390646,"3,250.00",KIRKLINGTON PARISH COUNCIL,100259
NEWARK AND SHERWOOD DISTRICT COUNCIL,CAPITAL,G997,SYSTEM UPGRADES,08/04/2022,389659,"3,250.00",HAYS SPECIALIST RECRUITMENT LTD,101794
NEWARK AND SHERWOOD DISTRICT COUNCIL,ECONOMIC DEVELOPMENT,G420,REPAIRS AND MAINTENANCE,31/05/2022,388263,"3,245.83",MAJOR WINDOWS LTD,107517
NEWARK AND SHERWOOD DISTRICT COUNCIL,CAPITAL,G997,CONSTRUCTION,22/04/2022,390603,"3,237.00",LINDUM GROUP LTD,100651
NEWARK AND SHERWOOD DISTRICT COUNCIL,HOUSING REVENUE ACCOUNT,G410,CONTRACTUAL SERVICES,30/06/2022,395526,"3,227.16",NOVUS PROPERTY SOLUTIONS LTD,107362
NEWARK AND SHERWOOD DISTRICT COUNCIL,CAPITAL,G997,CONSTRUCTION,30/06/2022,395874,"3,217.00",AVIECO LTD,107296
NEWARK AND SHERWOOD DISTRICT COUNCIL,POLICY & FINANCE,G450,HARDWARE MAINTENANCE,20/05/2022,391748,"3,200.00",VERISEC LTD,104689
NEWARK AND SHERWOOD DISTRICT COUNCIL,ECONOMIC DEVELOPMENT,G420,WOOD FUEL,01/06/2022,394218,"3,200.00",AFTERWOOD LIMITED,107473
NEWARK AND SHERWOOD DISTRICT COUNCIL,HOUSING REVENUE ACCOUNT,G410,APPLIANCE SERVICING,20/05/2022,392914,"3,195.00",T & S HEATING LTD,105748
NEWARK AND SHERWOOD DISTRICT COUNCIL,HOUSING REVENUE ACCOUNT,G410,APPLIANCE SERVICING,10/06/2022,394327,"3,195.00",T & S HEATING LTD,105748
NEWARK AND SHERWOOD DISTRICT COUNCIL,HOUSING REVENUE ACCOUNT,G410,APPLIANCE SERVICING,17/06/2022,395035,"3,195.00",T & S HEATING LTD,105748
NEWARK AND SHERWOOD DISTRICT COUNCIL,HOUSING REVENUE ACCOUNT,G410,APPLIANCE SERVICING,30/06/2022,396004,"3,195.00",T & S HEATING LTD,105748
NEWARK AND SHERWOOD DISTRICT COUNCIL,LEISURE & ENVIRONMENT,G440,MATERIALS,17/06/2022,394697,"3,171.04",BRUSH TECHNOLOGY LTD,104952
NEWARK AND SHERWOOD DISTRICT COUNCIL,LEISURE & ENVIRONMENT,G440,PETROL AND DIESEL,24/06/2022,395410,"3,170.00",BRENNTAG UK LTD,100054
NEWARK AND SHERWOOD DISTRICT COUNCIL,POLICY & FINANCE,G450,CTAX NSDC PARISH PRECEPT PYMTS,22/04/2022,390630,"3,152.00",CAUNTON PARISH COUNCIL,100077
NEWARK AND SHERWOOD DISTRICT COUNCIL,CAPITAL,G997,CONSTRUCTION,29/04/2022,391247,"3,150.56",AARON SERVICES,107225
NEWARK AND SHERWOOD DISTRICT COUNCIL,ECONOMIC DEVELOPMENT,G420,ARTISTS FEES,06/05/2022,391717,"3,120.11",MAPLE TREE ENTERTAINMENT LIMITED,104531
NEWARK AND SHERWOOD DISTRICT COUNCIL,POLICY & FINANCE,G450,CTAX NSDC PARISH PRECEPT PYMTS,22/04/2022,390662,"3,100.00",WELLOW PARISH COUNCIL,100598
NEWARK AND SHERWOOD DISTRICT COUNCIL,CAPITAL,G997,CONSTRUCTION,14/04/2022,390341,"3,091.24",NEIL SHACKLOCK PLUMBING AND HEATING  LTD,104679
NEWARK AND SHERWOOD DISTRICT COUNCIL,LEISURE & ENVIRONMENT,G440,AGENCY STAFF,20/05/2022,393181,"3,072.00",VIVID RESOURCING,106488
NEWARK AND SHERWOOD DISTRICT COUNCIL,CAPITAL,G997,DISABLED FACILITIES,30/06/2022,396113,"3,053.93",PRISM MEDICAL UK,100918
NEWARK AND SHERWOOD DISTRICT COUNCIL,CAPITAL,G997,CONSTRUCTION,20/05/2022,393147,"3,042.22",NOVUS PROPERTY SOLUTIONS LTD,107362
NEWARK AND SHERWOOD DISTRICT COUNCIL,ECONOMIC DEVELOPMENT,G420,FEASIBILITY WORKS/STUDY,14/04/2022,389971,"3,024.00",WILLIAM SAUNDERS PARTNERSHIP LLP,107133
NEWARK AND SHERWOOD DISTRICT COUNCIL,POLICY & FINANCE,G450,ELECTION EXPENSES,17/06/2022,394922,"3,009.14",PRINT IMAGE FACILITIES LLP,101902
NEWARK AND SHERWOOD DISTRICT COUNCIL,ECONOMIC DEVELOPMENT,G420,CONTRACTUAL SERVICES,08/04/2022,389547,"3,000.00",CLIPSTONE SOCIAL CLUB LTD,105475
NEWARK AND SHERWOOD DISTRICT COUNCIL,HOMES & COMMUNITIES,G430,CONTRIBUTION FROM GRANTS,27/05/2022,393331,"3,000.00",KIRTON PARISH COUNCIL,100260
NEWARK AND SHERWOOD DISTRICT COUNCIL,HOUSING REVENUE ACCOUNT,G410,APPLIANCE SERVICING,24/06/2022,395295,"2,982.00",T & S HEATING LTD,105748
NEWARK AND SHERWOOD DISTRICT COUNCIL,ECONOMIC DEVELOPMENT,G420,OTHER EQUIPMENT AND TOOLS,08/04/2022,389444,"2,981.89",ARCO LIMITED,102144
NEWARK AND SHERWOOD DISTRICT COUNCIL,ECONOMIC DEVELOPMENT,G420,PROFESSIONAL SERVICES,17/06/2022,393438,"2,975.00",BAKERBAIRD COMMUNICATIONS LTD,107392
NEWARK AND SHERWOOD DISTRICT COUNCIL,CAPITAL,G997,CONSTRUCTION,13/05/2022,392289,"2,969.99",AARON SERVICES,107225
NEWARK AND SHERWOOD DISTRICT COUNCIL,POLICY & FINANCE,G450,CIL LOCAL MONIES PAYMENT,27/05/2022,393676,"2,969.55",NORTH MUSKHAM PARISH COUNCIL,100383
NEWARK AND SHERWOOD DISTRICT COUNCIL,CAPITAL,G997,CONSTRUCTION,20/05/2022,393141,"2,950.00",NOVUS PROPERTY SOLUTIONS LTD,107362
NEWARK AND SHERWOOD DISTRICT COUNCIL,CAPITAL,G997,CONSTRUCTION,20/05/2022,393142,"2,950.00",NOVUS PROPERTY SOLUTIONS LTD,107362
NEWARK AND SHERWOOD DISTRICT COUNCIL,HOUSING REVENUE ACCOUNT,G410,OTHER EQUIPMENT AND TOOLS,28/05/2022,393964,"2,949.63",QUANTUM BILLING - INPROVA GROUP,106944
NEWARK AND SHERWOOD DISTRICT COUNCIL,HOUSING REVENUE ACCOUNT,G410,EMPTY PAIL CLOSETS,17/06/2022,394643,"2,929.22",R A DALTON LTD,105998
NEWARK AND SHERWOOD DISTRICT COUNCIL,CAPITAL,G997,CONSTRUCTION,30/06/2022,395937,"2,925.00",YATES ENGINEERING LTD,107180
NEWARK AND SHERWOOD DISTRICT COUNCIL,CAPITAL,G997,CONSTRUCTION,30/06/2022,391784,"2,921.25",KEITH SIMPSON ASSOCIATES LIMITED,106834
NEWARK AND SHERWOOD DISTRICT COUNCIL,CAPITAL,G997,CONSTRUCTION,17/06/2022,394973,"2,909.02",MATTHEWS & TANNERT LTD,101312
NEWARK AND SHERWOOD DISTRICT COUNCIL,ECONOMIC DEVELOPMENT,G420,ARTISTS FEES,20/05/2022,392819,"2,903.94",CBB ENTERTAINMENTS LTD,107482
NEWARK AND SHERWOOD DISTRICT COUNCIL,POLICY & FINANCE,G450,CTAX NSDC PARISH PRECEPT PYMTS,22/04/2022,390644,"2,902.00",HARBY PARISH COUNCIL,100197
NEWARK AND SHERWOOD DISTRICT COUNCIL,CAPITAL,G997,CONSTRUCTION,08/04/2022,389525,"2,900.87",MATTHEWS & TANNERT LTD,101312
NEWARK AND SHERWOOD DISTRICT COUNCIL,HOUSING REVENUE ACCOUNT,G410,SUBSCRIPTIONS,30/06/2022,395929,"2,899.00",ASSOCIATION OF RETAINED COUNCIL HOUSING,107228
NEWARK AND SHERWOOD DISTRICT COUNCIL,ECONOMIC DEVELOPMENT,G420,INWARD INVESTMENT MARKETING,27/05/2022,393344,"2,878.50",EVERYDAY CHAMPIONS (CONFERENCING) LTD,107498
NEWARK AND SHERWOOD DISTRICT COUNCIL,ECONOMIC DEVELOPMENT,G420,RENT,24/06/2022,395363,"2,875.00",SHOTSTONE LTD,100498
NEWARK AND SHERWOOD DISTRICT COUNCIL,POLICY & FINANCE,G450,COMPUTER SOFTWARE MAINTENANCE,08/04/2022,389681,"2,868.75",MERITEC LTD,105609
NEWARK AND SHERWOOD DISTRICT COUNCIL,POLICY & FINANCE,G450,CONTRACTUAL SERVICES,29/04/2022,391255,"2,850.00",REDACTED PERSONAL DATA,107509
NEWARK AND SHERWOOD DISTRICT COUNCIL,CAPITAL,G997,CONSTRUCTION,17/06/2022,394672,"2,846.09",EUROPEAN ASBESTOS SERVICES LTD,107313
NEWARK AND SHERWOOD DISTRICT COUNCIL,ECONOMIC DEVELOPMENT,G420,LOCAL NATURE RESERVES MAINTNCE,08/04/2022,389553,"2,840.00",FOXSTONE FORESTRY LTD,106901
NEWARK AND SHERWOOD DISTRICT COUNCIL,ECONOMIC DEVELOPMENT,G420,CONTRACTUAL SERVICES,08/04/2022,389436,"2,800.00",FOXSTONE FORESTRY LTD,106901
NEWARK AND SHERWOOD DISTRICT COUNCIL,POLICY & FINANCE,G450,COURSE FEES,20/05/2022,392209,"2,795.00",HEMMING GROUP LTD,102616
NEWARK AND SHERWOOD DISTRICT COUNCIL,HOUSING REVENUE ACCOUNT,G410,CONTRACTUAL SERVICES,20/05/2022,393170,"2,780.12",NOVUS PROPERTY SOLUTIONS LTD,107362
NEWARK AND SHERWOOD DISTRICT COUNCIL,LEISURE & ENVIRONMENT,G440,PETROL AND DIESEL,06/05/2022,391772,"2,770.92",BRENNTAG UK LTD,100054
NEWARK AND SHERWOOD DISTRICT COUNCIL,HOUSING REVENUE ACCOUNT,G410,CONTRACTUAL SERVICES,20/05/2022,393152,"2,769.73",NOVUS PROPERTY SOLUTIONS LTD,107362
NEWARK AND SHERWOOD DISTRICT COUNCIL,HOUSING REVENUE ACCOUNT,G410,MATERIALS,22/04/2022,390705,"2,758.80",PTS - CITY PLUMBING SUPPLIES LTD,107157
NEWARK AND SHERWOOD DISTRICT COUNCIL,HOUSING REVENUE ACCOUNT,G410,CONTRACTUAL SERVICES,20/05/2022,393168,"2,754.87",NOVUS PROPERTY SOLUTIONS LTD,107362
NEWARK AND SHERWOOD DISTRICT COUNCIL,POLICY & FINANCE,G450,RENT,14/04/2022,390378,"2,741.35",THE CULSHAW PARTNERSHIP,106872
NEWARK AND SHERWOOD DISTRICT COUNCIL,HOUSING REVENUE ACCOUNT,G410,CONTRACTUAL SERVICES,06/05/2022,391901,"2,735.16",DCR ELECTRICAL LTD,101799
NEWARK AND SHERWOOD DISTRICT COUNCIL,POLICY & FINANCE,G450,PROFESSIONAL SERVICES,13/05/2022,392431,"2,733.31",REDACTED PERSONAL DATA,104889
NEWARK AND SHERWOOD DISTRICT COUNCIL,LEISURE & ENVIRONMENT,G440,CONTRACTUAL SERVICES,14/04/2022,390345,"2,730.15",SMITHS TIMBER MERCHANTS LTD,104417
NEWARK AND SHERWOOD DISTRICT COUNCIL,CAPITAL,G997,CONSTRUCTION,30/06/2022,396057,"2,727.60",P J LILLEY LTD,100418
NEWARK AND SHERWOOD DISTRICT COUNCIL,HOUSING REVENUE ACCOUNT,G410,CONTRACTUAL SERVICES,20/05/2022,393166,"2,726.46",NOVUS PROPERTY SOLUTIONS LTD,107362
NEWARK AND SHERWOOD DISTRICT COUNCIL,ECONOMIC DEVELOPMENT,G420,ARTISTS FEES,06/05/2022,391719,"2,695.93",TONY DENTON PROMOTIONS LTD,105694
NEWARK AND SHERWOOD DISTRICT COUNCIL,HOUSING REVENUE ACCOUNT,G410,MATERIALS,22/04/2022,390703,"2,677.40",PTS - CITY PLUMBING SUPPLIES LTD,107157
NEWARK AND SHERWOOD DISTRICT COUNCIL,HOUSING REVENUE ACCOUNT,G410,CONTRACTUAL SERVICES,30/06/2022,395934,"2,664.62",RENUVO LIMITED,107076
NEWARK AND SHERWOOD DISTRICT COUNCIL,HOUSING REVENUE ACCOUNT,G410,GAS,17/06/2022,395027,"2,644.68",BRITISH GAS TRADING LTD,104524
NEWARK AND SHERWOOD DISTRICT COUNCIL,HOUSING REVENUE ACCOUNT,G410,GAS,13/05/2022,392681,"2,622.77",GAZPROM MARKETING & TRADING RETAIL LTD,107246
NEWARK AND SHERWOOD DISTRICT COUNCIL,CAPITAL,G997,SYSTEM UPGRADES,22/04/2022,390723,"2,600.00",HAYS SPECIALIST RECRUITMENT LTD,101794
NEWARK AND SHERWOOD DISTRICT COUNCIL,CAPITAL,G997,SYSTEM UPGRADES,17/06/2022,392212,"2,600.00",HAYS SPECIALIST RECRUITMENT LTD,101794
NEWARK AND SHERWOOD DISTRICT COUNCIL,CAPITAL,G997,SYSTEM UPGRADES,17/06/2022,392221,"2,600.00",HAYS SPECIALIST RECRUITMENT LTD,101794
NEWARK AND SHERWOOD DISTRICT COUNCIL,HOUSING REVENUE ACCOUNT,G410,APPLIANCE SERVICING,17/06/2022,394937,"2,590.00",CLOSOMAT LTD,106629
NEWARK AND SHERWOOD DISTRICT COUNCIL,HOUSING REVENUE ACCOUNT,G410,CONTRACTUAL SERVICES,20/05/2022,393156,"2,579.73",NOVUS PROPERTY SOLUTIONS LTD,107362
NEWARK AND SHERWOOD DISTRICT COUNCIL,ECONOMIC DEVELOPMENT,G420,REPAIRS AND MAINTENANCE,27/05/2022,393459,"2,575.00",P J LILLEY LTD,100418
NEWARK AND SHERWOOD DISTRICT COUNCIL,POLICY & FINANCE,G450,HARDWARE MAINTENANCE,08/04/2022,389037,"2,570.01",TEAM VIEWER GERMANY GMBH,107158
NEWARK AND SHERWOOD DISTRICT COUNCIL,ECONOMIC DEVELOPMENT,G420,REPAIRS AND MAINTENANCE,13/05/2022,392219,"2,564.00",P J LILLEY LTD,100418
NEWARK AND SHERWOOD DISTRICT COUNCIL,HOUSING REVENUE ACCOUNT,G410,APPLIANCE SERVICING,10/06/2022,394322,"2,556.00",T & S HEATING LTD,105748
NEWARK AND SHERWOOD DISTRICT COUNCIL,HOUSING REVENUE ACCOUNT,G410,APPLIANCE SERVICING,10/06/2022,394324,"2,556.00",T & S HEATING LTD,105748
NEWARK AND SHERWOOD DISTRICT COUNCIL,ECONOMIC DEVELOPMENT,G420,ARTISTS FEES,10/06/2022,394276,"2,553.11",REDACTED PERSONAL DATA,105706
NEWARK AND SHERWOOD DISTRICT COUNCIL,LEISURE & ENVIRONMENT,G440,REFUSE BIN PURCHASES,31/05/2022,393392,"2,541.00",UK CONTAINER MAINTENANCE LTD,100578
NEWARK AND SHERWOOD DISTRICT COUNCIL,LEISURE & ENVIRONMENT,G440,MATERIALS,20/05/2022,392321,"2,531.15",DENNIS EAGLE LTD,100797
NEWARK AND SHERWOOD DISTRICT COUNCIL,ECONOMIC DEVELOPMENT,G420,CLEANING CONTRACT,17/06/2022,394746,"2,523.96",ATLAS FACILITIES MANAGEMENT LIMITED,106088
NEWARK AND SHERWOOD DISTRICT COUNCIL,ECONOMIC DEVELOPMENT,G420,ELECTRICITY,27/05/2022,393500,"2,521.63",EDF ENERGY 1 LTD,101140
NEWARK AND SHERWOOD DISTRICT COUNCIL,CAPITAL,G997,CONSTRUCTION,20/05/2022,393139,"2,520.00",NOVUS PROPERTY SOLUTIONS LTD,107362
NEWARK AND SHERWOOD DISTRICT COUNCIL,CAPITAL,G997,CONSTRUCTION,20/05/2022,393140,"2,520.00",NOVUS PROPERTY SOLUTIONS LTD,107362
NEWARK AND SHERWOOD DISTRICT COUNCIL,HOUSING REVENUE ACCOUNT,G410,CONTRACTUAL SERVICES,30/06/2022,395941,"2,500.75",RENUVO LIMITED,107076
NEWARK AND SHERWOOD DISTRICT COUNCIL,HOUSING REVENUE ACCOUNT,G410,AGENCY STAFF,30/06/2022,396152,"2,500.00",NIYAA PEOPLE,106937
NEWARK AND SHERWOOD DISTRICT COUNCIL,CAPITAL,G997,CONSTRUCTION,13/05/2022,392153,"2,500.00",BSP CONSULTING,104667
NEWARK AND SHERWOOD DISTRICT COUNCIL,POLICY & FINANCE,G450,CTAX NSDC PARISH PRECEPT PYMTS,22/04/2022,390609,"2,500.00",EGMANTON PARISH MEETING,100145
NEWARK AND SHERWOOD DISTRICT COUNCIL,HOMES & COMMUNITIES,G430,GOV GRANT EXPENDITURE,29/04/2022,391249,"2,500.00",HOME-START NEWARK,100212
NEWARK AND SHERWOOD DISTRICT COUNCIL,HOMES & COMMUNITIES,G430,GOV GRANT EXPENDITURE,10/06/2022,394450,"2,500.00",HOME-START NEWARK,100212
NEWARK AND SHERWOOD DISTRICT COUNCIL,POLICY & FINANCE,G450,PROFESSIONAL SERVICES,08/04/2022,385906,"2,500.00",CIVICA UK LTD,105867
NEWARK AND SHERWOOD DISTRICT COUNCIL,ECONOMIC DEVELOPMENT,G420,REPAIRS AND MAINTENANCE,08/04/2022,389909,"2,500.00",LAFFEYS LTD,105248
NEWARK AND SHERWOOD DISTRICT COUNCIL,HOUSING REVENUE ACCOUNT,G410,APPLIANCE SERVICING,30/06/2022,395944,"2,497.75",RENUVO LIMITED,107076
NEWARK AND SHERWOOD DISTRICT COUNCIL,LEISURE & ENVIRONMENT,G440,EQUIPMENT R&R PROJECT 1,30/06/2022,395805,"2,495.00",CREATIVE VEHICLE WRAPPING LIMITED,107233
NEWARK AND SHERWOOD DISTRICT COUNCIL,CAPITAL,G997,VEHICLE AQUISITION,22/04/2022,390733,"2,495.00",CREATIVE VEHICLE WRAPPING LIMITED,107233
NEWARK AND SHERWOOD DISTRICT COUNCIL,ECONOMIC DEVELOPMENT,G420,ARTISTS FEES,06/05/2022,391708,"2,488.18",CHIMES ENTERTAINMENT AGENCY LTD,107485
NEWARK AND SHERWOOD DISTRICT COUNCIL,HOUSING REVENUE ACCOUNT,G410,CONTRACTUAL SERVICES,27/05/2022,393645,"2,482.33",NOVUS PROPERTY SOLUTIONS LTD,107362
NEWARK AND SHERWOOD DISTRICT COUNCIL,HOUSING REVENUE ACCOUNT,G410,CONTRACTUAL SERVICES,20/05/2022,393161,"2,478.44",NOVUS PROPERTY SOLUTIONS LTD,107362
NEWARK AND SHERWOOD DISTRICT COUNCIL,HOUSING REVENUE ACCOUNT,G410,CONTRACTUAL SERVICES,20/05/2022,393162,"2,478.44",NOVUS PROPERTY SOLUTIONS LTD,107362
NEWARK AND SHERWOOD DISTRICT COUNCIL,HOUSING REVENUE ACCOUNT,G410,SPEECH CALL MAINTENANCE,27/05/2022,393587,"2,478.10",TUNSTALL HEALTHCARE LTD,100883
NEWARK AND SHERWOOD DISTRICT COUNCIL,HOMES & COMMUNITIES,G430,CONTRACTUAL SERVICES,14/04/2022,390376,"2,450.00",SOCIAL & MARKET STRATEGIC RESEARCH LTD,107561
NEWARK AND SHERWOOD DISTRICT COUNCIL,POLICY & FINANCE,G450,CTAX NSDC PARISH PRECEPT PYMTS,22/04/2022,390656,"2,450.00",SOUTH SCARLE PARISH MEETING,100513
NEWARK AND SHERWOOD DISTRICT COUNCIL,HOUSING REVENUE ACCOUNT,G410,CONTRACTUAL SERVICES,27/05/2022,393653,"2,449.75",NOVUS PROPERTY SOLUTIONS LTD,107362
NEWARK AND SHERWOOD DISTRICT COUNCIL,HOUSING REVENUE ACCOUNT,G410,PERIODIC ELECTRICAL TESTING,17/06/2022,394935,"2,449.11",AARON SERVICES,107225
NEWARK AND SHERWOOD DISTRICT COUNCIL,HOUSING REVENUE ACCOUNT,G410,CONTRACTUAL SERVICES,20/05/2022,393159,"2,448.92",NOVUS PROPERTY SOLUTIONS LTD,107362
NEWARK AND SHERWOOD DISTRICT COUNCIL,HOUSING REVENUE ACCOUNT,G410,CONTRACTUAL SERVICES,27/05/2022,393643,"2,445.03",NOVUS PROPERTY SOLUTIONS LTD,107362
NEWARK AND SHERWOOD DISTRICT COUNCIL,ECONOMIC DEVELOPMENT,G420,PROFESSIONAL SERVICES,08/04/2022,389563,"2,430.00",FLYING COLOURS ENTERTAINMENT,107502
NEWARK AND SHERWOOD DISTRICT COUNCIL,ECONOMIC DEVELOPMENT,G420,REPAIRS AND MAINTENANCE,30/06/2022,396128,"2,428.22",R J WILSON CONTRACTORS LTD,107172
NEWARK AND SHERWOOD DISTRICT COUNCIL,POLICY & FINANCE,G450,SUBSCRIPTIONS,22/04/2022,390838,"2,422.00",APSE,100017
NEWARK AND SHERWOOD DISTRICT COUNCIL,HOUSING REVENUE ACCOUNT,G410,TELEPHONES,20/06/2022,395205,"2,420.04",DAISY CORPORATE SERVICES TRADING LTD,106630
NEWARK AND SHERWOOD DISTRICT COUNCIL,HOUSING REVENUE ACCOUNT,G410,TELEPHONES,25/04/2022,391105,"2,419.34",DAISY CORPORATE SERVICES TRADING LTD,106630
NEWARK AND SHERWOOD DISTRICT COUNCIL,CAPITAL,G997,CONSTRUCTION,30/06/2022,395831,"2,400.00",PREMIER MOBILITY (UK) LIMITED,106576
NEWARK AND SHERWOOD DISTRICT COUNCIL,HOUSING REVENUE ACCOUNT,G410,PERIODIC ELECTRICAL TESTING,30/06/2022,396135,"2,400.00",FARRENDALE LTD,106640
NEWARK AND SHERWOOD DISTRICT COUNCIL,HOUSING REVENUE ACCOUNT,G410,TELEPHONES,18/05/2022,392807,"2,395.02",DAISY CORPORATE SERVICES TRADING LTD,106630
NEWARK AND SHERWOOD DISTRICT COUNCIL,ECONOMIC DEVELOPMENT,G420,PREMISES REPAIRS & RENEWALS,08/04/2022,389617,"2,377.00",JCP POWER & DATA CONTRACTORS LTD,100243
NEWARK AND SHERWOOD DISTRICT COUNCIL,HOUSING REVENUE ACCOUNT,G410,LEGIONELLA TESTING & REMEDIALS,29/04/2022,391343,"2,364.10",SECOND ELEMENT LTD,105702
NEWARK AND SHERWOOD DISTRICT COUNCIL,CAPITAL,G997,CONSTRUCTION,14/04/2022,390391,"2,363.40",SMS PLC,107081
NEWARK AND SHERWOOD DISTRICT COUNCIL,HOUSING REVENUE ACCOUNT,G410,CONTRACTUAL SERVICES,20/05/2022,393158,"2,350.92",NOVUS PROPERTY SOLUTIONS LTD,107362
NEWARK AND SHERWOOD DISTRICT COUNCIL,CAPITAL,G997,CONSTRUCTION,30/06/2022,396169,"2,350.00",NOVUS PROPERTY SOLUTIONS LTD,107362
NEWARK AND SHERWOOD DISTRICT COUNCIL,HOUSING REVENUE ACCOUNT,G410,CONTRACTUAL SERVICES,24/06/2022,395525,"2,350.00",NOVUS PROPERTY SOLUTIONS LTD,107362
NEWARK AND SHERWOOD DISTRICT COUNCIL,HOUSING REVENUE ACCOUNT,G410,APPLIANCE SERVICING,24/06/2022,395482,"2,343.00",T & S HEATING LTD,105748
NEWARK AND SHERWOOD DISTRICT COUNCIL,CAPITAL,G997,CONSTRUCTION,17/06/2022,394957,"2,342.62",ELITE CONSTRUCTION NR LTD,105936
NEWARK AND SHERWOOD DISTRICT COUNCIL,CAPITAL,G997,CONSTRUCTION,29/04/2022,391354,"2,337.58",HARMONY FIRE LTD,107179
NEWARK AND SHERWOOD DISTRICT COUNCIL,HOMES & COMMUNITIES,G430,ADVERTISING,08/04/2022,389565,"2,330.00",ULTIMATE PRINT & DESIGN LIMITED,106433
NEWARK AND SHERWOOD DISTRICT COUNCIL,HOUSING REVENUE ACCOUNT,G410,CONTRACTUAL SERVICES,20/05/2022,393167,"2,329.80",NOVUS PROPERTY SOLUTIONS LTD,107362
NEWARK AND SHERWOOD DISTRICT COUNCIL,POLICY & FINANCE,G450,AGENCY STAFF,17/06/2022,392714,"2,323.75",SELLICK PARTNERSHIP LTD,106780
NEWARK AND SHERWOOD DISTRICT COUNCIL,POLICY & FINANCE,G450,CTAX NSDC PARISH PRECEPT PYMTS,22/04/2022,390634,"2,318.50",EAKRING PARISH COUNCIL,100138
NEWARK AND SHERWOOD DISTRICT COUNCIL,ECONOMIC DEVELOPMENT,G420,ARTISTS FEES,31/05/2022,394124,"2,313.93",RLN MUSIC,106140
NEWARK AND SHERWOOD DISTRICT COUNCIL,HOUSING REVENUE ACCOUNT,G410,INSURANCE,08/04/2022,389593,"2,311.38",MARSH  LTD UK,105876
NEWARK AND SHERWOOD DISTRICT COUNCIL,HOUSING REVENUE ACCOUNT,G410,EMPTY PAIL CLOSETS,29/04/2022,391349,"2,310.00",R A DALTON LTD,105998
NEWARK AND SHERWOOD DISTRICT COUNCIL,POLICY & FINANCE,G450,CTAX NSDC PARISH PRECEPT PYMTS,22/04/2022,390648,"2,300.00",LAXTON & MOORHOUSE PARISH COUNCIL,100272
NEWARK AND SHERWOOD DISTRICT COUNCIL,ECONOMIC DEVELOPMENT,G420,REPAIRS AND MAINTENANCE,08/04/2022,389621,"2,300.00",JCP POWER & DATA CONTRACTORS LTD,100243
NEWARK AND SHERWOOD DISTRICT COUNCIL,HOUSING REVENUE ACCOUNT,G410,MATERIALS,17/06/2022,394894,"2,289.61",PTS - CITY PLUMBING SUPPLIES LTD,107157
NEWARK AND SHERWOOD DISTRICT COUNCIL,HOUSING REVENUE ACCOUNT,G410,INSURANCE,17/06/2022,394621,"2,275.67",MARSH  LTD UK,105876
NEWARK AND SHERWOOD DISTRICT COUNCIL,CAPITAL,G997,CONSTRUCTION,22/04/2022,390825,"2,275.56",ROBERT WOODHEAD LTD,100461
NEWARK AND SHERWOOD DISTRICT COUNCIL,POLICY & FINANCE,G450,CTAX NSDC PARISH PRECEPT PYMTS,22/04/2022,390663,"2,274.00",WESTON PARISH COUNCIL,100603
NEWARK AND SHERWOOD DISTRICT COUNCIL,HOUSING REVENUE ACCOUNT,G410,MATERIALS,30/06/2022,396037,"2,268.42",PTS - CITY PLUMBING SUPPLIES LTD,107157
NEWARK AND SHERWOOD DISTRICT COUNCIL,ECONOMIC DEVELOPMENT,G420,ELECTRICITY,20/05/2022,392676,"2,262.92",EDF ENERGY 1 LTD,101140
NEWARK AND SHERWOOD DISTRICT COUNCIL,CAPITAL,G997,DISABLED FACILITIES,13/05/2022,392503,"2,252.34",JOHN WHITEHEAD PLUMBING AND HEATING,107207
NEWARK AND SHERWOOD DISTRICT COUNCIL,CAPITAL,G997,DISABLED FACILITIES,30/06/2022,396126,"2,251.00",DOLPHIN MOBILITY EAST MIDLANDS LTD,100130
NEWARK AND SHERWOOD DISTRICT COUNCIL,CAPITAL,G997,CONSTRUCTION,13/05/2022,392285,"2,250.00",STUDIO G ASSOCIATES,104539
NEWARK AND SHERWOOD DISTRICT COUNCIL,HOUSING REVENUE ACCOUNT,G410,FIRE ALARM AND EMERGENCY LIGHT,27/05/2022,393594,"2,250.00",HD ELECTRICAL SYSTEMS LTD,105293
NEWARK AND SHERWOOD DISTRICT COUNCIL,ECONOMIC DEVELOPMENT,G420,INWARD INVESTMENT MARKETING,13/05/2022,392230,"2,250.00",ILIFFE MEDIA PUBLISHING LTD,106238
NEWARK AND SHERWOOD DISTRICT COUNCIL,POLICY & FINANCE,G450,AGENCY STAFF,20/05/2022,389866,"2,245.65",SELLICK PARTNERSHIP LTD,106780
NEWARK AND SHERWOOD DISTRICT COUNCIL,ECONOMIC DEVELOPMENT,G420,REPAIRS AND MAINTENANCE,27/05/2022,393435,"2,234.40",R J WILSON CONTRACTORS LTD,107172
NEWARK AND SHERWOOD DISTRICT COUNCIL,CAPITAL,G997,DISABLED FACILITIES,08/04/2022,389952,"2,232.00",STANNAH LIFTS SERVICE LTD,101327
NEWARK AND SHERWOOD DISTRICT COUNCIL,POLICY & FINANCE,G450,AGENCY STAFF,06/05/2022,391813,"2,228.05",SELLICK PARTNERSHIP LTD,106780
NEWARK AND SHERWOOD DISTRICT COUNCIL,CAPITAL,G997,CONSTRUCTION,08/04/2022,389717,"2,204.00",HUBREN BUILDING SERVICES LTD,107419
NEWARK AND SHERWOOD DISTRICT COUNCIL,POLICY & FINANCE,G450,PROFESSIONAL SERVICES,13/05/2022,392234,"2,200.00",INFORM CPI LIMITED,104513
NEWARK AND SHERWOOD DISTRICT COUNCIL,POLICY & FINANCE,G450,WATER SAFETY (LEGIONELLA),30/06/2022,394760,"2,200.00",COOPER PLUMBING,100110
NEWARK AND SHERWOOD DISTRICT COUNCIL,HOUSING REVENUE ACCOUNT,G410,MATERIALS,13/05/2022,392445,"2,192.58",METRO ROD LTD,106655
NEWARK AND SHERWOOD DISTRICT COUNCIL,CAPITAL,G997,CONSTRUCTION,22/04/2022,390845,"2,192.06",AARON SERVICES,107225
NEWARK AND SHERWOOD DISTRICT COUNCIL,LEISURE & ENVIRONMENT,G440,MATERIALS,22/04/2022,390729,"2,191.00",STRAIGHTSET LTD,100523
NEWARK AND SHERWOOD DISTRICT COUNCIL,HOUSING REVENUE ACCOUNT,G410,CONTRACTUAL SERVICES,20/05/2022,393165,"2,177.44",NOVUS PROPERTY SOLUTIONS LTD,107362
NEWARK AND SHERWOOD DISTRICT COUNCIL,ECONOMIC DEVELOPMENT,G420,EXP ADDITIONAL RESTRICTIONS GR,31/05/2022,394038,"2,161.66",DEYTON BELL LIMITED,107305
NEWARK AND SHERWOOD DISTRICT COUNCIL,HOUSING REVENUE ACCOUNT,G410,ELECTRICITY,29/04/2022,391285,"2,158.43",EON NEXT ENERGY LIMITED,107497
NEWARK AND SHERWOOD DISTRICT COUNCIL,ECONOMIC DEVELOPMENT,G420,CONTRACTUAL SERVICES,27/05/2022,393177,"2,152.50",CRYSTAL CLEAN SERVICE LTD,106324
NEWARK AND SHERWOOD DISTRICT COUNCIL,CAPITAL,G997,CONSTRUCTION,20/05/2022,392874,"2,150.00",PREMIER MOBILITY (UK) LIMITED,106576
NEWARK AND SHERWOOD DISTRICT COUNCIL,POLICY & FINANCE,G450,CTAX NSDC PARISH PRECEPT PYMTS,22/04/2022,390618,"2,150.00",CAYTHORPE PARISH COUNCIL,100078
NEWARK AND SHERWOOD DISTRICT COUNCIL,HOMES & COMMUNITIES,G430,PROMOTION OF EVENTS,27/05/2022,393325,"2,150.00",IMAGESKOOL,101712
NEWARK AND SHERWOOD DISTRICT COUNCIL,ECONOMIC DEVELOPMENT,G420,POSTAGES,08/04/2022,389555,"2,126.04",JG MAILING LTD,107252
NEWARK AND SHERWOOD DISTRICT COUNCIL,ECONOMIC DEVELOPMENT,G420,COMMUNICATION & ADVERTISING,17/06/2022,393439,"2,125.00",TOR STUDIO LIMITED,107470
NEWARK AND SHERWOOD DISTRICT COUNCIL,POLICY & FINANCE,G450,AGENCY STAFF,08/04/2022,387426,"2,113.10",SELLICK PARTNERSHIP LTD,106780
NEWARK AND SHERWOOD DISTRICT COUNCIL,POLICY & FINANCE,G450,AGENCY STAFF,31/05/2022,390389,"2,113.10",SELLICK PARTNERSHIP LTD,106780
NEWARK AND SHERWOOD DISTRICT COUNCIL,LEISURE & ENVIRONMENT,G440,PETROL AND DIESEL,08/04/2022,389441,"2,099.80",PACE FUELCARE - CERTAS ENERGY UK LTD,106340
NEWARK AND SHERWOOD DISTRICT COUNCIL,HOUSING REVENUE ACCOUNT,G410,CONTRACTUAL SERVICES,13/05/2022,392362,"2,096.71",J WRIGHT ROOFING LTD,105753
NEWARK AND SHERWOOD DISTRICT COUNCIL,ECONOMIC DEVELOPMENT,G420,CLEANING CONTRACT,06/05/2022,391821,"2,093.60",CRYSTAL CLEAN SERVICE LTD,106324
NEWARK AND SHERWOOD DISTRICT COUNCIL,POLICY & FINANCE,G450,AGENCY STAFF,08/04/2022,386930,"2,090.00",SELLICK PARTNERSHIP LTD,106780
NEWARK AND SHERWOOD DISTRICT COUNCIL,HOUSING REVENUE ACCOUNT,G410,ELECTRICITY,29/04/2022,391487,"2,087.85",SCOTTISH & SOUTHERN ENERGY GROUP,103454
NEWARK AND SHERWOOD DISTRICT COUNCIL,LEISURE & ENVIRONMENT,G440,MATERIALS,10/06/2022,394282,"2,079.50",TERBERG MATEC UK LTD,100541
NEWARK AND SHERWOOD DISTRICT COUNCIL,POLICY & FINANCE,G450,AGENCY STAFF,06/05/2022,390379,"2,071.85",SELLICK PARTNERSHIP LTD,106780
NEWARK AND SHERWOOD DISTRICT COUNCIL,ECONOMIC DEVELOPMENT,G420,ARTISTS FEES,06/05/2022,391705,"2,055.50",REDACTED PERSONAL DATA,105689
NEWARK AND SHERWOOD DISTRICT COUNCIL,HOUSING REVENUE ACCOUNT,G410,CONTRACTUAL SERVICES,20/05/2022,393164,"2,053.25",NOVUS PROPERTY SOLUTIONS LTD,107362
NEWARK AND SHERWOOD DISTRICT COUNCIL,ECONOMIC DEVELOPMENT,G420,PROFESSIONAL SERVICES,22/04/2022,390859,"2,050.00",ELMSWOOD CARPENTRY SERVICES,107238
NEWARK AND SHERWOOD DISTRICT COUNCIL,HOUSING REVENUE ACCOUNT,G410,GAS,06/06/2022,394225,"2,049.80",GAZPROM MARKETING & TRADING RETAIL LTD,107246
NEWARK AND SHERWOOD DISTRICT COUNCIL,POLICY & FINANCE,G450,ELECTION EXPENSES,17/06/2022,395024,"2,047.00",PRINT IMAGE NETWORK LTD,100431
NEWARK AND SHERWOOD DISTRICT COUNCIL,LEISURE & ENVIRONMENT,G440,PROFESSIONAL SERVICES,13/05/2022,392268,"2,045.70",STM ENVIRONMENTAL CONSULTANTS LTD,101582
NEWARK AND SHERWOOD DISTRICT COUNCIL,HOUSING REVENUE ACCOUNT,G410,MATERIALS,30/06/2022,396016,"2,035.80",PREMIERE KITCHENS,107197
NEWARK AND SHERWOOD DISTRICT COUNCIL,CAPITAL,G997,CONSTRUCTION,08/04/2022,389557,"2,033.97",T & S HEATING LTD,105748
NEWARK AND SHERWOOD DISTRICT COUNCIL,LEISURE & ENVIRONMENT,G440,PETROL AND DIESEL,20/05/2022,392778,"2,033.33",PACE FUELCARE - CERTAS ENERGY UK LTD,106340
NEWARK AND SHERWOOD DISTRICT COUNCIL,HOMES & COMMUNITIES,G430,WIRELESS MAINTENANCE,24/06/2022,395385,"2,020.00",SYNECTICS SECURITY LTD,106788
NEWARK AND SHERWOOD DISTRICT COUNCIL,CAPITAL,G997,CONSTRUCTION,17/06/2022,394671,"2,019.00",EUROPEAN ASBESTOS SERVICES LTD,107313
NEWARK AND SHERWOOD DISTRICT COUNCIL,CAPITAL,G997,CONSTRUCTION,17/06/2022,395023,"2,018.25",ROBERT WOODHEAD LTD,100461
NEWARK AND SHERWOOD DISTRICT COUNCIL,HOUSING REVENUE ACCOUNT,G410,CONTRACTUAL SERVICES,17/06/2022,394663,"2,017.31",DCR ELECTRICAL LTD,101799
NEWARK AND SHERWOOD DISTRICT COUNCIL,HOUSING REVENUE ACCOUNT,G410,CONTRACTUAL SERVICES,20/05/2022,393086,"2,015.00",PORTLAND SURVEYS,106860
NEWARK AND SHERWOOD DISTRICT COUNCIL,HOUSING REVENUE ACCOUNT,G410,MATERIALS,20/05/2022,392971,"2,011.40",PTS - CITY PLUMBING SUPPLIES LTD,107157
NEWARK AND SHERWOOD DISTRICT COUNCIL,ECONOMIC DEVELOPMENT,G420,GAS,31/05/2022,394055,"2,008.50",TOTAL ENERGIES GAS & POWER LTD,107289
NEWARK AND SHERWOOD DISTRICT COUNCIL,ECONOMIC DEVELOPMENT,G420,ELECTRICITY,06/05/2022,391804,"2,006.79",EDF ENERGY 1 LTD,101140
NEWARK AND SHERWOOD DISTRICT COUNCIL,POLICY & FINANCE,G450,CHANGE MANAGEMENT,27/05/2022,393666,"2,000.00",REDACTED PERSONAL DATA,107061
NEWARK AND SHERWOOD DISTRICT COUNCIL,POLICY & FINANCE,G450,CTAX NSDC PARISH PRECEPT PYMTS,22/04/2022,390643,"2,000.00",HALAM PARISH COUNCIL,100196
NEWARK AND SHERWOOD DISTRICT COUNCIL,POLICY & FINANCE,G450,CTAX NSDC PARISH PRECEPT PYMTS,22/04/2022,390654,"2,000.00",RUFFORD PARISH COUNCIL,100471
NEWARK AND SHERWOOD DISTRICT COUNCIL,ECONOMIC DEVELOPMENT,G420,EMPLOYMENT & SKILLS,14/04/2022,390377,"2,000.00",NEWARK BOOK FESTIVAL,105885
NEWARK AND SHERWOOD DISTRICT COUNCIL,ECONOMIC DEVELOPMENT,G420,INWARD INVESTMENT MARKETING,13/05/2022,392232,"2,000.00",LINCOLN COLLEGE,101765
NEWARK AND SHERWOOD DISTRICT COUNCIL,ECONOMIC DEVELOPMENT,G420,PROFESSIONAL SERVICES,08/04/2022,389736,"2,000.00",AMK PLANNING & DESIGN LTD,107226
NEWARK AND SHERWOOD DISTRICT COUNCIL,HOUSING REVENUE ACCOUNT,G410,TENANT INVOLVEMENT,13/05/2022,392379,"2,000.00",E C WALTON & CO LTD,107493
NEWARK AND SHERWOOD DISTRICT COUNCIL,CAPITAL,G997,CONSTRUCTION,17/06/2022,394954,"1,980.00",NEW CENTURY WINDOWS LTD,107541
NEWARK AND SHERWOOD DISTRICT COUNCIL,CAPITAL,G997,CONSTRUCTION,30/06/2022,396088,"1,980.00",NEW CENTURY WINDOWS LTD,107541
NEWARK AND SHERWOOD DISTRICT COUNCIL,HOMES & COMMUNITIES,G430,CCTV MAINTENANCE,06/05/2022,391818,"1,976.00",BAYDALE CONTROL SYSTEMS LTD,106617
NEWARK AND SHERWOOD DISTRICT COUNCIL,HOMES & COMMUNITIES,G430,CCTV MAINTENANCE,17/06/2022,394905,"1,976.00",BAYDALE CONTROL SYSTEMS LTD,106617
NEWARK AND SHERWOOD DISTRICT COUNCIL,ECONOMIC DEVELOPMENT,G420,REPAIRS AND MAINTENANCE,30/06/2022,395633,"1,970.00",TVR HIGH RISE CONSERVATION LTD,107163
NEWARK AND SHERWOOD DISTRICT COUNCIL,ECONOMIC DEVELOPMENT,G420,ARTISTS FEES,06/05/2022,391716,"1,969.35",REDACTED PERSONAL DATA,107476
NEWARK AND SHERWOOD DISTRICT COUNCIL,POLICY & FINANCE,G450,AGENCY STAFF,08/04/2022,388284,"1,966.25",SELLICK PARTNERSHIP LTD,106780
NEWARK AND SHERWOOD DISTRICT COUNCIL,POLICY & FINANCE,G450,AGENCY STAFF,17/06/2022,390390,"1,966.25",SELLICK PARTNERSHIP LTD,106780
NEWARK AND SHERWOOD DISTRICT COUNCIL,ECONOMIC DEVELOPMENT,G420,CONTRACTUAL SERVICES,10/06/2022,394432,"1,960.00",CRYSTAL CLEAN SERVICE LTD,106324
NEWARK AND SHERWOOD DISTRICT COUNCIL,HOUSING REVENUE ACCOUNT,G410,APPLIANCE SERVICING,30/06/2022,395957,"1,956.29",RENUVO LIMITED,107076
NEWARK AND SHERWOOD DISTRICT COUNCIL,CAPITAL,G997,SYSTEM UPGRADES,14/04/2022,390329,"1,950.00",HAYS SPECIALIST RECRUITMENT LTD,101794
NEWARK AND SHERWOOD DISTRICT COUNCIL,CAPITAL,G997,SYSTEM UPGRADES,13/05/2022,390388,"1,950.00",HAYS SPECIALIST RECRUITMENT LTD,101794
NEWARK AND SHERWOOD DISTRICT COUNCIL,CAPITAL,G997,SYSTEM UPGRADES,27/05/2022,392208,"1,950.00",HAYS SPECIALIST RECRUITMENT LTD,101794
NEWARK AND SHERWOOD DISTRICT COUNCIL,CAPITAL,G997,SYSTEM UPGRADES,17/06/2022,393447,"1,950.00",HAYS SPECIALIST RECRUITMENT LTD,101794
NEWARK AND SHERWOOD DISTRICT COUNCIL,HOUSING REVENUE ACCOUNT,G410,MATERIALS,22/04/2022,390768,"1,941.24",PTS - CITY PLUMBING SUPPLIES LTD,107157
NEWARK AND SHERWOOD DISTRICT COUNCIL,ECONOMIC DEVELOPMENT,G420,CONTRACTUAL SERVICES,10/06/2022,394270,"1,935.00",HAGUE COMPUTER SUPPLIES LTD,101234
NEWARK AND SHERWOOD DISTRICT COUNCIL,POLICY & FINANCE,G450,CIL LOCAL MONIES PAYMENT,27/05/2022,393669,"1,927.75",BALDERTON PARISH COUNCIL,100029
NEWARK AND SHERWOOD DISTRICT COUNCIL,POLICY & FINANCE,G450,AGENCY STAFF,08/04/2022,389677,"1,925.00",SELLICK PARTNERSHIP LTD,106780
NEWARK AND SHERWOOD DISTRICT COUNCIL,POLICY & FINANCE,G450,AGENCY STAFF,29/04/2022,389749,"1,925.00",SELLICK PARTNERSHIP LTD,106780
NEWARK AND SHERWOOD DISTRICT COUNCIL,POLICY & FINANCE,G450,AGENCY STAFF,29/04/2022,390381,"1,925.00",SELLICK PARTNERSHIP LTD,106780
NEWARK AND SHERWOOD DISTRICT COUNCIL,POLICY & FINANCE,G450,AGENCY STAFF,06/05/2022,391781,"1,925.00",SELLICK PARTNERSHIP LTD,106780
NEWARK AND SHERWOOD DISTRICT COUNCIL,POLICY & FINANCE,G450,AGENCY STAFF,27/05/2022,392716,"1,925.00",SELLICK PARTNERSHIP LTD,106780
NEWARK AND SHERWOOD DISTRICT COUNCIL,POLICY & FINANCE,G450,AGENCY STAFF,27/05/2022,393367,"1,925.00",SELLICK PARTNERSHIP LTD,106780
NEWARK AND SHERWOOD DISTRICT COUNCIL,POLICY & FINANCE,G450,AGENCY STAFF,31/05/2022,394015,"1,925.00",SELLICK PARTNERSHIP LTD,106780
NEWARK AND SHERWOOD DISTRICT COUNCIL,CAPITAL,G997,CONSTRUCTION,10/06/2022,394364,"1,925.00",WILLIAM SAUNDERS PARTNERSHIP LLP,107133
NEWARK AND SHERWOOD DISTRICT COUNCIL,ECONOMIC DEVELOPMENT,G420,RENT,22/04/2022,390721,"1,925.00",THORESBY SETTLEMENT,107385
NEWARK AND SHERWOOD DISTRICT COUNCIL,HOUSING REVENUE ACCOUNT,G410,APPLIANCE SERVICING,22/04/2022,390848,"1,923.81",RENUVO LIMITED,107076
NEWARK AND SHERWOOD DISTRICT COUNCIL,HOUSING REVENUE ACCOUNT,G410,CONTRACTUAL SERVICES,10/06/2022,394411,"1,914.81",RENUVO LIMITED,107076
NEWARK AND SHERWOOD DISTRICT COUNCIL,CAPITAL,G997,CONSTRUCTION,08/04/2022,388409,"1,914.27",WILLIAM SAUNDERS PARTNERSHIP LLP,107133
NEWARK AND SHERWOOD DISTRICT COUNCIL,HOUSING REVENUE ACCOUNT,G410,MATERIALS,20/05/2022,392978,"1,894.54",PTS - CITY PLUMBING SUPPLIES LTD,107157
NEWARK AND SHERWOOD DISTRICT COUNCIL,HOUSING REVENUE ACCOUNT,G410,CONTRACTUAL SERVICES,30/06/2022,394664,"1,886.23",DCR ELECTRICAL LTD,101799
NEWARK AND SHERWOOD DISTRICT COUNCIL,POLICY & FINANCE,G450,SUBSCRIPTIONS,06/05/2022,391743,"1,880.00",RICS BUSINESS SERVICES LTD,101040
NEWARK AND SHERWOOD DISTRICT COUNCIL,POLICY & FINANCE,G450,CTAX NSDC PARISH PRECEPT PYMTS,22/04/2022,390620,"1,875.00",AVERHAM KELHAM & STAYTHORPE PARISH COUNCIL,100026
NEWARK AND SHERWOOD DISTRICT COUNCIL,POLICY & FINANCE,G450,CYBER SECURITY,08/04/2022,389680,"1,875.00",MERITEC LTD,105609
NEWARK AND SHERWOOD DISTRICT COUNCIL,ECONOMIC DEVELOPMENT,G420,GAS,31/05/2022,394058,"1,874.79",TOTAL ENERGIES GAS & POWER LTD,107289
NEWARK AND SHERWOOD DISTRICT COUNCIL,ECONOMIC DEVELOPMENT,G420,ARTISTS FEES,24/06/2022,395615,"1,874.30",TOTAL PRODUCTIONS THEATRES (UK) LTD,106175
NEWARK AND SHERWOOD DISTRICT COUNCIL,HOUSING REVENUE ACCOUNT,G410,CONTRACTUAL SERVICES,20/05/2022,393155,"1,866.52",NOVUS PROPERTY SOLUTIONS LTD,107362
NEWARK AND SHERWOOD DISTRICT COUNCIL,HOUSING REVENUE ACCOUNT,G410,CONTRACTUAL SERVICES,20/05/2022,393160,"1,855.48",NOVUS PROPERTY SOLUTIONS LTD,107362
NEWARK AND SHERWOOD DISTRICT COUNCIL,CAPITAL,G997,CONSTRUCTION,22/04/2022,390676,"1,852.00",HARMONY FIRE LTD,107179
NEWARK AND SHERWOOD DISTRICT COUNCIL,CAPITAL,G997,CONSTRUCTION,22/04/2022,390677,"1,852.00",HARMONY FIRE LTD,107179
NEWARK AND SHERWOOD DISTRICT COUNCIL,CAPITAL,G997,CONSTRUCTION,22/04/2022,390678,"1,852.00",HARMONY FIRE LTD,107179
NEWARK AND SHERWOOD DISTRICT COUNCIL,CAPITAL,G997,CONSTRUCTION,22/04/2022,390683,"1,852.00",HARMONY FIRE LTD,107179
NEWARK AND SHERWOOD DISTRICT COUNCIL,CAPITAL,G997,CONSTRUCTION,22/04/2022,390684,"1,852.00",HARMONY FIRE LTD,107179
NEWARK AND SHERWOOD DISTRICT COUNCIL,CAPITAL,G997,CONSTRUCTION,22/04/2022,390685,"1,852.00",HARMONY FIRE LTD,107179
NEWARK AND SHERWOOD DISTRICT COUNCIL,CAPITAL,G997,CONSTRUCTION,28/04/2022,391271,"1,852.00",HARMONY FIRE LTD,107179
NEWARK AND SHERWOOD DISTRICT COUNCIL,POLICY & FINANCE,G450,CTAX NSDC PARISH PRECEPT PYMTS,22/04/2022,390622,"1,851.30",BARNBY PARISH COUNCIL,100032
NEWARK AND SHERWOOD DISTRICT COUNCIL,ECONOMIC DEVELOPMENT,G420,ELECTRICITY,24/06/2022,395620,"1,848.28",BRITISH GAS,101852
NEWARK AND SHERWOOD DISTRICT COUNCIL,ECONOMIC DEVELOPMENT,G420,REPAIRS AND MAINTENANCE,10/06/2022,392198,"1,846.19",JOHNSON ELECTRICAL SOLUTIONS LTD,107173
NEWARK AND SHERWOOD DISTRICT COUNCIL,LEISURE & ENVIRONMENT,G440,MATERIALS,27/05/2022,393431,"1,843.81",UK TELEMATICS LIMITED,106795
NEWARK AND SHERWOOD DISTRICT COUNCIL,POLICY & FINANCE,G450,AGENCY STAFF,08/04/2022,389684,"1,828.75",SELLICK PARTNERSHIP LTD,106780
NEWARK AND SHERWOOD DISTRICT COUNCIL,LEISURE & ENVIRONMENT,G440,MATERIALS,13/05/2022,392225,"1,821.55",PARTIC MOTOR SPARES LTD,100421
NEWARK AND SHERWOOD DISTRICT COUNCIL,HOMES & COMMUNITIES,G430,ADVERTISING,08/04/2022,389635,"1,820.00",ABBEY FLYERS LTD,105950
NEWARK AND SHERWOOD DISTRICT COUNCIL,HOUSING REVENUE ACCOUNT,G410,CONTRACTUAL SERVICES,17/06/2022,392227,"1,820.00",PORTLAND SURVEYS,106860
NEWARK AND SHERWOOD DISTRICT COUNCIL,POLICY & FINANCE,G450,AGENCY STAFF,06/05/2022,391150,"1,819.40",SELLICK PARTNERSHIP LTD,106780
NEWARK AND SHERWOOD DISTRICT COUNCIL,HOUSING REVENUE ACCOUNT,G410,CONTRACTUAL SERVICES,30/06/2022,396055,"1,803.04",J WRIGHT ROOFING LTD,105753
NEWARK AND SHERWOOD DISTRICT COUNCIL,ECONOMIC DEVELOPMENT,G420,COMPUTER SOFTWARE MAINTENANCE,10/06/2022,394221,"1,800.00",BAZZOO LIMITED,101372
NEWARK AND SHERWOOD DISTRICT COUNCIL,CAPITAL,G997,CONSTRUCTION,13/05/2022,392271,"1,800.00",GPR CONSTRUCTION LTD,100190
NEWARK AND SHERWOOD DISTRICT COUNCIL,ECONOMIC DEVELOPMENT,G420,REPAIRS AND MAINTENANCE,08/04/2022,389738,"1,795.00",JCP POWER & DATA CONTRACTORS LTD,100243
NEWARK AND SHERWOOD DISTRICT COUNCIL,CAPITAL,G997,PROFESSIONAL FEES,27/05/2022,393470,"1,792.00",ZURICH INSURANCE GROUP LTD,100937
NEWARK AND SHERWOOD DISTRICT COUNCIL,HOUSING REVENUE ACCOUNT,G410,MATERIALS,22/04/2022,390691,"1,789.66",PTS - CITY PLUMBING SUPPLIES LTD,107157
NEWARK AND SHERWOOD DISTRICT COUNCIL,HOUSING REVENUE ACCOUNT,G410,CONTRACTUAL SERVICES,27/05/2022,393642,"1,782.28",NOVUS PROPERTY SOLUTIONS LTD,107362
NEWARK AND SHERWOOD DISTRICT COUNCIL,LEISURE & ENVIRONMENT,G440,AGENCY STAFF,08/04/2022,389878,"1,781.40",VIVID RESOURCING,106488
NEWARK AND SHERWOOD DISTRICT COUNCIL,LEISURE & ENVIRONMENT,G440,AGENCY STAFF,29/04/2022,391246,"1,776.00",VIVID RESOURCING,106488
NEWARK AND SHERWOOD DISTRICT COUNCIL,LEISURE & ENVIRONMENT,G440,AGENCY STAFF,31/05/2022,394142,"1,776.00",VIVID RESOURCING,106488
NEWARK AND SHERWOOD DISTRICT COUNCIL,LEISURE & ENVIRONMENT,G440,AGENCY STAFF,10/06/2022,394451,"1,776.00",VIVID RESOURCING,106488
NEWARK AND SHERWOOD DISTRICT COUNCIL,LEISURE & ENVIRONMENT,G440,AGENCY STAFF,30/06/2022,396166,"1,776.00",VIVID RESOURCING,106488
NEWARK AND SHERWOOD DISTRICT COUNCIL,POLICY & FINANCE,G450,AGENCY STAFF,08/04/2022,388725,"1,773.75",SELLICK PARTNERSHIP LTD,106780
NEWARK AND SHERWOOD DISTRICT COUNCIL,HOUSING REVENUE ACCOUNT,G410,CONTRACTUAL SERVICES,13/05/2022,392374,"1,769.40",J WRIGHT ROOFING LTD,105753
NEWARK AND SHERWOOD DISTRICT COUNCIL,HOUSING REVENUE ACCOUNT,G410,PROFESSIONAL SERVICES,29/04/2022,391317,"1,763.75",VIEWPOINT COMMUNITY INTEREST COMPANY,106797
NEWARK AND SHERWOOD DISTRICT COUNCIL,HOUSING REVENUE ACCOUNT,G410,PROFESSIONAL SERVICES,06/05/2022,391881,"1,763.75",VIEWPOINT COMMUNITY INTEREST COMPANY,106797
NEWARK AND SHERWOOD DISTRICT COUNCIL,HOUSING REVENUE ACCOUNT,G410,PROFESSIONAL SERVICES,27/05/2022,393621,"1,763.75",VIEWPOINT COMMUNITY INTEREST COMPANY,106797
NEWARK AND SHERWOOD DISTRICT COUNCIL,HOMES & COMMUNITIES,G430,BT LINES,08/04/2022,389972,"1,762.84",BRITISH TELECOMMUNICATIONS PLC,100057
NEWARK AND SHERWOOD DISTRICT COUNCIL,POLICY & FINANCE,G450,AGENCY STAFF,06/05/2022,391151,"1,760.00",SELLICK PARTNERSHIP LTD,106780
NEWARK AND SHERWOOD DISTRICT COUNCIL,HOUSING REVENUE ACCOUNT,G410,CONTRACTUAL SERVICES,20/05/2022,393154,"1,751.85",NOVUS PROPERTY SOLUTIONS LTD,107362
NEWARK AND SHERWOOD DISTRICT COUNCIL,CAPITAL,G997,CONSTRUCTION,24/06/2022,395524,"1,750.00",PREMIER MOBILITY (UK) LIMITED,106576
NEWARK AND SHERWOOD DISTRICT COUNCIL,ECONOMIC DEVELOPMENT,G420,CONTRACTUAL SERVICES,31/05/2022,394016,"1,750.00",LM ECOLOGY,107515
NEWARK AND SHERWOOD DISTRICT COUNCIL,POLICY & FINANCE,G450,CTAX NSDC PARISH PRECEPT PYMTS,22/04/2022,390612,"1,750.00",HOCKERTON PARISH COUNCIL,100211
NEWARK AND SHERWOOD DISTRICT COUNCIL,ECONOMIC DEVELOPMENT,G420,PROFESSIONAL SERVICES,08/04/2022,389720,"1,750.00",BANKS LONG & CO,101223
NEWARK AND SHERWOOD DISTRICT COUNCIL,POLICY & FINANCE,G450,PROFESSIONAL SERVICES,20/05/2022,389968,"1,750.00",CIVICA UK LTD,105867
NEWARK AND SHERWOOD DISTRICT COUNCIL,POLICY & FINANCE,G450,PROFESSIONAL SERVICES,17/06/2022,394776,"1,750.00",CIVICA UK LTD,105867
NEWARK AND SHERWOOD DISTRICT COUNCIL,POLICY & FINANCE,G450,PROFESSIONAL SERVICES,17/06/2022,394777,"1,750.00",CIVICA UK LTD,105867
NEWARK AND SHERWOOD DISTRICT COUNCIL,POLICY & FINANCE,G450,AGENCY STAFF,13/05/2022,392193,"1,746.25",SELLICK PARTNERSHIP LTD,106780
NEWARK AND SHERWOOD DISTRICT COUNCIL,HOUSING REVENUE ACCOUNT,G410,CONTRACTUAL SERVICES,30/06/2022,396051,"1,731.04",J WRIGHT ROOFING LTD,105753
NEWARK AND SHERWOOD DISTRICT COUNCIL,CAPITAL,G997,CONSTRUCTION,29/04/2022,391323,"1,725.00",STUDIO G ASSOCIATES,104539
NEWARK AND SHERWOOD DISTRICT COUNCIL,HOUSING REVENUE ACCOUNT,G410,MATERIALS,22/04/2022,390812,"1,723.36",PTS - CITY PLUMBING SUPPLIES LTD,107157
NEWARK AND SHERWOOD DISTRICT COUNCIL,CAPITAL,G997,CONSTRUCTION,29/04/2022,391353,"1,723.32",HARMONY FIRE LTD,107179
NEWARK AND SHERWOOD DISTRICT COUNCIL,POLICY & FINANCE,G450,COMPUTER SOFTWARE MAINTENANCE,10/06/2022,394448,"1,720.00",RISKEX LIMITED,107010
NEWARK AND SHERWOOD DISTRICT COUNCIL,POLICY & FINANCE,G450,CONTRACTUAL SERVICES,30/06/2022,394092,"1,720.00",BOON EDAM LTD,106025
NEWARK AND SHERWOOD DISTRICT COUNCIL,HOUSING REVENUE ACCOUNT,G410,FURNITURE AND FITTINGS,06/05/2022,391979,"1,715.20",ALPHA FURNISHINGS LTD,107475
NEWARK AND SHERWOOD DISTRICT COUNCIL,HOUSING REVENUE ACCOUNT,G410,MATERIALS,22/04/2022,390697,"1,714.91",PTS - CITY PLUMBING SUPPLIES LTD,107157
NEWARK AND SHERWOOD DISTRICT COUNCIL,CAPITAL,G997,CONSTRUCTION,29/04/2022,391356,"1,710.77",HARMONY FIRE LTD,107179
NEWARK AND SHERWOOD DISTRICT COUNCIL,HOUSING REVENUE ACCOUNT,G410,MATERIALS,13/05/2022,392417,"1,705.60",PTS - CITY PLUMBING SUPPLIES LTD,107157
NEWARK AND SHERWOOD DISTRICT COUNCIL,ECONOMIC DEVELOPMENT,G420,EQUIPMENT REPAIRS & RENEWALS,08/04/2022,389739,"1,697.00",JCP POWER & DATA CONTRACTORS LTD,100243
NEWARK AND SHERWOOD DISTRICT COUNCIL,ECONOMIC DEVELOPMENT,G420,INWARD INVESTMENT MARKETING,14/04/2022,390327,"1,692.00",AJB CONSULTING,107474
NEWARK AND SHERWOOD DISTRICT COUNCIL,ECONOMIC DEVELOPMENT,G420,CONTRACTUAL SERVICES,08/04/2022,389558,"1,687.50",NINE HUNDRED COMMUNICATIONS,107543
NEWARK AND SHERWOOD DISTRICT COUNCIL,POLICY & FINANCE,G450,CTAX NSDC PARISH PRECEPT PYMTS,22/04/2022,390629,"1,685.00",CARLTON-ON-TRENT PARISH COUNCIL,100072
NEWARK AND SHERWOOD DISTRICT COUNCIL,HOUSING REVENUE ACCOUNT,G410,WASHING MACHINE AND DRIER,13/06/2022,394605,"1,684.74",SIEMENS FINANCIAL SERVICES LTD,100502
NEWARK AND SHERWOOD DISTRICT COUNCIL,LEISURE & ENVIRONMENT,G440,MATERIALS,24/06/2022,395271,"1,682.19",PARTS PLUS,107073
NEWARK AND SHERWOOD DISTRICT COUNCIL,CAPITAL,G997,CONSTRUCTION,29/04/2022,391315,"1,675.00",STUDIO G ASSOCIATES,104539
NEWARK AND SHERWOOD DISTRICT COUNCIL,CAPITAL,G997,DISABLED FACILITIES,30/06/2022,396136,"1,669.47",DOLPHIN MOBILITY EAST MIDLANDS LTD,100130
NEWARK AND SHERWOOD DISTRICT COUNCIL,HOUSING REVENUE ACCOUNT,G410,CONTRACTUAL SERVICES,06/05/2022,391927,"1,669.20",AARON SERVICES,107225
NEWARK AND SHERWOOD DISTRICT COUNCIL,POLICY & FINANCE,G450,MOBILE PHONE COSTS,20/05/2022,392707,"1,667.70",EE LIMITED,106527
NEWARK AND SHERWOOD DISTRICT COUNCIL,POLICY & FINANCE,G450,REPAIRS AND MAINTENANCE,27/05/2022,393488,"1,664.00",ALLIANCE PAINTING LTD,106886
NEWARK AND SHERWOOD DISTRICT COUNCIL,POLICY & FINANCE,G450,HARDWARE MAINTENANCE,08/04/2022,389682,"1,650.00",MERITEC LTD,105609
NEWARK AND SHERWOOD DISTRICT COUNCIL,ECONOMIC DEVELOPMENT,G420,PROFESSIONAL SERVICES,06/05/2022,391970,"1,650.00",FOXSTONE FORESTRY LTD,106901
NEWARK AND SHERWOOD DISTRICT COUNCIL,LEISURE & ENVIRONMENT,G440,MATERIALS,10/06/2022,394278,"1,648.79",PARTIC MOTOR SPARES LTD,100421
NEWARK AND SHERWOOD DISTRICT COUNCIL,HOUSING REVENUE ACCOUNT,G410,CONTRACTUAL SERVICES,31/05/2022,394089,"1,645.40",J WRIGHT ROOFING LTD,105753
NEWARK AND SHERWOOD DISTRICT COUNCIL,HOUSING REVENUE ACCOUNT,G410,CONTRACTUAL SERVICES,17/06/2022,394969,"1,644.28",T & S HEATING LTD,105748
NEWARK AND SHERWOOD DISTRICT COUNCIL,CAPITAL,G997,LAND AQUISITION,23/05/2022,393378,"1,643.00",HM REVENUE AND CUSTOMS,105608
NEWARK AND SHERWOOD DISTRICT COUNCIL,HOUSING REVENUE ACCOUNT,G410,CONTRACTUAL SERVICES,20/05/2022,393149,"1,640.99",NOVUS PROPERTY SOLUTIONS LTD,107362
NEWARK AND SHERWOOD DISTRICT COUNCIL,HOUSING REVENUE ACCOUNT,G410,CONTRACTUAL SERVICES,27/05/2022,393641,"1,637.77",NOVUS PROPERTY SOLUTIONS LTD,107362
NEWARK AND SHERWOOD DISTRICT COUNCIL,HOUSING REVENUE ACCOUNT,G410,CONTRACTUAL SERVICES,13/05/2022,392372,"1,637.64",J WRIGHT ROOFING LTD,105753
NEWARK AND SHERWOOD DISTRICT COUNCIL,ECONOMIC DEVELOPMENT,G420,CONTRACTUAL SERVICES,22/04/2022,389996,"1,631.00",TVR HIGH RISE CONSERVATION LTD,107163
NEWARK AND SHERWOOD DISTRICT COUNCIL,CAPITAL,G997,CONSTRUCTION,20/05/2022,393144,"1,625.18",NOVUS PROPERTY SOLUTIONS LTD,107362
NEWARK AND SHERWOOD DISTRICT COUNCIL,HOUSING REVENUE ACCOUNT,G410,MATERIALS,30/06/2022,396040,"1,614.53",PTS - CITY PLUMBING SUPPLIES LTD,107157
NEWARK AND SHERWOOD DISTRICT COUNCIL,HOUSING REVENUE ACCOUNT,G410,MATERIALS,08/04/2022,389521,"1,610.00",WILKO LTD,107129
NEWARK AND SHERWOOD DISTRICT COUNCIL,POLICY & FINANCE,G450,REPAIRS AND MAINTENANCE,24/06/2022,393368,"1,603.00",TVR HIGH RISE CONSERVATION LTD,107163
NEWARK AND SHERWOOD DISTRICT COUNCIL,ECONOMIC DEVELOPMENT,G420,ELECTRICITY,08/04/2022,388320,"1,600.00",EDF ENERGY 1 LTD,101140
NEWARK AND SHERWOOD DISTRICT COUNCIL,ECONOMIC DEVELOPMENT,G420,CONTRACTUAL SERVICES,17/06/2022,394729,"1,597.06",PPL PRS LTD,106267
NEWARK AND SHERWOOD DISTRICT COUNCIL,POLICY & FINANCE,G450,POSTAGES,31/05/2022,393984,"1,589.01",ROYAL MAIL GROUP LTD,100469
NEWARK AND SHERWOOD DISTRICT COUNCIL,POLICY & FINANCE,G450,MOBILE PHONE COSTS,24/06/2022,395393,"1,585.63",EE LIMITED,106527
NEWARK AND SHERWOOD DISTRICT COUNCIL,HOUSING REVENUE ACCOUNT,G410,CONTRACTUAL SERVICES,31/05/2022,394088,"1,584.52",J WRIGHT ROOFING LTD,105753
NEWARK AND SHERWOOD DISTRICT COUNCIL,HOUSING REVENUE ACCOUNT,G410,LIFT MAINTENANCE,20/05/2022,393087,"1,575.00",TEMPLE LIFTS LTD,106870
NEWARK AND SHERWOOD DISTRICT COUNCIL,POLICY & FINANCE,G450,PROFESSIONAL SERVICES,27/05/2022,393405,"1,575.00",PIXEL FINANCIAL MANAGEMENT LTD,106941
NEWARK AND SHERWOOD DISTRICT COUNCIL,HOUSING REVENUE ACCOUNT,G410,CONTRACTUAL SERVICES,13/05/2022,392382,"1,573.13",J WRIGHT ROOFING LTD,105753
NEWARK AND SHERWOOD DISTRICT COUNCIL,HOUSING REVENUE ACCOUNT,G410,CONTRACTUAL SERVICES,14/04/2022,390337,"1,560.00",PORTLAND SURVEYS,106860
NEWARK AND SHERWOOD DISTRICT COUNCIL,HOUSING REVENUE ACCOUNT,G410,CONTRACTUAL SERVICES,13/05/2022,392376,"1,555.74",J WRIGHT ROOFING LTD,105753
NEWARK AND SHERWOOD DISTRICT COUNCIL,HOUSING REVENUE ACCOUNT,G410,SKIP HIRE,22/04/2022,390680,"1,555.06",VEOLIA ENVIRONMENTAL SERVICES (UK) LTD,106880
NEWARK AND SHERWOOD DISTRICT COUNCIL,HOUSING REVENUE ACCOUNT,G410,MATERIALS,27/05/2022,393601,"1,553.69",PTS - CITY PLUMBING SUPPLIES LTD,107157
NEWARK AND SHERWOOD DISTRICT COUNCIL,POLICY & FINANCE,G450,POSTAGES,08/04/2022,389912,"1,549.49",ROYAL MAIL GROUP LTD,100469
NEWARK AND SHERWOOD DISTRICT COUNCIL,POLICY & FINANCE,G450,AGENCY STAFF,29/04/2022,391149,"1,540.00",SELLICK PARTNERSHIP LTD,106780
NEWARK AND SHERWOOD DISTRICT COUNCIL,POLICY & FINANCE,G450,AGENCY STAFF,06/05/2022,391780,"1,540.00",SELLICK PARTNERSHIP LTD,106780
NEWARK AND SHERWOOD DISTRICT COUNCIL,POLICY & FINANCE,G450,AGENCY STAFF,13/05/2022,392162,"1,540.00",SELLICK PARTNERSHIP LTD,106780
NEWARK AND SHERWOOD DISTRICT COUNCIL,LEISURE & ENVIRONMENT,G440,MATERIALS,08/04/2022,389596,"1,539.57",ARCO LIMITED,102144
NEWARK AND SHERWOOD DISTRICT COUNCIL,LEISURE & ENVIRONMENT,G440,MATERIALS,08/04/2022,389554,"1,537.00",BOWCOM,107093
NEWARK AND SHERWOOD DISTRICT COUNCIL,LEISURE & ENVIRONMENT,G440,MATERIALS,13/05/2022,392299,"1,518.46",PARTIC MOTOR SPARES LTD,100421
NEWARK AND SHERWOOD DISTRICT COUNCIL,POLICY & FINANCE,G450,LICENCES,17/06/2022,394752,"1,517.67",COPYRIGHT LICENSING AGENCY LTD,100111
NEWARK AND SHERWOOD DISTRICT COUNCIL,HOUSING REVENUE ACCOUNT,G410,CONTRACTUAL SERVICES,20/05/2022,392801,"1,514.35",J WRIGHT ROOFING LTD,105753
NEWARK AND SHERWOOD DISTRICT COUNCIL,HOUSING REVENUE ACCOUNT,G410,CONTRACTUAL SERVICES,20/05/2022,393205,"1,505.60",NOVUS PROPERTY SOLUTIONS LTD,107362
NEWARK AND SHERWOOD DISTRICT COUNCIL,LEISURE & ENVIRONMENT,G440,MATERIALS,10/06/2022,394303,"1,500.83",TERBERG MATEC UK LTD,100541
NEWARK AND SHERWOOD DISTRICT COUNCIL,LEISURE & ENVIRONMENT,G440,ARTS DEVELOPMENT & EVENTS,27/05/2022,393473,"1,500.00",NEWARK BOOK FESTIVAL,105885
NEWARK AND SHERWOOD DISTRICT COUNCIL,CAPITAL,G997,CONSTRUCTION,10/06/2022,394085,"1,500.00",BSP CONSULTING,104667
NEWARK AND SHERWOOD DISTRICT COUNCIL,HOUSING REVENUE ACCOUNT,G410,CONTRACTUAL SERVICES,27/05/2022,393492,"1,500.00",CORNERSTONE BARRISTERS,105521
NEWARK AND SHERWOOD DISTRICT COUNCIL,HOUSING REVENUE ACCOUNT,G410,CONTRACTUAL SERVICES,22/04/2022,390585,"1,500.00",FARRENDALE LTD,106640
NEWARK AND SHERWOOD DISTRICT COUNCIL,POLICY & FINANCE,G450,CTAX NSDC PARISH PRECEPT PYMTS,22/04/2022,390671,"1,500.00",EAST STOKE WITH THORPE P C,100141
NEWARK AND SHERWOOD DISTRICT COUNCIL,ECONOMIC DEVELOPMENT,G420,EQUIPMENT R&R PROJECT 1,30/06/2022,396120,"1,500.00",IDOX SOFTWARE LTD,100738
NEWARK AND SHERWOOD DISTRICT COUNCIL,ECONOMIC DEVELOPMENT,G420,REPAIRS AND MAINTENANCE,13/05/2022,392190,"1,500.00",NOTTINGHAM GROUNDS MAINTENANCE LTD,105832
NEWARK AND SHERWOOD DISTRICT COUNCIL,POLICY & FINANCE,G450,MOBILE PHONE COSTS,06/05/2022,391797,"1,498.76",EE LIMITED,106527
NEWARK AND SHERWOOD DISTRICT COUNCIL,HOUSING REVENUE ACCOUNT,G410,CONTRACTUAL SERVICES,10/06/2022,394406,"1,496.26",RENUVO LIMITED,107076
NEWARK AND SHERWOOD DISTRICT COUNCIL,POLICY & FINANCE,G450,STATIONERY,14/04/2022,390302,"1,495.45",LYRECO UK LIMITED,101689
NEWARK AND SHERWOOD DISTRICT COUNCIL,CAPITAL,G997,CONSTRUCTION,20/05/2022,393033,"1,495.10",J WRIGHT ROOFING LTD,105753
NEWARK AND SHERWOOD DISTRICT COUNCIL,POLICY & FINANCE,G450,STANDING CHARGES TELEPHONES,20/05/2022,392790,"1,492.86",DAISY CORPORATE SERVICES TRADING LTD,106630
NEWARK AND SHERWOOD DISTRICT COUNCIL,POLICY & FINANCE,G450,STANDING CHARGES TELEPHONES,24/06/2022,395392,"1,492.86",DAISY CORPORATE SERVICES TRADING LTD,106630
NEWARK AND SHERWOOD DISTRICT COUNCIL,HOMES & COMMUNITIES,G430,WIRELESS MAINTENANCE,24/06/2022,395387,"1,485.50",SYNECTICS SECURITY LTD,106788
NEWARK AND SHERWOOD DISTRICT COUNCIL,CAPITAL,G997,CONSTRUCTION,06/05/2022,391825,"1,485.00",GPR CONSTRUCTION LTD,100190
NEWARK AND SHERWOOD DISTRICT COUNCIL,HOUSING REVENUE ACCOUNT,G410,CONTRACTUAL SERVICES,13/05/2022,392367,"1,483.14",METRO ROD LTD,106655
NEWARK AND SHERWOOD DISTRICT COUNCIL,CAPITAL,G997,CONSTRUCTION,29/04/2022,391360,"1,483.04",HARMONY FIRE LTD,107179
NEWARK AND SHERWOOD DISTRICT COUNCIL,CAPITAL,G997,CONSTRUCTION,29/04/2022,391361,"1,483.04",HARMONY FIRE LTD,107179
NEWARK AND SHERWOOD DISTRICT COUNCIL,CAPITAL,G997,CONSTRUCTION,29/04/2022,391362,"1,483.04",HARMONY FIRE LTD,107179
NEWARK AND SHERWOOD DISTRICT COUNCIL,CAPITAL,G997,CONSTRUCTION,29/04/2022,391398,"1,483.04",HARMONY FIRE LTD,107179
NEWARK AND SHERWOOD DISTRICT COUNCIL,LEISURE & ENVIRONMENT,G440,MATERIALS,08/04/2022,389902,"1,480.41",DENNIS EAGLE LTD,100797
NEWARK AND SHERWOOD DISTRICT COUNCIL,CAPITAL,G997,CONSTRUCTION,24/06/2022,395434,"1,475.00",ROBERT MARSHALL & SONS LTD,105315
NEWARK AND SHERWOOD DISTRICT COUNCIL,POLICY & FINANCE,G450,EQUIPMENT REPAIRS & RENEWALS,13/05/2022,390430,"1,469.98",ADVANCED BUSINESS SOLUTIONS,100887
NEWARK AND SHERWOOD DISTRICT COUNCIL,HOUSING REVENUE ACCOUNT,G410,MATERIALS,20/05/2022,393078,"1,465.26",PTS - CITY PLUMBING SUPPLIES LTD,107157
NEWARK AND SHERWOOD DISTRICT COUNCIL,POLICY & FINANCE,G450,CTAX NSDC PARISH PRECEPT PYMTS,22/04/2022,390613,"1,465.00",KNEESALL PARISH COUNCIL,100261
NEWARK AND SHERWOOD DISTRICT COUNCIL,ECONOMIC DEVELOPMENT,G420,ADVERTISING,14/04/2022,390438,"1,460.00",TAKE ONE MEDIA LTD,100535
NEWARK AND SHERWOOD DISTRICT COUNCIL,HOMES & COMMUNITIES,G430,WIRELESS MAINTENANCE,24/06/2022,395386,"1,453.00",SYNECTICS SECURITY LTD,106788
NEWARK AND SHERWOOD DISTRICT COUNCIL,ECONOMIC DEVELOPMENT,G420,PROFESSIONAL SERVICES,24/06/2022,395611,"1,450.00",NO 5 CHAMBERS LTD,103293
NEWARK AND SHERWOOD DISTRICT COUNCIL,HOUSING REVENUE ACCOUNT,G410,LEGIONELLA TESTING & REMEDIALS,10/06/2022,394323,"1,440.00",T & S HEATING LTD,105748
NEWARK AND SHERWOOD DISTRICT COUNCIL,HOUSING REVENUE ACCOUNT,G410,MATERIALS,22/04/2022,390814,"1,439.92",PTS - CITY PLUMBING SUPPLIES LTD,107157
NEWARK AND SHERWOOD DISTRICT COUNCIL,HOMES & COMMUNITIES,G430,CCTV OPERATION,17/06/2022,394898,"1,433.86",VIA EAST MIDLANDS LTD,105795
NEWARK AND SHERWOOD DISTRICT COUNCIL,HOUSING REVENUE ACCOUNT,G410,AGENCY STAFF,17/06/2022,394666,"1,428.00",HAYS SPECIALIST RECRUITMENT LTD,101794
NEWARK AND SHERWOOD DISTRICT COUNCIL,LEISURE & ENVIRONMENT,G440,PETROL AND DIESEL,10/06/2022,394447,"1,425.12",UK FUELS LTD,103594
NEWARK AND SHERWOOD DISTRICT COUNCIL,HOUSING REVENUE ACCOUNT,G410,AGENCY STAFF,17/06/2022,394667,"1,421.70",HAYS SPECIALIST RECRUITMENT LTD,101794
NEWARK AND SHERWOOD DISTRICT COUNCIL,ECONOMIC DEVELOPMENT,G420,PAYMENTS TO NOTTS COUNTY CNCL,08/04/2022,389649,"1,419.00",NOTTINGHAMSHIRE COUNTY COUNCIL,100393
NEWARK AND SHERWOOD DISTRICT COUNCIL,POLICY & FINANCE,G450,PRINTING,14/04/2022,389956,"1,418.87",SPECIALIST COMPUTER CENTRES PLC,100773
NEWARK AND SHERWOOD DISTRICT COUNCIL,POLICY & FINANCE,G450,POSTAGES,08/04/2022,389601,"1,416.76",ROYAL MAIL GROUP LTD,100469
NEWARK AND SHERWOOD DISTRICT COUNCIL,HOUSING REVENUE ACCOUNT,G410,TENANT INVOLVEMENT,31/05/2022,394141,"1,416.00",TPAS LTD,106793
NEWARK AND SHERWOOD DISTRICT COUNCIL,CAPITAL,G997,CONSTRUCTION,29/04/2022,391351,"1,411.92",HARMONY FIRE LTD,107179
NEWARK AND SHERWOOD DISTRICT COUNCIL,ECONOMIC DEVELOPMENT,G420,AGENCY STAFF,27/05/2022,393333,"1,400.00",Q A BUSINESS ASSIST LTD,105267
NEWARK AND SHERWOOD DISTRICT COUNCIL,CAPITAL,G997,CONSTRUCTION,24/06/2022,395627,"1,400.00",ROBERT MARSHALL & SONS LTD,105315
NEWARK AND SHERWOOD DISTRICT COUNCIL,LEISURE & ENVIRONMENT,G440,STAFF ADVERTISING,24/06/2022,391771,"1,400.00",CHARTERED INSTITUTE OF ENVIRONMENTAL HEALTH,106119
NEWARK AND SHERWOOD DISTRICT COUNCIL,HOUSING REVENUE ACCOUNT,G410,AGENCY STAFF,24/06/2022,395528,"1,395.15",HAYS SPECIALIST RECRUITMENT LTD,101794
NEWARK AND SHERWOOD DISTRICT COUNCIL,HOUSING REVENUE ACCOUNT,G410,CONTRACTUAL SERVICES,30/06/2022,396024,"1,394.00",CRYSTAL ELECTRONICS LTD,107094
NEWARK AND SHERWOOD DISTRICT COUNCIL,ECONOMIC DEVELOPMENT,G420,GAS,31/05/2022,394056,"1,393.11",TOTAL ENERGIES GAS & POWER LTD,107289
NEWARK AND SHERWOOD DISTRICT COUNCIL,HOUSING REVENUE ACCOUNT,G410,FURNITURE AND FITTINGS,14/04/2022,390336,"1,387.00",LINDUM GROUP LTD,100651
NEWARK AND SHERWOOD DISTRICT COUNCIL,HOUSING REVENUE ACCOUNT,G410,SPEECH CALL MAINTENANCE,13/05/2022,392257,"1,386.39",TUNSTALL HEALTHCARE LTD,100883
NEWARK AND SHERWOOD DISTRICT COUNCIL,POLICY & FINANCE,G450,STANDING CHARGES TELEPHONES,06/05/2022,391788,"1,386.12",DAISY CORPORATE SERVICES TRADING LTD,106630
NEWARK AND SHERWOOD DISTRICT COUNCIL,CAPITAL,G997,CONSTRUCTION,29/04/2022,391358,"1,385.28",HARMONY FIRE LTD,107179
NEWARK AND SHERWOOD DISTRICT COUNCIL,LEISURE & ENVIRONMENT,G440,OTHER EQUIPMENT AND TOOLS,08/04/2022,389671,"1,380.34",STORM TECHNOLOGIES LTD,105838
NEWARK AND SHERWOOD DISTRICT COUNCIL,HOUSING REVENUE ACCOUNT,G410,AGENCY STAFF,08/04/2022,389592,"1,378.50",HAYS SPECIALIST RECRUITMENT LTD,101794
NEWARK AND SHERWOOD DISTRICT COUNCIL,HOUSING REVENUE ACCOUNT,G410,AGENCY STAFF,17/06/2022,394669,"1,378.50",HAYS SPECIALIST RECRUITMENT LTD,101794
NEWARK AND SHERWOOD DISTRICT COUNCIL,HOUSING REVENUE ACCOUNT,G410,AGENCY STAFF,17/06/2022,394788,"1,378.50",HAYS SPECIALIST RECRUITMENT LTD,101794
NEWARK AND SHERWOOD DISTRICT COUNCIL,HOUSING REVENUE ACCOUNT,G410,AGENCY STAFF,17/06/2022,394793,"1,378.50",HAYS SPECIALIST RECRUITMENT LTD,101794
NEWARK AND SHERWOOD DISTRICT COUNCIL,HOUSING REVENUE ACCOUNT,G410,AGENCY STAFF,24/06/2022,395292,"1,378.50",HAYS SPECIALIST RECRUITMENT LTD,101794
NEWARK AND SHERWOOD DISTRICT COUNCIL,HOUSING REVENUE ACCOUNT,G410,AGENCY STAFF,24/06/2022,395484,"1,378.50",HAYS SPECIALIST RECRUITMENT LTD,101794
NEWARK AND SHERWOOD DISTRICT COUNCIL,HOUSING REVENUE ACCOUNT,G410,AGENCY STAFF,30/06/2022,395939,"1,378.50",HAYS SPECIALIST RECRUITMENT LTD,101794
NEWARK AND SHERWOOD DISTRICT COUNCIL,CAPITAL,G997,CONSTRUCTION,29/04/2022,391337,"1,377.67",HD ELECTRICAL SYSTEMS LTD,105293
NEWARK AND SHERWOOD DISTRICT COUNCIL,CAPITAL,G997,CONSTRUCTION,29/04/2022,391314,"1,375.00",STUDIO G ASSOCIATES,104539
NEWARK AND SHERWOOD DISTRICT COUNCIL,CAPITAL,G997,CONSTRUCTION,29/04/2022,391319,"1,375.00",STUDIO G ASSOCIATES,104539
NEWARK AND SHERWOOD DISTRICT COUNCIL,ECONOMIC DEVELOPMENT,G420,INWARD INVESTMENT MARKETING,06/05/2022,391814,"1,375.00",ADVERTA,107162
NEWARK AND SHERWOOD DISTRICT COUNCIL,HOUSING REVENUE ACCOUNT,G410,MATERIALS,17/06/2022,394889,"1,369.80",PTS - CITY PLUMBING SUPPLIES LTD,107157
NEWARK AND SHERWOOD DISTRICT COUNCIL,HOUSING REVENUE ACCOUNT,G410,CONTRACTUAL SERVICES,20/05/2022,393151,"1,357.53",NOVUS PROPERTY SOLUTIONS LTD,107362
NEWARK AND SHERWOOD DISTRICT COUNCIL,ECONOMIC DEVELOPMENT,G420,ELECTRICITY,20/05/2022,392674,"1,357.15",EDF ENERGY 1 LTD,101140
NEWARK AND SHERWOOD DISTRICT COUNCIL,ECONOMIC DEVELOPMENT,G420,LICENSED BAR PROVISIONS,20/05/2022,392735,"1,353.63",SMALL BEER LTD,107380
NEWARK AND SHERWOOD DISTRICT COUNCIL,POLICY & FINANCE,G450,POSTAGES,31/05/2022,393978,"1,351.55",ROYAL MAIL GROUP LTD,100469
NEWARK AND SHERWOOD DISTRICT COUNCIL,ECONOMIC DEVELOPMENT,G420,ADVERTISING,27/05/2022,393397,"1,350.00",PICNIQ LTD,107551
NEWARK AND SHERWOOD DISTRICT COUNCIL,ECONOMIC DEVELOPMENT,G420,PROFESSIONAL SERVICES,10/06/2022,394424,"1,350.00",FOXSTONE FORESTRY LTD,106901
NEWARK AND SHERWOOD DISTRICT COUNCIL,POLICY & FINANCE,G450,PROFESSIONAL SERVICES,27/05/2022,393359,"1,345.00",LINCOLNSHIRE COUNTY COUNCIL,101652
NEWARK AND SHERWOOD DISTRICT COUNCIL,CAPITAL,G997,CONSTRUCTION,10/06/2022,394444,"1,325.00",STUDIO G ASSOCIATES,104539
NEWARK AND SHERWOOD DISTRICT COUNCIL,CAPITAL,G997,DISABLED FACILITIES,24/06/2022,395263,"1,324.56",REDACTED PERSONAL DATA,105579
NEWARK AND SHERWOOD DISTRICT COUNCIL,HOUSING REVENUE ACCOUNT,G410,CONTRACTUAL SERVICES,24/06/2022,395535,"1,321.89",AARON SERVICES,107225
NEWARK AND SHERWOOD DISTRICT COUNCIL,HOUSING REVENUE ACCOUNT,G410,APPLIANCE SERVICING,29/04/2022,391342,"1,316.19",AARON SERVICES,107225
NEWARK AND SHERWOOD DISTRICT COUNCIL,HOUSING REVENUE ACCOUNT,G410,GAS,17/06/2022,395037,"1,315.37",BRITISH GAS TRADING LTD,104524
NEWARK AND SHERWOOD DISTRICT COUNCIL,HOUSING REVENUE ACCOUNT,G410,SEWERAGE AND WATER CHARGES,08/04/2022,389573,"1,302.37",SEVERN TRENT WATER LTD,100976
NEWARK AND SHERWOOD DISTRICT COUNCIL,HOUSING REVENUE ACCOUNT,G410,CONTRACTUAL SERVICES,10/06/2022,394409,"1,301.04",RENUVO LIMITED,107076
NEWARK AND SHERWOOD DISTRICT COUNCIL,HOUSING REVENUE ACCOUNT,G410,MATERIALS,22/04/2022,390815,"1,300.50",PTS - CITY PLUMBING SUPPLIES LTD,107157
NEWARK AND SHERWOOD DISTRICT COUNCIL,HOUSING REVENUE ACCOUNT,G410,MATERIALS,27/05/2022,393613,"1,300.50",PTS - CITY PLUMBING SUPPLIES LTD,107157
NEWARK AND SHERWOOD DISTRICT COUNCIL,HOUSING REVENUE ACCOUNT,G410,MATERIALS,24/06/2022,395334,"1,300.50",PTS - CITY PLUMBING SUPPLIES LTD,107157
NEWARK AND SHERWOOD DISTRICT COUNCIL,HOUSING REVENUE ACCOUNT,G410,MATERIALS,30/06/2022,395976,"1,300.50",PTS - CITY PLUMBING SUPPLIES LTD,107157
NEWARK AND SHERWOOD DISTRICT COUNCIL,HOUSING REVENUE ACCOUNT,G410,MATERIALS,30/06/2022,396044,"1,300.50",PTS - CITY PLUMBING SUPPLIES LTD,107157
NEWARK AND SHERWOOD DISTRICT COUNCIL,CAPITAL,G997,CONSTRUCTION,22/04/2022,390849,"1,300.00",PYGOTT & CRONE COMMERCIAL LTD,107009
NEWARK AND SHERWOOD DISTRICT COUNCIL,POLICY & FINANCE,G450,REPAIRS AND MAINTENANCE,13/05/2022,391864,"1,300.00",EUROTECH ENVIRONMENTAL LTD,100854
NEWARK AND SHERWOOD DISTRICT COUNCIL,CAPITAL,G997,SYSTEM UPGRADES,27/05/2022,393434,"1,300.00",HAYS SPECIALIST RECRUITMENT LTD,101794
NEWARK AND SHERWOOD DISTRICT COUNCIL,CAPITAL,G997,CONSTRUCTION,29/04/2022,391355,"1,297.08",HARMONY FIRE LTD,107179
NEWARK AND SHERWOOD DISTRICT COUNCIL,LEISURE & ENVIRONMENT,G440,AGENCY STAFF,24/06/2022,395391,"1,296.00",VIVID RESOURCING,106488
NEWARK AND SHERWOOD DISTRICT COUNCIL,LEISURE & ENVIRONMENT,G440,PROFESSIONAL SERVICES,29/04/2022,391250,"1,294.20",GRADKO ENVIRONMENTAL LTD,102588
NEWARK AND SHERWOOD DISTRICT COUNCIL,POLICY & FINANCE,G450,CONTRACTUAL SERVICES,30/06/2022,395827,"1,293.56",ATLAS FACILITIES MANAGEMENT LIMITED,106088
NEWARK AND SHERWOOD DISTRICT COUNCIL,HOUSING REVENUE ACCOUNT,G410,CONTRACTUAL SERVICES,22/04/2022,390601,"1,290.40",HD ELECTRICAL SYSTEMS LTD,105293
NEWARK AND SHERWOOD DISTRICT COUNCIL,HOUSING REVENUE ACCOUNT,G410,ELECTRICITY,22/04/2022,390582,"1,290.16",SCOTTISH & SOUTHERN ENERGY GROUP,103454
NEWARK AND SHERWOOD DISTRICT COUNCIL,ECONOMIC DEVELOPMENT,G420,LICENSED BAR PROVISIONS,10/06/2022,394258,"1,290.11",SMALL BEER LTD,107380
NEWARK AND SHERWOOD DISTRICT COUNCIL,ECONOMIC DEVELOPMENT,G420,REPAIRS AND MAINTENANCE,24/06/2022,393368,"1,290.00",TVR HIGH RISE CONSERVATION LTD,107163
NEWARK AND SHERWOOD DISTRICT COUNCIL,ECONOMIC DEVELOPMENT,G420,ARTISTS FEES,06/05/2022,391710,"1,288.83",CHIMES ENTERTAINMENT AGENCY LTD,107485
NEWARK AND SHERWOOD DISTRICT COUNCIL,HOUSING REVENUE ACCOUNT,G410,CONTRACTUAL SERVICES,30/06/2022,396050,"1,285.99",J WRIGHT ROOFING LTD,105753
NEWARK AND SHERWOOD DISTRICT COUNCIL,POLICY & FINANCE,G450,POSTAGES,24/06/2022,395423,"1,272.89",ROYAL MAIL GROUP LTD,100469
NEWARK AND SHERWOOD DISTRICT COUNCIL,ECONOMIC DEVELOPMENT,G420,CLEANING CONTRACT,14/04/2022,390321,"1,261.98",ATLAS FACILITIES MANAGEMENT LIMITED,106088
NEWARK AND SHERWOOD DISTRICT COUNCIL,POLICY & FINANCE,G450,CTAX NSDC PARISH PRECEPT PYMTS,22/04/2022,390658,"1,260.00",THORNEY PARISH COUNCIL,100561
NEWARK AND SHERWOOD DISTRICT COUNCIL,HOUSING REVENUE ACCOUNT,G410,GAS,08/04/2022,389577,"1,256.05",BRITISH GAS,101852
NEWARK AND SHERWOOD DISTRICT COUNCIL,HOUSING REVENUE ACCOUNT,G410,CONTRACTUAL SERVICES,20/05/2022,393157,"1,253.86",NOVUS PROPERTY SOLUTIONS LTD,107362
NEWARK AND SHERWOOD DISTRICT COUNCIL,LEISURE & ENVIRONMENT,G440,TRI SCAN PAYMENTS,29/04/2022,391300,"1,251.98",TRISCAN SYSTEMS LIMITED,100573
NEWARK AND SHERWOOD DISTRICT COUNCIL,CAPITAL,G997,CONSTRUCTION,10/06/2022,394431,"1,250.00",BSP CONSULTING,104667
NEWARK AND SHERWOOD DISTRICT COUNCIL,POLICY & FINANCE,G450,CTAX NSDC PARISH PRECEPT PYMTS,22/04/2022,390617,"1,250.00",SOUTH CLIFTON PARISH COUNCIL,100510
NEWARK AND SHERWOOD DISTRICT COUNCIL,ECONOMIC DEVELOPMENT,G420,PROFESSIONAL SERVICES,27/05/2022,393345,"1,250.00",PYGOTT & CRONE COMMERCIAL LTD,107009
NEWARK AND SHERWOOD DISTRICT COUNCIL,ECONOMIC DEVELOPMENT,G420,PROFESSIONAL SERVICES,24/06/2022,395628,"1,250.00",PYGOTT & CRONE COMMERCIAL LTD,107009
NEWARK AND SHERWOOD DISTRICT COUNCIL,POLICY & FINANCE,G450,REPAIRS AND MAINTENANCE,08/04/2022,388818,"1,244.72",R J WILSON CONTRACTORS LTD,107172
NEWARK AND SHERWOOD DISTRICT COUNCIL,ECONOMIC DEVELOPMENT,G420,ELECTRICITY,27/05/2022,393502,"1,244.42",EDF ENERGY 1 LTD,101140
NEWARK AND SHERWOOD DISTRICT COUNCIL,ECONOMIC DEVELOPMENT,G420,CONTRACTUAL SERVICES,08/04/2022,389700,"1,240.89",JOHNSON ELECTRICAL SOLUTIONS LTD,107173
NEWARK AND SHERWOOD DISTRICT COUNCIL,ECONOMIC DEVELOPMENT,G420,REPAIRS AND MAINTENANCE,13/05/2022,391254,"1,235.00",COUNTY SIGN AGENCY,100115
NEWARK AND SHERWOOD DISTRICT COUNCIL,HOMES & COMMUNITIES,G430,MISCELLANEOUS EXPENSES,20/05/2022,393172,"1,225.00",KOALA KLUBS1 LTD,107426
NEWARK AND SHERWOOD DISTRICT COUNCIL,HOUSING REVENUE ACCOUNT,G410,CONTRACTUAL SERVICES,13/05/2022,392412,"1,224.00",METRO ROD LTD,106655
NEWARK AND SHERWOOD DISTRICT COUNCIL,LEISURE & ENVIRONMENT,G440,PAYMENTS TO NOTTS COUNTY CNCL,13/05/2022,392507,"1,219.10",LOWDHAM VILLAGE HALL COMMITTEE,101612
NEWARK AND SHERWOOD DISTRICT COUNCIL,ECONOMIC DEVELOPMENT,G420,STREET NAME PLATE MAINTENANCE,24/06/2022,395401,"1,215.40",S P G CONSTRUCTION LTD,100477
NEWARK AND SHERWOOD DISTRICT COUNCIL,HOUSING REVENUE ACCOUNT,G410,AGENCY STAFF,14/04/2022,390331,"1,214.35",COMENSURA LTD,100106
NEWARK AND SHERWOOD DISTRICT COUNCIL,ECONOMIC DEVELOPMENT,G420,PROFESSIONAL SERVICES,13/05/2022,392288,"1,210.00",REDACTED PERSONAL DATA,107523
NEWARK AND SHERWOOD DISTRICT COUNCIL,ECONOMIC DEVELOPMENT,G420,ARTISTS FEES,08/04/2022,389760,"1,207.90",IMMERSION THEATRE,107507
NEWARK AND SHERWOOD DISTRICT COUNCIL,POLICY & FINANCE,G450,POSTAGES,24/06/2022,394758,"1,206.92",ROYAL MAIL GROUP LTD,100469
NEWARK AND SHERWOOD DISTRICT COUNCIL,HOMES & COMMUNITIES,G430,ADVERTISING,08/04/2022,389646,"1,200.00",TES GLOBAL LIMITED,107564
NEWARK AND SHERWOOD DISTRICT COUNCIL,POLICY & FINANCE,G450,CHANGE MANAGEMENT,27/05/2022,393667,"1,200.00",REDACTED PERSONAL DATA,106404
NEWARK AND SHERWOOD DISTRICT COUNCIL,POLICY & FINANCE,G450,CHANGE MANAGEMENT,27/05/2022,393668,"1,200.00",REDACTED PERSONAL DATA,107074
NEWARK AND SHERWOOD DISTRICT COUNCIL,ECONOMIC DEVELOPMENT,G420,COMPUTER SOFTWARE MAINTENANCE,06/05/2022,392001,"1,200.00",BAZZOO LIMITED,101372
NEWARK AND SHERWOOD DISTRICT COUNCIL,ECONOMIC DEVELOPMENT,G420,CONTRACTUAL SERVICES,08/04/2022,389586,"1,200.00",FOXSTONE FORESTRY LTD,106901
NEWARK AND SHERWOOD DISTRICT COUNCIL,HOUSING REVENUE ACCOUNT,G410,PERIODIC ELECTRICAL TESTING,30/06/2022,396134,"1,200.00",FARRENDALE LTD,106640
NEWARK AND SHERWOOD DISTRICT COUNCIL,HOMES & COMMUNITIES,G430,PLAY LEADERSHIP,06/05/2022,391981,"1,200.00",NEWARK & SHERWOOD COMMUNITY HUB,106310
NEWARK AND SHERWOOD DISTRICT COUNCIL,ECONOMIC DEVELOPMENT,G420,PROFESSIONAL SERVICES,08/04/2022,389941,"1,200.00",BLUE KAZOO,107479
NEWARK AND SHERWOOD DISTRICT COUNCIL,ECONOMIC DEVELOPMENT,G420,PROFESSIONAL SERVICES,08/04/2022,389691,"1,200.00",MASON CLARK ASSOCIATES LTD,107518
NEWARK AND SHERWOOD DISTRICT COUNCIL,ECONOMIC DEVELOPMENT,G420,PROFESSIONAL SERVICES,24/06/2022,395503,"1,200.00",NO 5 CHAMBERS LTD,103293
NEWARK AND SHERWOOD DISTRICT COUNCIL,HOMES & COMMUNITIES,G430,CONT TO SAFER STREETS SCHEME,08/04/2022,389715,"1,199.00",BROXAP LTD,101567
NEWARK AND SHERWOOD DISTRICT COUNCIL,POLICY & FINANCE,G450,ELECTRICITY,06/05/2022,391806,"1,197.35",EDF ENERGY 1 LTD,101140
NEWARK AND SHERWOOD DISTRICT COUNCIL,LEISURE & ENVIRONMENT,G440,REFUSE BIN PURCHASES,10/06/2022,394419,"1,197.00",CRAEMER UK LTD,101504
NEWARK AND SHERWOOD DISTRICT COUNCIL,ECONOMIC DEVELOPMENT,G420,COMMUNICATION & ADVERTISING,17/06/2022,394888,"1,195.00",BAKERBAIRD COMMUNICATIONS LTD,107392
NEWARK AND SHERWOOD DISTRICT COUNCIL,HOUSING REVENUE ACCOUNT,G410,AGENCY STAFF,29/04/2022,391369,"1,194.10",COMENSURA LTD,100106
NEWARK AND SHERWOOD DISTRICT COUNCIL,HOUSING REVENUE ACCOUNT,G410,AGENCY STAFF,29/04/2022,391348,"1,191.85",COMENSURA LTD,100106
NEWARK AND SHERWOOD DISTRICT COUNCIL,HOUSING REVENUE ACCOUNT,G410,AGENCY STAFF,29/04/2022,391339,"1,191.40",COMENSURA LTD,100106
NEWARK AND SHERWOOD DISTRICT COUNCIL,CAPITAL,G997,CONSTRUCTION,08/04/2022,389579,"1,191.38",METRO ROD LTD,106655
NEWARK AND SHERWOOD DISTRICT COUNCIL,POLICY & FINANCE,G450,CIL LOCAL MONIES PAYMENT,27/05/2022,393672,"1,183.88",FARNDON PARISH COUNCIL,100162
NEWARK AND SHERWOOD DISTRICT COUNCIL,HOUSING REVENUE ACCOUNT,G410,MATERIALS,30/06/2022,396023,"1,181.81",HOWDEN JOINERY LTD,107418
NEWARK AND SHERWOOD DISTRICT COUNCIL,LEISURE & ENVIRONMENT,G440,PETROL AND DIESEL,27/05/2022,393328,"1,181.72",UK FUELS LTD,103594
NEWARK AND SHERWOOD DISTRICT COUNCIL,HOUSING REVENUE ACCOUNT,G410,AGENCY STAFF,24/06/2022,395517,"1,181.25",NIYAA PEOPLE,106937
NEWARK AND SHERWOOD DISTRICT COUNCIL,HOUSING REVENUE ACCOUNT,G410,AGENCY STAFF,30/06/2022,396048,"1,181.25",NIYAA PEOPLE,106937
NEWARK AND SHERWOOD DISTRICT COUNCIL,LEISURE & ENVIRONMENT,G440,MATERIALS,29/04/2022,391235,"1,178.80",RH COMMERCIAL VEHICLES,107463
NEWARK AND SHERWOOD DISTRICT COUNCIL,CAPITAL,G997,DISABLED FACILITIES,31/05/2022,394112,"1,176.44",MATTHEWS & TANNERT LTD,101312
NEWARK AND SHERWOOD DISTRICT COUNCIL,CAPITAL,G997,CONSTRUCTION,08/04/2022,389733,"1,173.00",FREETHS LLP,106214
NEWARK AND SHERWOOD DISTRICT COUNCIL,POLICY & FINANCE,G450,CIL LOCAL MONIES PAYMENT,27/05/2022,393670,"1,172.67",CARLTON-ON-TRENT PARISH COUNCIL,100072
NEWARK AND SHERWOOD DISTRICT COUNCIL,ECONOMIC DEVELOPMENT,G420,REPAIRS AND MAINTENANCE,30/06/2022,394744,"1,170.50",COOPER PLUMBING,100110
NEWARK AND SHERWOOD DISTRICT COUNCIL,HOUSING REVENUE ACCOUNT,G410,AGENCY STAFF,27/05/2022,393633,"1,170.25",COMENSURA LTD,100106
NEWARK AND SHERWOOD DISTRICT COUNCIL,HOUSING REVENUE ACCOUNT,G410,CONTRACTUAL SERVICES,17/06/2022,394366,"1,170.00",PORTLAND SURVEYS,106860
NEWARK AND SHERWOOD DISTRICT COUNCIL,ECONOMIC DEVELOPMENT,G420,SEWERAGE AND WATER CHARGES,27/05/2022,393528,"1,164.81",SMARTA WATER LTD,107280
NEWARK AND SHERWOOD DISTRICT COUNCIL,ECONOMIC DEVELOPMENT,G420,CONTRACTUAL SERVICES,24/06/2022,395430,"1,162.72",R J WILSON CONTRACTORS LTD,107172
NEWARK AND SHERWOOD DISTRICT COUNCIL,HOUSING REVENUE ACCOUNT,G410,MATERIALS,13/05/2022,392422,"1,162.12",KELTRUCK LIMITED,100957
NEWARK AND SHERWOOD DISTRICT COUNCIL,ECONOMIC DEVELOPMENT,G420,SEWERAGE AND WATER CHARGES,29/04/2022,391139,"1,161.31",SMARTA WATER LTD,107280
NEWARK AND SHERWOOD DISTRICT COUNCIL,HOUSING REVENUE ACCOUNT,G410,APPLIANCE SERVICING,22/04/2022,390847,"1,161.27",RENUVO LIMITED,107076
NEWARK AND SHERWOOD DISTRICT COUNCIL,CAPITAL,G997,CONSTRUCTION,30/06/2022,395971,"1,161.23",METRO ROD LTD,106655
NEWARK AND SHERWOOD DISTRICT COUNCIL,CAPITAL,G997,CONSTRUCTION,23/06/2022,395564,"1,160.00",QUANTUM BILLING - INPROVA GROUP,106944
NEWARK AND SHERWOOD DISTRICT COUNCIL,ECONOMIC DEVELOPMENT,G420,CONTRACTUAL SERVICES,06/05/2022,391714,"1,159.71",JPC SERVICES (GLOSSOP) LTD,105208
NEWARK AND SHERWOOD DISTRICT COUNCIL,LEISURE & ENVIRONMENT,G440,AGENCY STAFF,24/06/2022,395399,"1,152.45",VIVID RESOURCING,106488
NEWARK AND SHERWOOD DISTRICT COUNCIL,LEISURE & ENVIRONMENT,G440,MATERIALS,06/05/2022,391745,"1,151.26",PARTIC MOTOR SPARES LTD,100421
NEWARK AND SHERWOOD DISTRICT COUNCIL,HOMES & COMMUNITIES,G430,MISCELLANEOUS EXPENSES,20/05/2022,393173,"1,150.00",ACTIVE4TODAY LTD,105072
NEWARK AND SHERWOOD DISTRICT COUNCIL,ECONOMIC DEVELOPMENT,G420,PROFESSIONAL SERVICES,27/05/2022,393408,"1,150.00",GCA CONSULTING,107505
NEWARK AND SHERWOOD DISTRICT COUNCIL,ECONOMIC DEVELOPMENT,G420,PROFESSIONAL SERVICES,29/04/2022,391190,"1,150.00",LEPUS CONSULTING LTD,105442
NEWARK AND SHERWOOD DISTRICT COUNCIL,LEISURE & ENVIRONMENT,G440,PROFESSIONAL SERVICES,13/05/2022,392501,"1,150.00",LOGISTICS UK,106651
NEWARK AND SHERWOOD DISTRICT COUNCIL,HOUSING REVENUE ACCOUNT,G410,MATERIALS,24/06/2022,395468,"1,145.63",HOWDEN JOINERY LTD,107418
NEWARK AND SHERWOOD DISTRICT COUNCIL,HOUSING REVENUE ACCOUNT,G410,MATERIALS,30/06/2022,396038,"1,145.27",PTS - CITY PLUMBING SUPPLIES LTD,107157
NEWARK AND SHERWOOD DISTRICT COUNCIL,ECONOMIC DEVELOPMENT,G420,REPAIRS AND MAINTENANCE,27/05/2022,393123,"1,141.00",P J LILLEY LTD,100418
NEWARK AND SHERWOOD DISTRICT COUNCIL,LEISURE & ENVIRONMENT,G440,MATERIALS,13/05/2022,392188,"1,140.64",RUSSELLS (KIRBYMOORSIDE) LTD,106779
NEWARK AND SHERWOOD DISTRICT COUNCIL,CAPITAL,G997,CONSTRUCTION,17/06/2022,394949,"1,140.00",NEW CENTURY WINDOWS LTD,107541
NEWARK AND SHERWOOD DISTRICT COUNCIL,LEISURE & ENVIRONMENT,G440,CONTRACTUAL SERVICES,08/04/2022,389989,"1,138.00",CARLTON FOREST RESCUE CENTRE,101925
NEWARK AND SHERWOOD DISTRICT COUNCIL,HOUSING REVENUE ACCOUNT,G410,FIRE MAINTENANCE,27/05/2022,393572,"1,135.93",VENTRO LTD,107290
NEWARK AND SHERWOOD DISTRICT COUNCIL,HOUSING REVENUE ACCOUNT,G410,FURNITURE AND FITTINGS,13/05/2022,392379,"1,129.14",E C WALTON & CO LTD,107493
NEWARK AND SHERWOOD DISTRICT COUNCIL,HOUSING REVENUE ACCOUNT,G410,CONTRACTUAL SERVICES,10/06/2022,394407,"1,127.90",RENUVO LIMITED,107076
NEWARK AND SHERWOOD DISTRICT COUNCIL,HOUSING REVENUE ACCOUNT,G410,MATERIALS,27/05/2022,393610,"1,127.37",PTS - CITY PLUMBING SUPPLIES LTD,107157
NEWARK AND SHERWOOD DISTRICT COUNCIL,HOUSING REVENUE ACCOUNT,G410,CONTRACTUAL SERVICES,13/05/2022,392441,"1,126.72",J WRIGHT ROOFING LTD,105753
NEWARK AND SHERWOOD DISTRICT COUNCIL,HOUSING REVENUE ACCOUNT,G410,AGENCY STAFF,17/06/2022,394802,"1,126.13",NIYAA PEOPLE,106937
NEWARK AND SHERWOOD DISTRICT COUNCIL,HOMES & COMMUNITIES,G430,COUNCIL FOR VOLUNTARY SERVICES,08/04/2022,389722,"1,126.00",NEWARK & SHERWOOD CVS,101027
NEWARK AND SHERWOOD DISTRICT COUNCIL,ECONOMIC DEVELOPMENT,G420,CONTRACTUAL SERVICES,06/05/2022,391713,"1,125.66",JPC SERVICES (GLOSSOP) LTD,105208
NEWARK AND SHERWOOD DISTRICT COUNCIL,HOMES & COMMUNITIES,G430,RECHARGE THIRD PARTY,30/05/2022,393948,"1,123.38",COOPER PLUMBING,100110
NEWARK AND SHERWOOD DISTRICT COUNCIL,HOUSING REVENUE ACCOUNT,G410,WASHING MACHINE AND DRIER,25/04/2022,391100,"1,123.16",SIEMENS FINANCIAL SERVICES LTD,100502
NEWARK AND SHERWOOD DISTRICT COUNCIL,POLICY & FINANCE,G450,PRINTING,30/06/2022,395913,"1,123.04",SPECIALIST COMPUTER CENTRES PLC,100773
NEWARK AND SHERWOOD DISTRICT COUNCIL,ECONOMIC DEVELOPMENT,G420,CONTRACTUAL SERVICES,14/04/2022,390382,"1,122.00",SMITH AND ROPER,107560
NEWARK AND SHERWOOD DISTRICT COUNCIL,ECONOMIC DEVELOPMENT,G420,AGENCY STAFF,06/05/2022,391830,"1,120.00",Q A BUSINESS ASSIST LTD,105267
NEWARK AND SHERWOOD DISTRICT COUNCIL,CAPITAL,G997,CONSTRUCTION,30/06/2022,396014,"1,118.50",METRO ROD LTD,106655
NEWARK AND SHERWOOD DISTRICT COUNCIL,HOUSING REVENUE ACCOUNT,G410,AGENCY STAFF,06/05/2022,391887,"1,118.10",COMENSURA LTD,100106
NEWARK AND SHERWOOD DISTRICT COUNCIL,HOUSING REVENUE ACCOUNT,G410,AGENCY STAFF,17/06/2022,395028,"1,114.85",COMENSURA LTD,100106
NEWARK AND SHERWOOD DISTRICT COUNCIL,HOUSING REVENUE ACCOUNT,G410,AGENCY STAFF,17/06/2022,395032,"1,114.45",COMENSURA LTD,100106
NEWARK AND SHERWOOD DISTRICT COUNCIL,POLICY & FINANCE,G450,CONTRACTUAL SERVICES,20/05/2022,392816,"1,110.80",CIVICA UK LTD,105867
NEWARK AND SHERWOOD DISTRICT COUNCIL,CAPITAL,G997,CONSTRUCTION,30/06/2022,395833,"1,110.00",SPS DOORGUARD LTD,102135
NEWARK AND SHERWOOD DISTRICT COUNCIL,HOUSING REVENUE ACCOUNT,G410,CONTRACTUAL SERVICES,20/05/2022,393198,"1,105.92",NOVUS PROPERTY SOLUTIONS LTD,107362
NEWARK AND SHERWOOD DISTRICT COUNCIL,HOUSING REVENUE ACCOUNT,G410,CONTRACTUAL SERVICES,13/05/2022,392373,"1,105.73",J WRIGHT ROOFING LTD,105753
NEWARK AND SHERWOOD DISTRICT COUNCIL,POLICY & FINANCE,G450,SUBSCRIPTIONS,13/05/2022,390338,"1,105.00",IMPROVEMENT AND DEVELOPMENT AGENCY,105560
NEWARK AND SHERWOOD DISTRICT COUNCIL,HOMES & COMMUNITIES,G430,PROFESSIONAL SERVICES,30/05/2022,393346,"1,103.75",REVIEW CONSULTING LTD,107556
NEWARK AND SHERWOOD DISTRICT COUNCIL,HOUSING REVENUE ACCOUNT,G410,AGENCY STAFF,17/06/2022,394979,"1,102.80",HAYS SPECIALIST RECRUITMENT LTD,101794
NEWARK AND SHERWOOD DISTRICT COUNCIL,ECONOMIC DEVELOPMENT,G420,PROFESSIONAL SERVICES,06/05/2022,391973,"1,100.00",FOXSTONE FORESTRY LTD,106901
NEWARK AND SHERWOOD DISTRICT COUNCIL,CAPITAL,G997,CONSTRUCTION,08/04/2022,389466,"1,099.84",METRO ROD LTD,106655
NEWARK AND SHERWOOD DISTRICT COUNCIL,CAPITAL,G997,CONSTRUCTION,29/04/2022,391313,"1,092.84",STUDIO G ASSOCIATES,104539
NEWARK AND SHERWOOD DISTRICT COUNCIL,HOUSING REVENUE ACCOUNT,G410,APPLIANCE SERVICING,27/05/2022,393404,"1,088.00",FAAC ENTRANCE SOLUTIONS UK LTD,107499
NEWARK AND SHERWOOD DISTRICT COUNCIL,CAPITAL,G997,CONSTRUCTION,08/04/2022,389526,"1,085.97",MATTHEWS & TANNERT LTD,101312
NEWARK AND SHERWOOD DISTRICT COUNCIL,POLICY & FINANCE,G450,COMPUTER SOFTWARE,17/06/2022,394601,"1,080.00",SMART SURVEY LTD,107165
NEWARK AND SHERWOOD DISTRICT COUNCIL,POLICY & FINANCE,G450,COMPUTER SOFTWARE MAINTENANCE,27/05/2022,393352,"1,080.00",MERITEC LTD,105609
NEWARK AND SHERWOOD DISTRICT COUNCIL,HOUSING REVENUE ACCOUNT,G410,LEGIONELLA TESTING & REMEDIALS,10/06/2022,394321,"1,080.00",T & S HEATING LTD,105748
NEWARK AND SHERWOOD DISTRICT COUNCIL,ECONOMIC DEVELOPMENT,G420,GAS,31/05/2022,394050,"1,079.05",TOTAL ENERGIES GAS & POWER LTD,107289
NEWARK AND SHERWOOD DISTRICT COUNCIL,LEISURE & ENVIRONMENT,G440,MATERIALS,14/04/2022,390433,"1,078.70",TERBERG MATEC UK LTD,100541
NEWARK AND SHERWOOD DISTRICT COUNCIL,CAPITAL,G997,CONSTRUCTION,29/04/2022,391312,"1,075.00",STUDIO G ASSOCIATES,104539
NEWARK AND SHERWOOD DISTRICT COUNCIL,CAPITAL,G997,CONSTRUCTION,29/04/2022,391322,"1,075.00",STUDIO G ASSOCIATES,104539
NEWARK AND SHERWOOD DISTRICT COUNCIL,ECONOMIC DEVELOPMENT,G420,REPAIRS AND MAINTENANCE,20/05/2022,393124,"1,074.16",ROBERT MARSHALL & SONS LTD,105315
NEWARK AND SHERWOOD DISTRICT COUNCIL,HOUSING REVENUE ACCOUNT,G410,CONTRACTUAL SERVICES,27/05/2022,393640,"1,071.45",NOVUS PROPERTY SOLUTIONS LTD,107362
NEWARK AND SHERWOOD DISTRICT COUNCIL,HOUSING REVENUE ACCOUNT,G410,CONTRACTUAL SERVICES,27/05/2022,393647,"1,071.45",NOVUS PROPERTY SOLUTIONS LTD,107362
NEWARK AND SHERWOOD DISTRICT COUNCIL,HOUSING REVENUE ACCOUNT,G410,MATERIALS,24/06/2022,395339,"1,067.29",PTS - CITY PLUMBING SUPPLIES LTD,107157
NEWARK AND SHERWOOD DISTRICT COUNCIL,CAPITAL,G997,CONSTRUCTION,13/05/2022,389661,"1,067.00",BSP CONSULTING,104667
NEWARK AND SHERWOOD DISTRICT COUNCIL,CAPITAL,G997,CONSTRUCTION,29/04/2022,391357,"1,065.60",HARMONY FIRE LTD,107179
NEWARK AND SHERWOOD DISTRICT COUNCIL,HOUSING REVENUE ACCOUNT,G410,CONTRACTUAL SERVICES,06/05/2022,391912,"1,063.04",T & S HEATING LTD,105748
NEWARK AND SHERWOOD DISTRICT COUNCIL,POLICY & FINANCE,G450,AGENCY STAFF,30/06/2022,394061,"1,060.50",SELLICK PARTNERSHIP LTD,106780
NEWARK AND SHERWOOD DISTRICT COUNCIL,HOMES & COMMUNITIES,G430,MISCELLANEOUS EXPENSES,20/05/2022,393195,"1,054.17",REDACTED PERSONAL DATA,103615
NEWARK AND SHERWOOD DISTRICT COUNCIL,CAPITAL,G997,CONSTRUCTION,24/06/2022,395470,"1,052.88",METRO ROD LTD,106655
NEWARK AND SHERWOOD DISTRICT COUNCIL,ECONOMIC DEVELOPMENT,G420,ELECTRICITY,24/06/2022,395619,"1,050.47",BRITISH GAS,101852
NEWARK AND SHERWOOD DISTRICT COUNCIL,ECONOMIC DEVELOPMENT,G420,AGENCY STAFF,29/04/2022,391156,"1,050.00",PAYSTREAM MY MAX 3 LTD,107549
NEWARK AND SHERWOOD DISTRICT COUNCIL,POLICY & FINANCE,G450,CONTRACTUAL SERVICES,08/04/2022,389913,"1,050.00",METRIC GROUP LTD,100306
NEWARK AND SHERWOOD DISTRICT COUNCIL,ECONOMIC DEVELOPMENT,G420,GAS,29/04/2022,391159,"1,049.45",TOTAL ENERGIES GAS & POWER LTD,107289
NEWARK AND SHERWOOD DISTRICT COUNCIL,POLICY & FINANCE,G450,MOBILE PHONE COSTS,06/05/2022,391795,"1,047.42",EE LIMITED,106527
NEWARK AND SHERWOOD DISTRICT COUNCIL,POLICY & FINANCE,G450,CIL LOCAL MONIES PAYMENT,27/05/2022,393671,"1,045.17",EAST STOKE WITH THORPE P C,100141
NEWARK AND SHERWOOD DISTRICT COUNCIL,POLICY & FINANCE,G450,AGENCY STAFF,27/05/2022,393390,"1,045.00",SELLICK PARTNERSHIP LTD,106780
NEWARK AND SHERWOOD DISTRICT COUNCIL,POLICY & FINANCE,G450,ELECTRICITY,27/05/2022,393497,"1,038.04",EDF ENERGY 1 LTD,101140
NEWARK AND SHERWOOD DISTRICT COUNCIL,HOUSING REVENUE ACCOUNT,G410,AGENCY STAFF,30/06/2022,395932,"1,038.00",SELLICK PARTNERSHIP LTD,106780
NEWARK AND SHERWOOD DISTRICT COUNCIL,CAPITAL,G997,CONSTRUCTION,17/06/2022,394950,"1,030.00",NEW CENTURY WINDOWS LTD,107541
NEWARK AND SHERWOOD DISTRICT COUNCIL,HOUSING REVENUE ACCOUNT,G410,CONTRACTUAL SERVICES,20/05/2022,393203,"1,029.76",NOVUS PROPERTY SOLUTIONS LTD,107362
NEWARK AND SHERWOOD DISTRICT COUNCIL,POLICY & FINANCE,G450,REPAIRS AND MAINTENANCE,06/05/2022,391751,"1,028.08",ROBERT MARSHALL & SONS LTD,105315
NEWARK AND SHERWOOD DISTRICT COUNCIL,POLICY & FINANCE,G450,POSTAGES,31/05/2022,393977,"1,025.23",ROYAL MAIL GROUP LTD,100469
NEWARK AND SHERWOOD DISTRICT COUNCIL,CAPITAL,G997,DISABLED FACILITIES,13/05/2022,392505,"1,019.37",DAVID P FORMON B.D.C LTD,100122
NEWARK AND SHERWOOD DISTRICT COUNCIL,ECONOMIC DEVELOPMENT,G420,ADVERTISING,08/04/2022,389725,"1,016.96",TMP UK LTD,102103
NEWARK AND SHERWOOD DISTRICT COUNCIL,HOUSING REVENUE ACCOUNT,G410,AGENCY STAFF,08/04/2022,389468,"1,014.00",SELLICK PARTNERSHIP LTD,106780
NEWARK AND SHERWOOD DISTRICT COUNCIL,ECONOMIC DEVELOPMENT,G420,CONTRACTUAL SERVICES,17/06/2022,394676,"1,013.43",PAY BY PHONE,106856
NEWARK AND SHERWOOD DISTRICT COUNCIL,CAPITAL,G997,CONSTRUCTION,29/04/2022,391359,"1,012.32",HARMONY FIRE LTD,107179
NEWARK AND SHERWOOD DISTRICT COUNCIL,POLICY & FINANCE,G450,HARDWARE MAINTENANCE,27/05/2022,393350,"1,009.61",NOMINET,107200
NEWARK AND SHERWOOD DISTRICT COUNCIL,HOUSING REVENUE ACCOUNT,G410,CONTRACTUAL SERVICES,31/05/2022,394090,"1,007.25",J WRIGHT ROOFING LTD,105753
NEWARK AND SHERWOOD DISTRICT COUNCIL,ECONOMIC DEVELOPMENT,G420,PREMISES SECURITY,13/05/2022,392199,"1,006.55",JOHNSON ELECTRICAL SOLUTIONS LTD,107173
NEWARK AND SHERWOOD DISTRICT COUNCIL,HOUSING REVENUE ACCOUNT,G410,MATERIALS,24/06/2022,395472,"1,005.40",PREMIERE KITCHENS,107197
NEWARK AND SHERWOOD DISTRICT COUNCIL,ECONOMIC DEVELOPMENT,G420,POSTAGES,24/06/2022,395489,"1,001.18",QUADIENT FINANCE UK LIMITED,106774
NEWARK AND SHERWOOD DISTRICT COUNCIL,ECONOMIC DEVELOPMENT,G420,PROFESSIONAL SERVICES,13/05/2022,392286,"1,001.00",SMITH AND ROPER,107560
NEWARK AND SHERWOOD DISTRICT COUNCIL,ECONOMIC DEVELOPMENT,G420,ELECTRICITY,20/05/2022,392516,"1,000.00",EDF ENERGY 1 LTD,101140
NEWARK AND SHERWOOD DISTRICT COUNCIL,ECONOMIC DEVELOPMENT,G420,PROFESSIONAL SERVICES,20/05/2022,392742,"1,000.00",NEWARK BOOK FESTIVAL,105885
NEWARK AND SHERWOOD DISTRICT COUNCIL,POLICY & FINANCE,G450,PROFESSIONAL SERVICES,17/06/2022,394599,"1,000.00",POST OFFICE LIMITED,107552
NEWARK AND SHERWOOD DISTRICT COUNCIL,HOUSING REVENUE ACCOUNT,G410,CONTRACTUAL SERVICES,13/05/2022,392250,996,SELLICK PARTNERSHIP LTD,106780
NEWARK AND SHERWOOD DISTRICT COUNCIL,HOUSING REVENUE ACCOUNT,G410,CONTRACTUAL SERVICES,13/05/2022,392371,990.68,J WRIGHT ROOFING LTD,105753
NEWARK AND SHERWOOD DISTRICT COUNCIL,POLICY & FINANCE,G450,MOBILE PHONE COSTS,24/06/2022,395394,990.09,EE LIMITED,106527
NEWARK AND SHERWOOD DISTRICT COUNCIL,CAPITAL,G997,CONSTRUCTION,17/06/2022,394947,990,NEW CENTURY WINDOWS LTD,107541
NEWARK AND SHERWOOD DISTRICT COUNCIL,CAPITAL,G997,CONSTRUCTION,17/06/2022,394948,990,NEW CENTURY WINDOWS LTD,107541
NEWARK AND SHERWOOD DISTRICT COUNCIL,CAPITAL,G997,CONSTRUCTION,17/06/2022,394951,990,NEW CENTURY WINDOWS LTD,107541
NEWARK AND SHERWOOD DISTRICT COUNCIL,CAPITAL,G997,CONSTRUCTION,17/06/2022,394952,990,NEW CENTURY WINDOWS LTD,107541
NEWARK AND SHERWOOD DISTRICT COUNCIL,CAPITAL,G997,CONSTRUCTION,17/06/2022,394953,990,NEW CENTURY WINDOWS LTD,107541
NEWARK AND SHERWOOD DISTRICT COUNCIL,CAPITAL,G997,CONSTRUCTION,17/06/2022,394955,990,NEW CENTURY WINDOWS LTD,107541
NEWARK AND SHERWOOD DISTRICT COUNCIL,CAPITAL,G997,CONSTRUCTION,17/06/2022,394956,990,NEW CENTURY WINDOWS LTD,107541
NEWARK AND SHERWOOD DISTRICT COUNCIL,CAPITAL,G997,CONSTRUCTION,24/06/2022,395530,990,NEW CENTURY WINDOWS LTD,107541
NEWARK AND SHERWOOD DISTRICT COUNCIL,CAPITAL,G997,CONSTRUCTION,30/06/2022,395869,990,NEW CENTURY WINDOWS LTD,107541
NEWARK AND SHERWOOD DISTRICT COUNCIL,HOUSING REVENUE ACCOUNT,G410,CONTRACTUAL SERVICES,13/05/2022,392249,990,SELLICK PARTNERSHIP LTD,106780
NEWARK AND SHERWOOD DISTRICT COUNCIL,LEISURE & ENVIRONMENT,G440,MATERIALS,22/04/2022,390743,979.74,DENNIS EAGLE LTD,100797
NEWARK AND SHERWOOD DISTRICT COUNCIL,POLICY & FINANCE,G450,MOBILE PHONE COSTS,20/05/2022,392708,978.93,EE LIMITED,106527
NEWARK AND SHERWOOD DISTRICT COUNCIL,HOUSING REVENUE ACCOUNT,G410,AGENCY STAFF,20/05/2022,392903,972,SELLICK PARTNERSHIP LTD,106780
NEWARK AND SHERWOOD DISTRICT COUNCIL,HOMES & COMMUNITIES,G430,ADVERTISING,13/05/2022,392290,968,GRANICUS-FIRMSTEP LTD,107187
NEWARK AND SHERWOOD DISTRICT COUNCIL,HOUSING REVENUE ACCOUNT,G410,CONTRACTUAL SERVICES,13/05/2022,392427,960,J WRIGHT ROOFING LTD,105753
NEWARK AND SHERWOOD DISTRICT COUNCIL,HOUSING REVENUE ACCOUNT,G410,MATERIALS,22/04/2022,390699,959.4,PTS - CITY PLUMBING SUPPLIES LTD,107157
NEWARK AND SHERWOOD DISTRICT COUNCIL,HOUSING REVENUE ACCOUNT,G410,CONTRACTUAL SERVICES,20/05/2022,392902,956.55,J WRIGHT ROOFING LTD,105753
NEWARK AND SHERWOOD DISTRICT COUNCIL,HOUSING REVENUE ACCOUNT,G410,AGENCY STAFF,10/06/2022,394378,954,SELLICK PARTNERSHIP LTD,106780
NEWARK AND SHERWOOD DISTRICT COUNCIL,HOUSING REVENUE ACCOUNT,G410,AGENCY STAFF,30/06/2022,395930,954,SELLICK PARTNERSHIP LTD,106780
NEWARK AND SHERWOOD DISTRICT COUNCIL,LEISURE & ENVIRONMENT,G440,CHRISTMAS TREE COLLECTION EXP.,14/04/2022,390440,951.5,OLD HALL NURSERIES LTD,100405
NEWARK AND SHERWOOD DISTRICT COUNCIL,HOUSING REVENUE ACCOUNT,G410,TENANT INVOLVEMENT,30/06/2022,394983,951,LINDUM GROUP LTD,100651
NEWARK AND SHERWOOD DISTRICT COUNCIL,CAPITAL,G997,CONSTRUCTION,17/06/2022,392213,950,JDA SAFETY LIMITED,107510
NEWARK AND SHERWOOD DISTRICT COUNCIL,CAPITAL,G997,CONSTRUCTION,13/05/2022,391783,950,SOUL ARCHITECTS LIMITED,107281
NEWARK AND SHERWOOD DISTRICT COUNCIL,CAPITAL,G997,CONSTRUCTION,10/06/2022,394442,950,STUDIO G ASSOCIATES,104539
NEWARK AND SHERWOOD DISTRICT COUNCIL,HOUSING REVENUE ACCOUNT,G410,AGENCY STAFF,10/06/2022,394372,948,SELLICK PARTNERSHIP LTD,106780
NEWARK AND SHERWOOD DISTRICT COUNCIL,POLICY & FINANCE,G992,SUSPENSE - GENERAL,12/04/2022,390312,935.95,JOHN OWEN AGGREGATES LIMITED,107511
NEWARK AND SHERWOOD DISTRICT COUNCIL,ECONOMIC DEVELOPMENT,G420,REPAIRS AND MAINTENANCE,29/04/2022,391155,935,ROBERT MARSHALL & SONS LTD,105315
NEWARK AND SHERWOOD DISTRICT COUNCIL,CAPITAL,G997,CONSTRUCTION,13/05/2022,392280,930,STUDIO G ASSOCIATES,104539
NEWARK AND SHERWOOD DISTRICT COUNCIL,POLICY & FINANCE,G450,LEGAL FEES OUTSOURCED,08/04/2022,389714,920,GEDLING BOROUGH COUNCIL,100180
NEWARK AND SHERWOOD DISTRICT COUNCIL,ECONOMIC DEVELOPMENT,G420,OFFICE EQUIPMENT PURCHASE,08/04/2022,389105,919,NOTTINGHAMSHIRE FIRE SAFETY LTD,105494
NEWARK AND SHERWOOD DISTRICT COUNCIL,CAPITAL,G997,CONSTRUCTION,20/05/2022,392849,917.2,MATTHEWS & TANNERT LTD,101312
NEWARK AND SHERWOOD DISTRICT COUNCIL,POLICY & FINANCE,G450,REPAIRS AND MAINTENANCE,08/04/2022,389871,912,GALLAGHER BASSETT INTERNATIONAL LIMITED,106642
NEWARK AND SHERWOOD DISTRICT COUNCIL,ECONOMIC DEVELOPMENT,G420,CONTRACTUAL SERVICES,20/05/2022,393183,907.48,PAY BY PHONE,106856
NEWARK AND SHERWOOD DISTRICT COUNCIL,HOUSING REVENUE ACCOUNT,G410,AGENCY STAFF,10/06/2022,394332,905.4,FULL CIRCLE CATERING,107315
NEWARK AND SHERWOOD DISTRICT COUNCIL,POLICY & FINANCE,G450,AGENCY STAFF,08/04/2022,389685,904,SELLICK PARTNERSHIP LTD,106780
NEWARK AND SHERWOOD DISTRICT COUNCIL,POLICY & FINANCE,G450,AGENCY STAFF,08/04/2022,389773,904,SELLICK PARTNERSHIP LTD,106780
NEWARK AND SHERWOOD DISTRICT COUNCIL,POLICY & FINANCE,G450,AGENCY STAFF,06/05/2022,391148,904,SELLICK PARTNERSHIP LTD,106780
NEWARK AND SHERWOOD DISTRICT COUNCIL,POLICY & FINANCE,G450,AGENCY STAFF,06/05/2022,391152,904,SELLICK PARTNERSHIP LTD,106780
NEWARK AND SHERWOOD DISTRICT COUNCIL,POLICY & FINANCE,G450,AGENCY STAFF,06/05/2022,391812,904,SELLICK PARTNERSHIP LTD,106780
NEWARK AND SHERWOOD DISTRICT COUNCIL,POLICY & FINANCE,G450,AGENCY STAFF,13/05/2022,390380,904,SELLICK PARTNERSHIP LTD,106780
NEWARK AND SHERWOOD DISTRICT COUNCIL,POLICY & FINANCE,G450,AGENCY STAFF,20/05/2022,392192,904,SELLICK PARTNERSHIP LTD,106780
NEWARK AND SHERWOOD DISTRICT COUNCIL,POLICY & FINANCE,G450,AGENCY STAFF,31/05/2022,392713,904,SELLICK PARTNERSHIP LTD,106780
NEWARK AND SHERWOOD DISTRICT COUNCIL,POLICY & FINANCE,G450,AGENCY STAFF,24/06/2022,394069,904,SELLICK PARTNERSHIP LTD,106780
NEWARK AND SHERWOOD DISTRICT COUNCIL,ECONOMIC DEVELOPMENT,G420,REPAIRS AND MAINTENANCE,10/06/2022,393460,904,P J LILLEY LTD,100418
NEWARK AND SHERWOOD DISTRICT COUNCIL,HOUSING REVENUE ACCOUNT,G410,AGENCY STAFF,08/04/2022,389462,900,SELLICK PARTNERSHIP LTD,106780
NEWARK AND SHERWOOD DISTRICT COUNCIL,ECONOMIC DEVELOPMENT,G420,CONTRACTUAL SERVICES,13/05/2022,392264,900,WEED MANAGEMENT LTD,107569
NEWARK AND SHERWOOD DISTRICT COUNCIL,HOUSING REVENUE ACCOUNT,G410,CONTRACTUAL SERVICES,13/05/2022,392246,900,SELLICK PARTNERSHIP LTD,106780
NEWARK AND SHERWOOD DISTRICT COUNCIL,HOUSING REVENUE ACCOUNT,G410,CONTRACTUAL SERVICES,13/05/2022,392248,900,SELLICK PARTNERSHIP LTD,106780
NEWARK AND SHERWOOD DISTRICT COUNCIL,HOUSING REVENUE ACCOUNT,G410,CONTRACTUAL SERVICES,13/05/2022,392305,900,SELLICK PARTNERSHIP LTD,106780
NEWARK AND SHERWOOD DISTRICT COUNCIL,POLICY & FINANCE,G450,CTAX NSDC PARISH PRECEPT PYMTS,22/04/2022,390615,900,PERLETHORPE-CUM-BUDBY PARISH MEETING,100424
NEWARK AND SHERWOOD DISTRICT COUNCIL,ECONOMIC DEVELOPMENT,G420,EMPLOYMENT & SKILLS,29/04/2022,391305,900,ADVERTA,107162
NEWARK AND SHERWOOD DISTRICT COUNCIL,LEISURE & ENVIRONMENT,G440,MATERIALS,10/06/2022,394299,900,DH PEOPLE PLUS LIMITED,105629
NEWARK AND SHERWOOD DISTRICT COUNCIL,POLICY & FINANCE,G450,PRINTING,27/05/2022,393398,897,WILLSONS PRINTERS (NEWARK) LTD,100607
NEWARK AND SHERWOOD DISTRICT COUNCIL,POLICY & FINANCE,G450,CTAX NSDC PARISH PRECEPT PYMTS,22/04/2022,390614,893.5,NORTH CLIFTON PARISH MEETING,105995
NEWARK AND SHERWOOD DISTRICT COUNCIL,HOUSING REVENUE ACCOUNT,G410,CONTRACTUAL SERVICES,20/05/2022,393153,892.33,NOVUS PROPERTY SOLUTIONS LTD,107362
NEWARK AND SHERWOOD DISTRICT COUNCIL,HOUSING REVENUE ACCOUNT,G410,CONTRACTUAL SERVICES,30/06/2022,395936,878.5,YATES ENGINEERING LTD,107180
NEWARK AND SHERWOOD DISTRICT COUNCIL,HOUSING REVENUE ACCOUNT,G410,CONTRACTUAL SERVICES,13/05/2022,392510,877.5,KEY MANAGEMENT SYSTEMS LTD,107512
NEWARK AND SHERWOOD DISTRICT COUNCIL,CAPITAL,G997,CONSTRUCTION,20/05/2022,393107,871.1,WILLIAM SAUNDERS PARTNERSHIP LLP,107133
NEWARK AND SHERWOOD DISTRICT COUNCIL,ECONOMIC DEVELOPMENT,G420,ELECTRICITY,29/04/2022,391170,869.7,EDF ENERGY 1 LTD,101140
NEWARK AND SHERWOOD DISTRICT COUNCIL,HOUSING REVENUE ACCOUNT,G410,TENANT INVOLVEMENT,27/05/2022,393490,865,PARKIN CONTRACTORS LTD,102009
NEWARK AND SHERWOOD DISTRICT COUNCIL,ECONOMIC DEVELOPMENT,G420,GAS,29/04/2022,391161,862.66,TOTAL ENERGIES GAS & POWER LTD,107289
NEWARK AND SHERWOOD DISTRICT COUNCIL,LEISURE & ENVIRONMENT,G440,MATERIALS,30/06/2022,395900,858.68,AUTOSMART,106504
NEWARK AND SHERWOOD DISTRICT COUNCIL,ECONOMIC DEVELOPMENT,G420,CONTRACTUAL SERVICES,08/04/2022,389904,858,KIRK & BILLS LTD,105630
NEWARK AND SHERWOOD DISTRICT COUNCIL,POLICY & FINANCE,G450,STATIONERY,08/04/2022,389683,854,NOTTINGHAMSHIRE COUNTY COUNCIL,100393
NEWARK AND SHERWOOD DISTRICT COUNCIL,HOMES & COMMUNITIES,G430,CONTRACTUAL SERVICES,08/04/2022,389776,853.6,RADCOMM UK LTD,100822
NEWARK AND SHERWOOD DISTRICT COUNCIL,CAPITAL,G997,CONSTRUCTION,29/04/2022,391311,850,STUDIO G ASSOCIATES,104539
NEWARK AND SHERWOOD DISTRICT COUNCIL,CAPITAL,G997,CONSTRUCTION,29/04/2022,391318,850,STUDIO G ASSOCIATES,104539
NEWARK AND SHERWOOD DISTRICT COUNCIL,CAPITAL,G997,CONSTRUCTION,29/04/2022,391320,850,STUDIO G ASSOCIATES,104539
NEWARK AND SHERWOOD DISTRICT COUNCIL,CAPITAL,G997,CONSTRUCTION,29/04/2022,391321,850,STUDIO G ASSOCIATES,104539
NEWARK AND SHERWOOD DISTRICT COUNCIL,CAPITAL,G997,CONSTRUCTION,13/05/2022,392284,850,STUDIO G ASSOCIATES,104539
NEWARK AND SHERWOOD DISTRICT COUNCIL,CAPITAL,G997,CONSTRUCTION,10/06/2022,394443,850,STUDIO G ASSOCIATES,104539
NEWARK AND SHERWOOD DISTRICT COUNCIL,CAPITAL,G997,CONSTRUCTION,10/06/2022,394446,850,STUDIO G ASSOCIATES,104539
NEWARK AND SHERWOOD DISTRICT COUNCIL,LEISURE & ENVIRONMENT,G440,MATERIALS,17/06/2022,394699,846.3,CROSSROADS TRUCK & BUS LTD,101347
NEWARK AND SHERWOOD DISTRICT COUNCIL,HOUSING REVENUE ACCOUNT,G410,AGENCY STAFF,20/05/2022,392842,845.04,FULL CIRCLE CATERING,107315
NEWARK AND SHERWOOD DISTRICT COUNCIL,HOUSING REVENUE ACCOUNT,G410,AGENCY STAFF,10/06/2022,394414,840,SELLICK PARTNERSHIP LTD,106780
NEWARK AND SHERWOOD DISTRICT COUNCIL,HOUSING REVENUE ACCOUNT,G410,CONTRACTUAL SERVICES,20/05/2022,393199,835.4,NOVUS PROPERTY SOLUTIONS LTD,107362
NEWARK AND SHERWOOD DISTRICT COUNCIL,ECONOMIC DEVELOPMENT,G420,INWARD INVESTMENT MARKETING,22/04/2022,390829,835,AJB CONSULTING,107474
NEWARK AND SHERWOOD DISTRICT COUNCIL,HOUSING REVENUE ACCOUNT,G410,PERIODIC ELECTRICAL TESTING,17/06/2022,394637,835,FARRENDALE LTD,106640
NEWARK AND SHERWOOD DISTRICT COUNCIL,HOUSING REVENUE ACCOUNT,G410,AGENCY STAFF,13/05/2022,392439,834,SELLICK PARTNERSHIP LTD,106780
NEWARK AND SHERWOOD DISTRICT COUNCIL,HOUSING REVENUE ACCOUNT,G410,CONTRACTUAL SERVICES,13/05/2022,392244,834,SELLICK PARTNERSHIP LTD,106780
NEWARK AND SHERWOOD DISTRICT COUNCIL,HOUSING REVENUE ACCOUNT,G410,SKIP HIRE,17/06/2022,394807,832.89,VEOLIA ENVIRONMENTAL SERVICES (UK) LTD,106880
NEWARK AND SHERWOOD DISTRICT COUNCIL,HOUSING REVENUE ACCOUNT,G410,APPLIANCE SERVICING,24/06/2022,395306,829.5,MORGAN LAMBERT LTD,106838
NEWARK AND SHERWOOD DISTRICT COUNCIL,HOUSING REVENUE ACCOUNT,G410,APPLIANCE SERVICING,24/06/2022,395523,829.15,RENUVO LIMITED,107076
NEWARK AND SHERWOOD DISTRICT COUNCIL,HOUSING REVENUE ACCOUNT,G410,AGENCY STAFF,30/06/2022,395931,828.74,SELLICK PARTNERSHIP LTD,106780
NEWARK AND SHERWOOD DISTRICT COUNCIL,HOUSING REVENUE ACCOUNT,G410,CONTRACTUAL SERVICES,17/06/2022,394312,827.23,EUROPEAN ASBESTOS SERVICES LTD,107313
NEWARK AND SHERWOOD DISTRICT COUNCIL,HOUSING REVENUE ACCOUNT,G410,AGENCY STAFF,08/04/2022,389469,825,SELLICK PARTNERSHIP LTD,106780
NEWARK AND SHERWOOD DISTRICT COUNCIL,HOUSING REVENUE ACCOUNT,G410,AGENCY STAFF,20/05/2022,392904,825,SELLICK PARTNERSHIP LTD,106780
NEWARK AND SHERWOOD DISTRICT COUNCIL,HOUSING REVENUE ACCOUNT,G410,CONTRACTUAL SERVICES,13/05/2022,392247,825,SELLICK PARTNERSHIP LTD,106780
NEWARK AND SHERWOOD DISTRICT COUNCIL,LEISURE & ENVIRONMENT,G440,MATERIALS,08/04/2022,389619,820,JCP POWER & DATA CONTRACTORS LTD,100243
NEWARK AND SHERWOOD DISTRICT COUNCIL,HOUSING REVENUE ACCOUNT,G410,CONTRACTUAL SERVICES,13/05/2022,392378,819.22,T & S HEATING LTD,105748
NEWARK AND SHERWOOD DISTRICT COUNCIL,ECONOMIC DEVELOPMENT,G420,CONTRACTUAL SERVICES,20/05/2022,392789,818.4,SECURITY PLUS LIMITED,100482
NEWARK AND SHERWOOD DISTRICT COUNCIL,HOUSING REVENUE ACCOUNT,G410,CONTRACTUAL SERVICES,20/05/2022,392843,817.99,T & S HEATING LTD,105748
NEWARK AND SHERWOOD DISTRICT COUNCIL,POLICY & FINANCE,G450,PROFESSIONAL SERVICES,31/05/2022,394035,817.86,ULTIMATE PRINT & DESIGN LIMITED,106433
NEWARK AND SHERWOOD DISTRICT COUNCIL,CAPITAL,G997,CONSTRUCTION,24/06/2022,395255,817.5,LINDUM GROUP LTD,100651
NEWARK AND SHERWOOD DISTRICT COUNCIL,HOUSING REVENUE ACCOUNT,G410,CONTRACTUAL SERVICES,30/06/2022,395974,812.18,PHS GROUP PLC,100426
NEWARK AND SHERWOOD DISTRICT COUNCIL,POLICY & FINANCE,G450,PRINTING,08/04/2022,389892,810.75,PRINT IMAGE NETWORK LTD,100431
NEWARK AND SHERWOOD DISTRICT COUNCIL,HOUSING REVENUE ACCOUNT,G410,CONTRACTUAL SERVICES,17/06/2022,394936,808.36,SEVERN TRENT WATER LTD,100976
NEWARK AND SHERWOOD DISTRICT COUNCIL,POLICY & FINANCE,G450,PROFESSIONAL SERVICES,17/06/2022,394908,805,SHL GROUP LTD,106394
NEWARK AND SHERWOOD DISTRICT COUNCIL,HOUSING REVENUE ACCOUNT,G410,MATERIALS,13/05/2022,392458,804.58,HOWDEN JOINERY LTD,107418
NEWARK AND SHERWOOD DISTRICT COUNCIL,HOUSING REVENUE ACCOUNT,G410,AGENCY STAFF,29/04/2022,391262,804,SELLICK PARTNERSHIP LTD,106780
NEWARK AND SHERWOOD DISTRICT COUNCIL,HOUSING REVENUE ACCOUNT,G410,AGENCY STAFF,20/05/2022,392972,804,SELLICK PARTNERSHIP LTD,106780
NEWARK AND SHERWOOD DISTRICT COUNCIL,ECONOMIC DEVELOPMENT,G420,PREMISES REPAIRS & RENEWALS,13/05/2022,392215,804,P J LILLEY LTD,100418
NEWARK AND SHERWOOD DISTRICT COUNCIL,HOUSING REVENUE ACCOUNT,G410,SKIP HIRE,13/05/2022,392383,803.66,VEOLIA ENVIRONMENTAL SERVICES (UK) LTD,106880
NEWARK AND SHERWOOD DISTRICT COUNCIL,CAPITAL,G997,CONSTRUCTION,08/04/2022,389529,802.5,TERSUS CONSULTANCY LIMITED,101057
NEWARK AND SHERWOOD DISTRICT COUNCIL,HOUSING REVENUE ACCOUNT,G410,PERIODIC ELECTRICAL TESTING,17/06/2022,394737,801.25,STONE TECHNICAL SERVICES GROUP LTD,107123
NEWARK AND SHERWOOD DISTRICT COUNCIL,HOMES & COMMUNITIES,G430,ADVERTISING,27/05/2022,393682,800,SCHOOLS PUBLISHING LTD,101660
NEWARK AND SHERWOOD DISTRICT COUNCIL,CAPITAL,G997,CONSTRUCTION,14/04/2022,386942,800,BSP CONSULTING,104667
NEWARK AND SHERWOOD DISTRICT COUNCIL,ECONOMIC DEVELOPMENT,G420,CONTRACTUAL SERVICES,13/05/2022,392175,800,CLIPSTONE ANGLING CLUB,100096
NEWARK AND SHERWOOD DISTRICT COUNCIL,ECONOMIC DEVELOPMENT,G420,PROMOTION OF EVENTS,17/06/2022,394594,800,WILCOP MEDIA LTD,106462
NEWARK AND SHERWOOD DISTRICT COUNCIL,POLICY & FINANCE,G450,PRINTING,06/05/2022,391820,799.09,PRINT IMAGE NETWORK LTD,100431
NEWARK AND SHERWOOD DISTRICT COUNCIL,ECONOMIC DEVELOPMENT,G420,ELECTRICITY,27/05/2022,393679,797.21,EDF ENERGY 1 LTD,101140
NEWARK AND SHERWOOD DISTRICT COUNCIL,HOUSING REVENUE ACCOUNT,G410,ELECTRICITY,17/06/2022,394792,795.84,SCOTTISH & SOUTHERN ENERGY GROUP,103454
NEWARK AND SHERWOOD DISTRICT COUNCIL,POLICY & FINANCE,G450,REPAIRS AND MAINTENANCE,08/04/2022,389670,795.31,SWIFTCLEAN UK LTD,107018
NEWARK AND SHERWOOD DISTRICT COUNCIL,ECONOMIC DEVELOPMENT,G420,LICENSED BAR PROVISIONS,06/05/2022,391727,792.38,SMALL BEER LTD,107380
NEWARK AND SHERWOOD DISTRICT COUNCIL,CAPITAL,G997,VEHICLE AQUISITION,17/06/2022,394686,791.73,TUDOR ENVIRONMENTAL,107567
NEWARK AND SHERWOOD DISTRICT COUNCIL,LEISURE & ENVIRONMENT,G440,MATERIALS,30/06/2022,395928,790.93,DENNIS EAGLE LTD,100797
NEWARK AND SHERWOOD DISTRICT COUNCIL,HOUSING REVENUE ACCOUNT,G410,CONTRACTUAL SERVICES,20/05/2022,393201,789.84,NOVUS PROPERTY SOLUTIONS LTD,107362
NEWARK AND SHERWOOD DISTRICT COUNCIL,ECONOMIC DEVELOPMENT,G420,ELECTRICITY,27/05/2022,393681,787.27,EDF ENERGY 1 LTD,101140
NEWARK AND SHERWOOD DISTRICT COUNCIL,CAPITAL,G997,PROFESSIONAL FEES,06/05/2022,391815,785.41,LOC-BOX SELF STORAGE NEWARK,107516
NEWARK AND SHERWOOD DISTRICT COUNCIL,CAPITAL,G997,CONSTRUCTION,10/06/2022,394367,784,SAC SERVICES LTD,107376
NEWARK AND SHERWOOD DISTRICT COUNCIL,POLICY & FINANCE,G450,CTAX NSDC PARISH PRECEPT PYMTS,22/04/2022,390623,783,BATHLEY PARISH COUNCIL,100035
NEWARK AND SHERWOOD DISTRICT COUNCIL,ECONOMIC DEVELOPMENT,G420,LEARNING & PARTICIPATION,08/04/2022,389588,780,ASSOCIATION OF INDEPENDENT MUSEUMS,105811
NEWARK AND SHERWOOD DISTRICT COUNCIL,HOUSING REVENUE ACCOUNT,G410,CONTRACTUAL SERVICES,31/05/2022,394087,776.42,J WRIGHT ROOFING LTD,105753
NEWARK AND SHERWOOD DISTRICT COUNCIL,LEISURE & ENVIRONMENT,G440,MATERIALS,08/04/2022,389583,776,BROXAP LTD,101567
NEWARK AND SHERWOOD DISTRICT COUNCIL,LEISURE & ENVIRONMENT,G440,MATERIALS,27/05/2022,393416,775.95,DENNIS EAGLE LTD,100797
NEWARK AND SHERWOOD DISTRICT COUNCIL,HOUSING REVENUE ACCOUNT,G410,CONTRACTUAL SERVICES,13/05/2022,392375,775.12,J WRIGHT ROOFING LTD,105753
NEWARK AND SHERWOOD DISTRICT COUNCIL,POLICY & FINANCE,G450,AGENCY STAFF,31/05/2022,394119,770,SELLICK PARTNERSHIP LTD,106780
NEWARK AND SHERWOOD DISTRICT COUNCIL,CAPITAL,G997,CONSTRUCTION,30/06/2022,395793,770,JACKSON DESIGN ASSOCIATES LIMITED,106431
NEWARK AND SHERWOOD DISTRICT COUNCIL,ECONOMIC DEVELOPMENT,G420,REPAIRS AND MAINTENANCE,20/05/2022,393122,770,P J LILLEY LTD,100418
NEWARK AND SHERWOOD DISTRICT COUNCIL,HOUSING REVENUE ACCOUNT,G410,AGENCY STAFF,20/05/2022,392823,768,SELLICK PARTNERSHIP LTD,106780
NEWARK AND SHERWOOD DISTRICT COUNCIL,LEISURE & ENVIRONMENT,G440,AGENCY STAFF,08/04/2022,389986,768,VIVID RESOURCING,106488
NEWARK AND SHERWOOD DISTRICT COUNCIL,HOMES & COMMUNITIES,G430,PROFESSIONAL SERVICES,24/06/2022,395435,765,JAMES BUTTON & CO,102029
NEWARK AND SHERWOOD DISTRICT COUNCIL,POLICY & FINANCE,G450,WORLDPAY PROCESS CHARGES,28/04/2022,391282,762.93,QUANTUM BILLING - INPROVA GROUP,106944
NEWARK AND SHERWOOD DISTRICT COUNCIL,LEISURE & ENVIRONMENT,G440,CLOTHING AND UNIFORMS,13/05/2022,392203,761.4,LOOKPRO.CO,102808
NEWARK AND SHERWOOD DISTRICT COUNCIL,HOUSING REVENUE ACCOUNT,G410,CONTRACTUAL SERVICES,30/06/2022,396015,761.32,NOVUS PROPERTY SOLUTIONS LTD,107362
NEWARK AND SHERWOOD DISTRICT COUNCIL,HOUSING REVENUE ACCOUNT,G410,AGENCY STAFF,30/06/2022,395933,759,SELLICK PARTNERSHIP LTD,106780
NEWARK AND SHERWOOD DISTRICT COUNCIL,POLICY & FINANCE,G450,CONTRACTUAL SERVICES,06/05/2022,391995,757.12,WHITEFIELDS STORAGE LIMITED,106023
NEWARK AND SHERWOOD DISTRICT COUNCIL,HOUSING REVENUE ACCOUNT,G410,MATERIALS,29/04/2022,390780,755.4,PREMIERE KITCHENS,107197
NEWARK AND SHERWOOD DISTRICT COUNCIL,HOUSING REVENUE ACCOUNT,G410,TELEPHONES,25/04/2022,391106,755.17,DIGITAL SPACE GROUP LTD,107235
NEWARK AND SHERWOOD DISTRICT COUNCIL,HOUSING REVENUE ACCOUNT,G410,TELEPHONES,18/05/2022,392806,755.17,DIGITAL SPACE GROUP LTD,107235
NEWARK AND SHERWOOD DISTRICT COUNCIL,HOUSING REVENUE ACCOUNT,G410,TELEPHONES,20/06/2022,395206,755.17,DIGITAL SPACE GROUP LTD,107235
NEWARK AND SHERWOOD DISTRICT COUNCIL,CAPITAL,G997,CONSTRUCTION,10/06/2022,394441,750,STUDIO G ASSOCIATES,104539
NEWARK AND SHERWOOD DISTRICT COUNCIL,ECONOMIC DEVELOPMENT,G420,CONTRACTUAL SERVICES,17/06/2022,394668,750,CERBERUS SERVICES LTD,106813
NEWARK AND SHERWOOD DISTRICT COUNCIL,LEISURE & ENVIRONMENT,G440,MATERIALS,14/04/2022,390373,750,COUNTY SIGN AGENCY,100115
NEWARK AND SHERWOOD DISTRICT COUNCIL,HOMES & COMMUNITIES,G430,PREVENTION FUND,10/06/2022,394403,750,REDACTED PERSONAL DATA,107562
NEWARK AND SHERWOOD DISTRICT COUNCIL,ECONOMIC DEVELOPMENT,G420,PROFESSIONAL SERVICES,20/06/2022,395260,750,ROPEWALK CHAMBERS,101104
NEWARK AND SHERWOOD DISTRICT COUNCIL,HOMES & COMMUNITIES,G430,PROMOTION OF EVENTS,08/04/2022,389785,750,BALDERTON PARISH COUNCIL,100029
NEWARK AND SHERWOOD DISTRICT COUNCIL,HOMES & COMMUNITIES,G430,PROMOTION OF EVENTS,08/04/2022,389814,750,NEWARK TOWN COUNCIL,100374
NEWARK AND SHERWOOD DISTRICT COUNCIL,HOMES & COMMUNITIES,G430,PROMOTION OF EVENTS,08/04/2022,389819,750,OLLERTON & BOUGHTON TOWN COUNCIL,100968
NEWARK AND SHERWOOD DISTRICT COUNCIL,HOMES & COMMUNITIES,G430,PROMOTION OF EVENTS,08/04/2022,389825,750,SOUTHWELL TOWN COUNCIL,100515
NEWARK AND SHERWOOD DISTRICT COUNCIL,HOUSING REVENUE ACCOUNT,G410,APPLIANCE SERVICING,30/06/2022,395851,745,T & S HEATING LTD,105748
NEWARK AND SHERWOOD DISTRICT COUNCIL,HOUSING REVENUE ACCOUNT,G410,CONTRACTUAL SERVICES,17/06/2022,394971,739.07,T & S HEATING LTD,105748
NEWARK AND SHERWOOD DISTRICT COUNCIL,ECONOMIC DEVELOPMENT,G420,CONTRACTUAL SERVICES,06/05/2022,391770,738,SECURITY PLUS LIMITED,100482
NEWARK AND SHERWOOD DISTRICT COUNCIL,POLICY & FINANCE,G450,CONTRACTUAL SERVICES,29/04/2022,391181,737.78,COPE OCCUPATIONAL HEALTH AND ERGONOMIC SERV L,107402
NEWARK AND SHERWOOD DISTRICT COUNCIL,HOUSING REVENUE ACCOUNT,G410,CONTRACTUAL SERVICES,20/05/2022,393068,731.73,T & S HEATING LTD,105748
NEWARK AND SHERWOOD DISTRICT COUNCIL,POLICY & FINANCE,G450,AGENCY STAFF,30/06/2022,396058,730.75,SELLICK PARTNERSHIP LTD,106780
NEWARK AND SHERWOOD DISTRICT COUNCIL,LEISURE & ENVIRONMENT,G440,MATERIALS,29/04/2022,391237,725.95,DENNIS EAGLE LTD,100797
NEWARK AND SHERWOOD DISTRICT COUNCIL,ECONOMIC DEVELOPMENT,G420,PROFESSIONAL SERVICES,27/05/2022,393396,725,ROBERT MARSHALL & SONS LTD,105315
NEWARK AND SHERWOOD DISTRICT COUNCIL,LEISURE & ENVIRONMENT,G440,REPAIRS AND MAINTENANCE,20/05/2022,393121,724,P J LILLEY LTD,100418
NEWARK AND SHERWOOD DISTRICT COUNCIL,ECONOMIC DEVELOPMENT,G420,PROFESSIONAL SERVICES,08/04/2022,389048,722.8,LM ECOLOGY,107515
NEWARK AND SHERWOOD DISTRICT COUNCIL,HOUSING REVENUE ACCOUNT,G410,CONTRACTUAL SERVICES,20/05/2022,392869,722.79,J WRIGHT ROOFING LTD,105753
NEWARK AND SHERWOOD DISTRICT COUNCIL,HOUSING REVENUE ACCOUNT,G410,CONTRACTUAL SERVICES,20/05/2022,392998,720.3,DCR ELECTRICAL LTD,101799
NEWARK AND SHERWOOD DISTRICT COUNCIL,HOUSING REVENUE ACCOUNT,G410,AGENCY STAFF,20/05/2022,392824,720,SELLICK PARTNERSHIP LTD,106780
NEWARK AND SHERWOOD DISTRICT COUNCIL,HOUSING REVENUE ACCOUNT,G410,CONTRACTUAL SERVICES,27/05/2022,393591,720,HD ELECTRICAL SYSTEMS LTD,105293
NEWARK AND SHERWOOD DISTRICT COUNCIL,HOUSING REVENUE ACCOUNT,G410,CONTRACTUAL SERVICES,27/05/2022,393565,716.16,METRO ROD LTD,106655
NEWARK AND SHERWOOD DISTRICT COUNCIL,HOUSING REVENUE ACCOUNT,G410,CONTRACTUAL SERVICES,17/06/2022,395008,715.68,T & S HEATING LTD,105748
NEWARK AND SHERWOOD DISTRICT COUNCIL,HOMES & COMMUNITIES,G430,THIRD PARTY AGENTS,29/04/2022,391251,713.51,BROXTOWE BOROUGH COUNCIL,100063
NEWARK AND SHERWOOD DISTRICT COUNCIL,CAPITAL,G997,CONSTRUCTION,20/05/2022,393034,708.9,METRO ROD LTD,106655
NEWARK AND SHERWOOD DISTRICT COUNCIL,HOUSING REVENUE ACCOUNT,G410,CONTRACTUAL SERVICES,13/05/2022,392381,707.15,J WRIGHT ROOFING LTD,105753
NEWARK AND SHERWOOD DISTRICT COUNCIL,ECONOMIC DEVELOPMENT,G420,ELECTRICITY,27/05/2022,393504,705.45,EDF ENERGY 1 LTD,101140
NEWARK AND SHERWOOD DISTRICT COUNCIL,POLICY & FINANCE,G450,REPAIRS AND MAINTENANCE,30/06/2022,394744,705,COOPER PLUMBING,100110
NEWARK AND SHERWOOD DISTRICT COUNCIL,LEISURE & ENVIRONMENT,G440,MATERIALS,22/04/2022,390738,700.97,DENNIS EAGLE LTD,100797
NEWARK AND SHERWOOD DISTRICT COUNCIL,CAPITAL,G997,CONSTRUCTION,30/06/2022,395875,700,ROBERT MARSHALL & SONS LTD,105315
NEWARK AND SHERWOOD DISTRICT COUNCIL,POLICY & FINANCE,G450,HARDWARE MAINTENANCE,29/04/2022,391143,700,CIVICA UK LTD,105867
NEWARK AND SHERWOOD DISTRICT COUNCIL,ECONOMIC DEVELOPMENT,G420,PROFESSIONAL SERVICES,24/06/2022,395581,700,BAZZOO LIMITED,101372
NEWARK AND SHERWOOD DISTRICT COUNCIL,LEISURE & ENVIRONMENT,G440,CLOTHING AND UNIFORMS,08/04/2022,389833,699.95,LOOKPRO.CO,102808
NEWARK AND SHERWOOD DISTRICT COUNCIL,HOUSING REVENUE ACCOUNT,G410,CONTRACTUAL SERVICES,13/05/2022,392364,696.38,METRO ROD LTD,106655
NEWARK AND SHERWOOD DISTRICT COUNCIL,POLICY & FINANCE,G450,WORLDPAY PROCESS CHARGES,23/06/2022,395564,695.47,QUANTUM BILLING - INPROVA GROUP,106944
NEWARK AND SHERWOOD DISTRICT COUNCIL,ECONOMIC DEVELOPMENT,G420,CONTRACTUAL SERVICES,22/04/2022,390423,690.66,PAY BY PHONE,106856
NEWARK AND SHERWOOD DISTRICT COUNCIL,HOUSING REVENUE ACCOUNT,G410,APPLIANCE SERVICING,24/06/2022,395307,688.5,MORGAN LAMBERT LTD,106838
NEWARK AND SHERWOOD DISTRICT COUNCIL,POLICY & FINANCE,G450,AGENCY STAFF,14/04/2022,390444,685.5,AMBITIONS PERSONNEL LTD,105324
NEWARK AND SHERWOOD DISTRICT COUNCIL,HOUSING REVENUE ACCOUNT,G410,SERVICE CHARGE LEGAL SECTION,29/04/2022,391340,685,FREETHS LLP,106214
NEWARK AND SHERWOOD DISTRICT COUNCIL,HOUSING REVENUE ACCOUNT,G410,MATERIALS,20/05/2022,392985,683.72,PTS - CITY PLUMBING SUPPLIES LTD,107157
NEWARK AND SHERWOOD DISTRICT COUNCIL,LEISURE & ENVIRONMENT,G440,PREMISES REPAIRS & RENEWALS,20/05/2022,392216,682,P J LILLEY LTD,100418
NEWARK AND SHERWOOD DISTRICT COUNCIL,ECONOMIC DEVELOPMENT,G420,CONTRACTUAL SERVICES,06/05/2022,391715,678.8,JPC SERVICES (GLOSSOP) LTD,105208
NEWARK AND SHERWOOD DISTRICT COUNCIL,POLICY & FINANCE,G450,AGENCY STAFF,27/05/2022,393389,678,SELLICK PARTNERSHIP LTD,106780
NEWARK AND SHERWOOD DISTRICT COUNCIL,POLICY & FINANCE,G450,AGENCY STAFF,30/06/2022,394615,678,SELLICK PARTNERSHIP LTD,106780
NEWARK AND SHERWOOD DISTRICT COUNCIL,HOUSING REVENUE ACCOUNT,G410,MATERIALS,24/06/2022,395332,677.56,PTS - CITY PLUMBING SUPPLIES LTD,107157
NEWARK AND SHERWOOD DISTRICT COUNCIL,POLICY & FINANCE,G450,AGENCY STAFF,06/05/2022,391782,676.36,AMBITIONS PERSONNEL LTD,105324
NEWARK AND SHERWOOD DISTRICT COUNCIL,POLICY & FINANCE,G450,AGENCY STAFF,27/05/2022,393466,676.36,AMBITIONS PERSONNEL LTD,105324
NEWARK AND SHERWOOD DISTRICT COUNCIL,POLICY & FINANCE,G450,AGENCY STAFF,31/05/2022,394091,676.36,AMBITIONS PERSONNEL LTD,105324
NEWARK AND SHERWOOD DISTRICT COUNCIL,POLICY & FINANCE,G450,AGENCY STAFF,17/06/2022,394738,676.36,AMBITIONS PERSONNEL LTD,105324
NEWARK AND SHERWOOD DISTRICT COUNCIL,POLICY & FINANCE,G450,AGENCY STAFF,24/06/2022,395405,676.36,AMBITIONS PERSONNEL LTD,105324
NEWARK AND SHERWOOD DISTRICT COUNCIL,POLICY & FINANCE,G450,AGENCY STAFF,30/06/2022,396125,676.36,AMBITIONS PERSONNEL LTD,105324
NEWARK AND SHERWOOD DISTRICT COUNCIL,CAPITAL,G997,CONSTRUCTION,20/05/2022,393106,676.1,WILLIAM SAUNDERS PARTNERSHIP LLP,107133
NEWARK AND SHERWOOD DISTRICT COUNCIL,ECONOMIC DEVELOPMENT,G420,ELECTRICITY,27/05/2022,393680,675.17,EDF ENERGY 1 LTD,101140
NEWARK AND SHERWOOD DISTRICT COUNCIL,ECONOMIC DEVELOPMENT,G420,INWARD INVESTMENT MARKETING,24/06/2022,395440,675,ARENA RACING (SOUTHWELL) LTD,107477
NEWARK AND SHERWOOD DISTRICT COUNCIL,LEISURE & ENVIRONMENT,G440,TRI SCAN PAYMENTS,13/05/2022,392164,675,TRISCAN SYSTEMS LIMITED,100573
NEWARK AND SHERWOOD DISTRICT COUNCIL,HOUSING REVENUE ACCOUNT,G410,REFRESHMENTS AND CATERING,06/05/2022,391940,674.46,BRAKE BROS LTD,106562
NEWARK AND SHERWOOD DISTRICT COUNCIL,POLICY & FINANCE,G450,STATIONERY,06/05/2022,391870,673.29,LYRECO UK LIMITED,101689
NEWARK AND SHERWOOD DISTRICT COUNCIL,ECONOMIC DEVELOPMENT,G420,GAS,29/04/2022,391162,671.27,TOTAL ENERGIES GAS & POWER LTD,107289
NEWARK AND SHERWOOD DISTRICT COUNCIL,POLICY & FINANCE,G450,WORLDPAY PROCESS CHARGES,28/05/2022,393964,670.1,QUANTUM BILLING - INPROVA GROUP,106944
NEWARK AND SHERWOOD DISTRICT COUNCIL,HOUSING REVENUE ACCOUNT,G410,MATERIALS,30/06/2022,395979,664.52,PTS - CITY PLUMBING SUPPLIES LTD,107157
NEWARK AND SHERWOOD DISTRICT COUNCIL,POLICY & FINANCE,G450,POSTAGES,08/04/2022,389900,662.53,PRINT IMAGE FACILITIES LLP,101902
NEWARK AND SHERWOOD DISTRICT COUNCIL,HOUSING REVENUE ACCOUNT,G410,MATERIALS,30/06/2022,395968,662.5,ARDEN WINCH & CO LTD,102291
NEWARK AND SHERWOOD DISTRICT COUNCIL,HOUSING REVENUE ACCOUNT,G410,AGENCY STAFF,08/04/2022,389463,660,SELLICK PARTNERSHIP LTD,106780
NEWARK AND SHERWOOD DISTRICT COUNCIL,HOUSING REVENUE ACCOUNT,G410,AGENCY STAFF,13/05/2022,392440,660,SELLICK PARTNERSHIP LTD,106780
NEWARK AND SHERWOOD DISTRICT COUNCIL,HOUSING REVENUE ACCOUNT,G410,AGENCY STAFF,20/05/2022,392822,660,SELLICK PARTNERSHIP LTD,106780
NEWARK AND SHERWOOD DISTRICT COUNCIL,HOUSING REVENUE ACCOUNT,G410,AGENCY STAFF,20/05/2022,392973,660,SELLICK PARTNERSHIP LTD,106780
NEWARK AND SHERWOOD DISTRICT COUNCIL,HOUSING REVENUE ACCOUNT,G410,CONTRACTUAL SERVICES,13/05/2022,392304,660,SELLICK PARTNERSHIP LTD,106780
NEWARK AND SHERWOOD DISTRICT COUNCIL,POLICY & FINANCE,G450,PROFESSIONAL SERVICES,13/05/2022,392235,660,INFORM CPI LIMITED,104513
NEWARK AND SHERWOOD DISTRICT COUNCIL,POLICY & FINANCE,G450,REPAIRS AND MAINTENANCE,20/05/2022,393178,657.3,DERRY BUILDING SERVICES LTD,100125
NEWARK AND SHERWOOD DISTRICT COUNCIL,HOUSING REVENUE ACCOUNT,G410,MATERIALS,24/06/2022,395317,651.41,DCR ELECTRICAL LTD,101799
NEWARK AND SHERWOOD DISTRICT COUNCIL,HOUSING REVENUE ACCOUNT,G410,LIFT MAINTENANCE,20/05/2022,393088,651,TEMPLE LIFTS LTD,106870
NEWARK AND SHERWOOD DISTRICT COUNCIL,HOUSING REVENUE ACCOUNT,G410,MATERIALS,20/05/2022,393110,650.46,PTS - CITY PLUMBING SUPPLIES LTD,107157
NEWARK AND SHERWOOD DISTRICT COUNCIL,CAPITAL,G997,CONSTRUCTION,10/06/2022,394430,650,BSP CONSULTING,104667
NEWARK AND SHERWOOD DISTRICT COUNCIL,HOUSING REVENUE ACCOUNT,G410,CONTRACTUAL SERVICES,30/06/2022,396117,650,DEMON CLEANING SERVICES LTD,107096
NEWARK AND SHERWOOD DISTRICT COUNCIL,ECONOMIC DEVELOPMENT,G420,PROFESSIONAL SERVICES,14/04/2022,390448,650,FOXSTONE FORESTRY LTD,106901
NEWARK AND SHERWOOD DISTRICT COUNCIL,ECONOMIC DEVELOPMENT,G420,PROFESSIONAL SERVICES,06/05/2022,391972,650,FOXSTONE FORESTRY LTD,106901
NEWARK AND SHERWOOD DISTRICT COUNCIL,ECONOMIC DEVELOPMENT,G420,PROFESSIONAL SERVICES,20/05/2022,392758,650,FOXSTONE FORESTRY LTD,106901
NEWARK AND SHERWOOD DISTRICT COUNCIL,ECONOMIC DEVELOPMENT,G420,PROFESSIONAL SERVICES,10/06/2022,394421,650,FOXSTONE FORESTRY LTD,106901
NEWARK AND SHERWOOD DISTRICT COUNCIL,ECONOMIC DEVELOPMENT,G420,PROFESSIONAL SERVICES,10/06/2022,394423,650,FOXSTONE FORESTRY LTD,106901
NEWARK AND SHERWOOD DISTRICT COUNCIL,CAPITAL,G997,SYSTEM UPGRADES,08/04/2022,389104,650,HAYS SPECIALIST RECRUITMENT LTD,101794
NEWARK AND SHERWOOD DISTRICT COUNCIL,CAPITAL,G997,SYSTEM UPGRADES,27/05/2022,393366,650,HAYS SPECIALIST RECRUITMENT LTD,101794
NEWARK AND SHERWOOD DISTRICT COUNCIL,HOUSING REVENUE ACCOUNT,G410,TENANT INVOLVEMENT,27/05/2022,392211,650,KIRK & BILLS LTD,105630
NEWARK AND SHERWOOD DISTRICT COUNCIL,CAPITAL,G997,ICT HARDWARE AQUISITION,08/04/2022,389645,647.98,COMPUTACENTER UK LIMITED,107301
NEWARK AND SHERWOOD DISTRICT COUNCIL,CAPITAL,G997,CONSTRUCTION,29/04/2022,391326,646,STUDIO G ASSOCIATES,104539
NEWARK AND SHERWOOD DISTRICT COUNCIL,HOUSING REVENUE ACCOUNT,G410,CONTRACTUAL SERVICES,20/05/2022,393062,645.5,T & S HEATING LTD,105748
NEWARK AND SHERWOOD DISTRICT COUNCIL,ECONOMIC DEVELOPMENT,G420,CONTRACTUAL SERVICES,24/06/2022,395428,643.8,R J WILSON CONTRACTORS LTD,107172
NEWARK AND SHERWOOD DISTRICT COUNCIL,CAPITAL,G997,CONSTRUCTION,24/06/2022,395438,642,VIA EAST MIDLANDS LTD,105795
NEWARK AND SHERWOOD DISTRICT COUNCIL,ECONOMIC DEVELOPMENT,G420,CONTRACTUAL SERVICES,10/06/2022,394014,641.52,KONE PLC,106281
NEWARK AND SHERWOOD DISTRICT COUNCIL,ECONOMIC DEVELOPMENT,G420,RECHARGE TP TECHNICAL,14/04/2022,390319,641,DRN THEATRE PRODUCTIONS,107491
NEWARK AND SHERWOOD DISTRICT COUNCIL,HOUSING REVENUE ACCOUNT,G410,AGENCY STAFF,20/05/2022,392825,636,SELLICK PARTNERSHIP LTD,106780
NEWARK AND SHERWOOD DISTRICT COUNCIL,ECONOMIC DEVELOPMENT,G420,OTHER EQUIPMENT AND TOOLS,08/04/2022,389945,636,J & C JOEL LTD,104626
NEWARK AND SHERWOOD DISTRICT COUNCIL,CAPITAL,G997,CONSTRUCTION,20/05/2022,393108,633.75,WILLIAM SAUNDERS PARTNERSHIP LLP,107133
NEWARK AND SHERWOOD DISTRICT COUNCIL,ECONOMIC DEVELOPMENT,G420,COURSE FEES,22/04/2022,385420,629,FREETHS LLP,106214
NEWARK AND SHERWOOD DISTRICT COUNCIL,HOUSING REVENUE ACCOUNT,G410,CONTRACTUAL SERVICES,06/05/2022,391913,627.73,T & S HEATING LTD,105748
NEWARK AND SHERWOOD DISTRICT COUNCIL,HOUSING REVENUE ACCOUNT,G410,MATERIALS,20/05/2022,392968,627.33,PTS - CITY PLUMBING SUPPLIES LTD,107157
NEWARK AND SHERWOOD DISTRICT COUNCIL,CAPITAL,G997,ICT HARDWARE AQUISITION,08/04/2022,389644,627.2,COMPUTACENTER UK LIMITED,107301
NEWARK AND SHERWOOD DISTRICT COUNCIL,POLICY & FINANCE,G450,CTAX NSDC PARISH PRECEPT PYMTS,22/04/2022,390611,625,HAWTON PARISH COUNCIL,100199
NEWARK AND SHERWOOD DISTRICT COUNCIL,HOUSING REVENUE ACCOUNT,G410,FIRE MAINTENANCE,20/05/2022,392329,621.18,VENTRO LTD,107290
NEWARK AND SHERWOOD DISTRICT COUNCIL,ECONOMIC DEVELOPMENT,G420,CONTRACTUAL SERVICES,24/06/2022,395474,620,WALTERS CLEANING SERVICES,106228
NEWARK AND SHERWOOD DISTRICT COUNCIL,POLICY & FINANCE,G450,AGENCY STAFF,27/05/2022,393436,616.95,AMBITIONS PERSONNEL LTD,105324
NEWARK AND SHERWOOD DISTRICT COUNCIL,ECONOMIC DEVELOPMENT,G420,GAS,31/05/2022,394057,615.98,TOTAL ENERGIES GAS & POWER LTD,107289
NEWARK AND SHERWOOD DISTRICT COUNCIL,HOUSING REVENUE ACCOUNT,G410,MATERIALS,22/04/2022,390772,615.04,PTS - CITY PLUMBING SUPPLIES LTD,107157
NEWARK AND SHERWOOD DISTRICT COUNCIL,CAPITAL,G997,CONSTRUCTION,20/05/2022,392873,614.03,NATIONWIDE WINDOWS LIMITED,101404
NEWARK AND SHERWOOD DISTRICT COUNCIL,POLICY & FINANCE,G450,PROFESSIONAL SERVICES,17/06/2022,394593,612.3,TAMESIDE METROPOLITAN BOROUGH COUNCIL,106144
NEWARK AND SHERWOOD DISTRICT COUNCIL,HOUSING REVENUE ACCOUNT,G410,MATERIALS,27/05/2022,393620,611.2,TURNBULL & CO LTD,106877
NEWARK AND SHERWOOD DISTRICT COUNCIL,POLICY & FINANCE,G450,SEWERAGE AND WATER CHARGES,27/05/2022,393533,610.43,SMARTA WATER LTD,107280
NEWARK AND SHERWOOD DISTRICT COUNCIL,LEISURE & ENVIRONMENT,G440,MATERIALS,24/06/2022,395408,608.14,PERRYS MOTOR SALES LTD,107134
NEWARK AND SHERWOOD DISTRICT COUNCIL,ECONOMIC DEVELOPMENT,G420,PROMOTION OF EVENTS,08/04/2022,389552,607.8,LANDSCAPE SUPPLY COMPANY,106981
NEWARK AND SHERWOOD DISTRICT COUNCIL,HOUSING REVENUE ACCOUNT,G410,MATERIALS,30/06/2022,395991,607,NORTHERN GAS ASSESSMENT SERVICES LIMITED,107277
NEWARK AND SHERWOOD DISTRICT COUNCIL,POLICY & FINANCE,G450,POSTAGES,06/05/2022,391819,605.62,PRINT IMAGE FACILITIES LLP,101902
NEWARK AND SHERWOOD DISTRICT COUNCIL,HOUSING REVENUE ACCOUNT,G410,AGENCY STAFF,20/05/2022,392942,603.6,FULL CIRCLE CATERING,107315
NEWARK AND SHERWOOD DISTRICT COUNCIL,HOUSING REVENUE ACCOUNT,G410,AGENCY STAFF,20/05/2022,393042,603.6,FULL CIRCLE CATERING,107315
NEWARK AND SHERWOOD DISTRICT COUNCIL,HOUSING REVENUE ACCOUNT,G410,CONTRACTUAL SERVICES,17/06/2022,394970,602.61,T & S HEATING LTD,105748
NEWARK AND SHERWOOD DISTRICT COUNCIL,POLICY & FINANCE,G450,CONTRACTUAL SERVICES,22/04/2022,390843,601.78,QUADIENT FINANCE UK LIMITED,106774
NEWARK AND SHERWOOD DISTRICT COUNCIL,POLICY & FINANCE,G450,CONTRACTUAL SERVICES,30/06/2022,395825,601.78,QUADIENT FINANCE UK LIMITED,106774
NEWARK AND SHERWOOD DISTRICT COUNCIL,POLICY & FINANCE,G450,CTAX NSDC PARISH PRECEPT PYMTS,22/04/2022,390619,601,GIRTON AND MEETING PARISH MEETING,105482
NEWARK AND SHERWOOD DISTRICT COUNCIL,POLICY & FINANCE,G450,REPAIRS AND MAINTENANCE,13/05/2022,392220,600.05,RH COMMERCIAL VEHICLES,107463
NEWARK AND SHERWOOD DISTRICT COUNCIL,CAPITAL,G997,CONSTRUCTION,24/06/2022,395497,600,FLETCHERS CHARTERED SURVEYORS,107501
NEWARK AND SHERWOOD DISTRICT COUNCIL,CAPITAL,G997,CONSTRUCTION,08/04/2022,389587,600,WILLIAM SAUNDERS PARTNERSHIP LLP,107133
NEWARK AND SHERWOOD DISTRICT COUNCIL,ECONOMIC DEVELOPMENT,G420,CONTRACTUAL SERVICES,27/05/2022,393461,600,CERBERUS SERVICES LTD,106813
NEWARK AND SHERWOOD DISTRICT COUNCIL,LEISURE & ENVIRONMENT,G440,CONTRACTUAL SERVICES,30/06/2022,396074,600,BILSTHORPE EMERGENCY TEAM,107478
NEWARK AND SHERWOOD DISTRICT COUNCIL,ECONOMIC DEVELOPMENT,G420,INWARD INVESTMENT MARKETING,08/04/2022,389890,600,BUSINESS SHOWS GROUP,102048
NEWARK AND SHERWOOD DISTRICT COUNCIL,HOUSING REVENUE ACCOUNT,G410,AGENCY STAFF,10/06/2022,394371,599.5,SELLICK PARTNERSHIP LTD,106780
NEWARK AND SHERWOOD DISTRICT COUNCIL,ECONOMIC DEVELOPMENT,G420,CONTRACTUAL SERVICES,08/04/2022,389751,599.43,BRITISH SUGAR PLC,107480
NEWARK AND SHERWOOD DISTRICT COUNCIL,HOUSING REVENUE ACCOUNT,G410,REFRESHMENTS AND CATERING,10/06/2022,394345,599.25,BRAKE BROS LTD,106562
NEWARK AND SHERWOOD DISTRICT COUNCIL,LEISURE & ENVIRONMENT,G440,MATERIALS,22/04/2022,390740,595.62,DENNIS EAGLE LTD,100797
NEWARK AND SHERWOOD DISTRICT COUNCIL,ECONOMIC DEVELOPMENT,G420,INWARD INVESTMENT MARKETING,27/05/2022,390855,595,ULTIMATE PRINT & DESIGN LIMITED,106433
NEWARK AND SHERWOOD DISTRICT COUNCIL,POLICY & FINANCE,G450,POSTAGES,08/04/2022,389602,593.64,ROYAL MAIL GROUP LTD,100469
NEWARK AND SHERWOOD DISTRICT COUNCIL,ECONOMIC DEVELOPMENT,G420,OTHER EQUIPMENT AND TOOLS,13/05/2022,392225,589.82,PARTIC MOTOR SPARES LTD,100421
NEWARK AND SHERWOOD DISTRICT COUNCIL,ECONOMIC DEVELOPMENT,G420,SEWERAGE AND WATER CHARGES,06/05/2022,391792,589.75,SMARTA WATER LTD,107280
NEWARK AND SHERWOOD DISTRICT COUNCIL,POLICY & FINANCE,G450,STATIONERY,17/06/2022,394619,587.82,LYRECO UK LIMITED,101689
NEWARK AND SHERWOOD DISTRICT COUNCIL,ECONOMIC DEVELOPMENT,G420,REPAIRS AND MAINTENANCE,17/06/2022,394714,586.33,COOPER PLUMBING,100110
NEWARK AND SHERWOOD DISTRICT COUNCIL,LEISURE & ENVIRONMENT,G440,MATERIALS,24/06/2022,395366,581.7,NEWARK VEHICLE HIRE,106935
NEWARK AND SHERWOOD DISTRICT COUNCIL,POLICY & FINANCE,G450,MOBILE PHONE COSTS,17/06/2022,394641,581.62,TELEFONICA UK LTD,104594
NEWARK AND SHERWOOD DISTRICT COUNCIL,ECONOMIC DEVELOPMENT,G420,ELECTRICITY,06/05/2022,391802,580.23,EDF ENERGY 1 LTD,101140
NEWARK AND SHERWOOD DISTRICT COUNCIL,HOUSING REVENUE ACCOUNT,G410,MATERIALS,24/06/2022,395315,579.86,DCR ELECTRICAL LTD,101799
NEWARK AND SHERWOOD DISTRICT COUNCIL,ECONOMIC DEVELOPMENT,G420,LICENSED BAR PROVISIONS,17/06/2022,394723,577.29,SMALL BEER LTD,107380
NEWARK AND SHERWOOD DISTRICT COUNCIL,HOUSING REVENUE ACCOUNT,G410,CONTRACTUAL SERVICES,20/05/2022,393008,576.85,DCR ELECTRICAL LTD,101799
NEWARK AND SHERWOOD DISTRICT COUNCIL,HOUSING REVENUE ACCOUNT,G410,AGENCY STAFF,29/04/2022,391263,576,SELLICK PARTNERSHIP LTD,106780
NEWARK AND SHERWOOD DISTRICT COUNCIL,LEISURE & ENVIRONMENT,G440,PROFESSIONAL SERVICES,29/04/2022,389643,575,NOTTINGHAM CITY COUNCIL,100390
NEWARK AND SHERWOOD DISTRICT COUNCIL,HOUSING REVENUE ACCOUNT,G410,LICENCES,08/04/2022,389575,574.54,MOTION PICTURE LICENSING COMPANY,106663
NEWARK AND SHERWOOD DISTRICT COUNCIL,HOUSING REVENUE ACCOUNT,G410,CONTRACTUAL SERVICES,20/05/2022,393200,574.16,NOVUS PROPERTY SOLUTIONS LTD,107362
NEWARK AND SHERWOOD DISTRICT COUNCIL,HOUSING REVENUE ACCOUNT,G410,CLEANING MATERIALS,28/05/2022,393964,572.41,QUANTUM BILLING - INPROVA GROUP,106944
NEWARK AND SHERWOOD DISTRICT COUNCIL,ECONOMIC DEVELOPMENT,G420,EMPLOYMENT & SKILLS,08/04/2022,389778,570.79,NNAS TRADING LTD,103292
NEWARK AND SHERWOOD DISTRICT COUNCIL,POLICY & FINANCE,G450,PREMISES SECURITY,30/06/2022,395823,569.85,WATCH-IT SECURITY SERVICES LTD,103618
NEWARK AND SHERWOOD DISTRICT COUNCIL,POLICY & FINANCE,G450,PREMISES SECURITY,06/05/2022,391857,569.84,WATCH-IT SECURITY SERVICES LTD,103618
NEWARK AND SHERWOOD DISTRICT COUNCIL,ECONOMIC DEVELOPMENT,G420,LICENCES,27/05/2022,393722,565.91,PPL PRS LTD,106267
NEWARK AND SHERWOOD DISTRICT COUNCIL,ECONOMIC DEVELOPMENT,G420,LICENSED BAR PROVISIONS,20/05/2022,392743,564.2,SMALL BEER LTD,107380
NEWARK AND SHERWOOD DISTRICT COUNCIL,ECONOMIC DEVELOPMENT,G420,CONTRACTUAL SERVICES,20/05/2022,392725,564,SECURITY PLUS LIMITED,100482
NEWARK AND SHERWOOD DISTRICT COUNCIL,HOUSING REVENUE ACCOUNT,G410,MATERIALS,20/05/2022,392975,563.58,PTS - CITY PLUMBING SUPPLIES LTD,107157
NEWARK AND SHERWOOD DISTRICT COUNCIL,POLICY & FINANCE,G450,MOBILE PHONE COSTS,13/05/2022,392490,562.38,TELEFONICA UK LTD,104594
NEWARK AND SHERWOOD DISTRICT COUNCIL,ECONOMIC DEVELOPMENT,G420,CONTRACTUAL SERVICES,29/04/2022,391217,561.84,MATTERPORT INC,107194
NEWARK AND SHERWOOD DISTRICT COUNCIL,HOUSING REVENUE ACCOUNT,G410,WASHING MACHINE AND DRIER,13/05/2022,392682,561.58,SIEMENS FINANCIAL SERVICES LTD,100502
NEWARK AND SHERWOOD DISTRICT COUNCIL,ECONOMIC DEVELOPMENT,G420,CONTRACTUAL SERVICES,13/05/2022,392260,560.88,METRIC GROUP LTD,100306
NEWARK AND SHERWOOD DISTRICT COUNCIL,CAPITAL,G997,CONSTRUCTION,28/05/2022,393964,560,QUANTUM BILLING - INPROVA GROUP,106944
NEWARK AND SHERWOOD DISTRICT COUNCIL,ECONOMIC DEVELOPMENT,G420,EMPLOYMENT & SKILLS,08/04/2022,389779,559.6,NNAS TRADING LTD,103292
NEWARK AND SHERWOOD DISTRICT COUNCIL,ECONOMIC DEVELOPMENT,G420,CONTRACTUAL SERVICES,17/06/2022,394665,559.36,METRIC GROUP LTD,100306
NEWARK AND SHERWOOD DISTRICT COUNCIL,POLICY & FINANCE,G450,MOBILE PHONE COSTS,06/05/2022,391769,558.76,TELEFONICA UK LTD,104594
NEWARK AND SHERWOOD DISTRICT COUNCIL,LEISURE & ENVIRONMENT,G440,MATERIALS,06/05/2022,391977,558.25,TERBERG MATEC UK LTD,100541
NEWARK AND SHERWOOD DISTRICT COUNCIL,ECONOMIC DEVELOPMENT,G420,TELEPHONES,31/05/2022,394030,557.94,VIRGIN MEDIA BUSINESS,100593
NEWARK AND SHERWOOD DISTRICT COUNCIL,ECONOMIC DEVELOPMENT,G420,TELEPHONES,13/05/2022,392336,557.5,VIRGIN MEDIA BUSINESS,100593
NEWARK AND SHERWOOD DISTRICT COUNCIL,ECONOMIC DEVELOPMENT,G420,LICENSED BAR PROVISIONS,24/06/2022,395359,555.89,SMALL BEER LTD,107380
NEWARK AND SHERWOOD DISTRICT COUNCIL,HOUSING REVENUE ACCOUNT,G410,CONTRACTUAL SERVICES,06/05/2022,391894,554.06,METRO ROD LTD,106655
NEWARK AND SHERWOOD DISTRICT COUNCIL,HOUSING REVENUE ACCOUNT,G410,REFRESHMENTS AND CATERING,20/05/2022,392893,553.89,BRAKE BROS LTD,106562
NEWARK AND SHERWOOD DISTRICT COUNCIL,HOUSING REVENUE ACCOUNT,G410,MATERIALS,20/05/2022,392937,551.88,ARDEN WINCH & CO LTD,102291
NEWARK AND SHERWOOD DISTRICT COUNCIL,HOUSING REVENUE ACCOUNT,G410,AGENCY STAFF,24/06/2022,395527,551.4,HAYS SPECIALIST RECRUITMENT LTD,101794
NEWARK AND SHERWOOD DISTRICT COUNCIL,POLICY & FINANCE,G450,PREMISES SECURITY,27/05/2022,393373,550.2,WATCH-IT SECURITY SERVICES LTD,103618
NEWARK AND SHERWOOD DISTRICT COUNCIL,HOMES & COMMUNITIES,G430,ADVERTISING,22/04/2022,390717,550,CURRENT PUBLISHING LIMITED,104872
NEWARK AND SHERWOOD DISTRICT COUNCIL,HOUSING REVENUE ACCOUNT,G410,CONTRACTUAL SERVICES,29/04/2022,391368,550,REDACTED PERSONAL DATA,107487
NEWARK AND SHERWOOD DISTRICT COUNCIL,LEISURE & ENVIRONMENT,G440,CONTRACTUAL SERVICES,06/05/2022,391831,550,TRENT VALLEY INTERNAL DRAINAGE BOARD,101631
NEWARK AND SHERWOOD DISTRICT COUNCIL,ECONOMIC DEVELOPMENT,G420,PROFESSIONAL SERVICES,06/05/2022,391971,550,FOXSTONE FORESTRY LTD,106901
NEWARK AND SHERWOOD DISTRICT COUNCIL,ECONOMIC DEVELOPMENT,G420,PROFESSIONAL SERVICES,20/05/2022,392759,550,FOXSTONE FORESTRY LTD,106901
NEWARK AND SHERWOOD DISTRICT COUNCIL,ECONOMIC DEVELOPMENT,G420,PROFESSIONAL SERVICES,20/05/2022,392760,550,FOXSTONE FORESTRY LTD,106901
NEWARK AND SHERWOOD DISTRICT COUNCIL,ECONOMIC DEVELOPMENT,G420,PROFESSIONAL SERVICES,20/05/2022,392761,550,FOXSTONE FORESTRY LTD,106901
NEWARK AND SHERWOOD DISTRICT COUNCIL,ECONOMIC DEVELOPMENT,G420,PROFESSIONAL SERVICES,20/05/2022,392763,550,FOXSTONE FORESTRY LTD,106901
NEWARK AND SHERWOOD DISTRICT COUNCIL,ECONOMIC DEVELOPMENT,G420,PROFESSIONAL SERVICES,10/06/2022,394422,550,FOXSTONE FORESTRY LTD,106901
NEWARK AND SHERWOOD DISTRICT COUNCIL,HOMES & COMMUNITIES,G430,MISCELLANEOUS EXPENSES,08/04/2022,389740,549.51,WATER-PLUS,105929
NEWARK AND SHERWOOD DISTRICT COUNCIL,POLICY & FINANCE,G450,AGENCY STAFF,29/04/2022,391153,548.4,AMBITIONS PERSONNEL LTD,105324
NEWARK AND SHERWOOD DISTRICT COUNCIL,POLICY & FINANCE,G450,AGENCY STAFF,29/04/2022,391227,548.4,AMBITIONS PERSONNEL LTD,105324
NEWARK AND SHERWOOD DISTRICT COUNCIL,POLICY & FINANCE,G450,AGENCY STAFF,13/05/2022,392328,548.4,AMBITIONS PERSONNEL LTD,105324
NEWARK AND SHERWOOD DISTRICT COUNCIL,ECONOMIC DEVELOPMENT,G420,CONTRACTUAL SERVICES,10/06/2022,394314,548.1,NEWARK SECURITY SERVICES LTD,100371
NEWARK AND SHERWOOD DISTRICT COUNCIL,POLICY & FINANCE,G450,COURSE FEES,22/04/2022,390846,545,LOCAL GOVERNMENT ASSOCIATION,100283
NEWARK AND SHERWOOD DISTRICT COUNCIL,POLICY & FINANCE,G450,COURSE FEES,13/05/2022,392210,545,LOCAL GOVERNMENT ASSOCIATION,100283
NEWARK AND SHERWOOD DISTRICT COUNCIL,HOUSING REVENUE ACCOUNT,G410,CONTRACTUAL SERVICES,17/06/2022,394861,542.5,P J LILLEY LTD,100418
NEWARK AND SHERWOOD DISTRICT COUNCIL,HOUSING REVENUE ACCOUNT,G410,MATERIALS,06/05/2022,391885,541.67,NEW CENTURY WINDOWS LTD,107541
NEWARK AND SHERWOOD DISTRICT COUNCIL,HOUSING REVENUE ACCOUNT,G410,CONTRACTUAL SERVICES,20/05/2022,393126,540,P J LILLEY LTD,100418
NEWARK AND SHERWOOD DISTRICT COUNCIL,HOUSING REVENUE ACCOUNT,G410,CONTRACTUAL SERVICES,30/06/2022,396053,537.35,J WRIGHT ROOFING LTD,105753
NEWARK AND SHERWOOD DISTRICT COUNCIL,ECONOMIC DEVELOPMENT,G420,CONTRACTUAL SERVICES,06/05/2022,391810,535.05,NEWARK SECURITY SERVICES LTD,100371
NEWARK AND SHERWOOD DISTRICT COUNCIL,HOUSING REVENUE ACCOUNT,G410,MATERIALS,30/06/2022,395967,533.76,PTS - CITY PLUMBING SUPPLIES LTD,107157
NEWARK AND SHERWOOD DISTRICT COUNCIL,ECONOMIC DEVELOPMENT,G420,TELEPHONES,08/04/2022,389917,533.11,VIRGIN MEDIA BUSINESS,100593
NEWARK AND SHERWOOD DISTRICT COUNCIL,LEISURE & ENVIRONMENT,G440,PETROL AND DIESEL,29/04/2022,391304,528.72,UK FUELS LTD,103594
NEWARK AND SHERWOOD DISTRICT COUNCIL,HOUSING REVENUE ACCOUNT,G410,REFRESHMENTS AND CATERING,20/05/2022,392891,528.25,BRAKE BROS LTD,106562
NEWARK AND SHERWOOD DISTRICT COUNCIL,HOUSING REVENUE ACCOUNT,G410,LICENCES,31/05/2022,392369,526.65,MOTION PICTURE LICENSING COMPANY,106663
NEWARK AND SHERWOOD DISTRICT COUNCIL,POLICY & FINANCE,G450,CTAX NSDC PARISH PRECEPT PYMTS,22/04/2022,390670,525,CROMWELL PARISH MEETING,102442
NEWARK AND SHERWOOD DISTRICT COUNCIL,ECONOMIC DEVELOPMENT,G420,OTHER EQUIPMENT AND TOOLS,08/04/2022,389447,525,JCP POWER & DATA CONTRACTORS LTD,100243
NEWARK AND SHERWOOD DISTRICT COUNCIL,ECONOMIC DEVELOPMENT,G420,LICENSED BAR PROVISIONS,31/05/2022,394008,524.61,BOOKER,104728
NEWARK AND SHERWOOD DISTRICT COUNCIL,POLICY & FINANCE,G450,AGENCY STAFF,24/06/2022,395379,522.5,SELLICK PARTNERSHIP LTD,106780
NEWARK AND SHERWOOD DISTRICT COUNCIL,ECONOMIC DEVELOPMENT,G420,CLEANING CONTRACT,24/06/2022,395486,519.44,CRYSTAL CLEAN SERVICE LTD,106324
NEWARK AND SHERWOOD DISTRICT COUNCIL,ECONOMIC DEVELOPMENT,G420,LICENSED BAR PROVISIONS,31/05/2022,393996,519.21,PILGRIM FOODSERVICE LIMITED,107367
NEWARK AND SHERWOOD DISTRICT COUNCIL,ECONOMIC DEVELOPMENT,G420,CONTRACTUAL SERVICES,06/05/2022,391729,519.17,MODES USERS ASSOCIATION,102913
NEWARK AND SHERWOOD DISTRICT COUNCIL,HOUSING REVENUE ACCOUNT,G410,MATERIALS,17/06/2022,394892,518.12,PTS - CITY PLUMBING SUPPLIES LTD,107157
NEWARK AND SHERWOOD DISTRICT COUNCIL,LEISURE & ENVIRONMENT,G440,MATERIALS,27/05/2022,393418,517.41,TERBERG MATEC UK LTD,100541
NEWARK AND SHERWOOD DISTRICT COUNCIL,HOUSING REVENUE ACCOUNT,G410,REFRESHMENTS AND CATERING,20/05/2022,393041,517.06,BRAKE BROS LTD,106562
NEWARK AND SHERWOOD DISTRICT COUNCIL,ECONOMIC DEVELOPMENT,G420,CONTRACTUAL SERVICES,22/04/2022,390803,515.2,METRIC GROUP LTD,100306
NEWARK AND SHERWOOD DISTRICT COUNCIL,LEISURE & ENVIRONMENT,G440,PROFESSIONAL SERVICES,08/04/2022,389732,515,CHARTERED INSTITUTE OF ENVIRONMENTAL HEALTH,106119
NEWARK AND SHERWOOD DISTRICT COUNCIL,POLICY & FINANCE,G450,PREMISES SECURITY,08/04/2022,389455,514.08,WATCH-IT SECURITY SERVICES LTD,103618
NEWARK AND SHERWOOD DISTRICT COUNCIL,ECONOMIC DEVELOPMENT,G420,ELECTRICITY,20/05/2022,392512,513.85,EDF ENERGY 1 LTD,101140
NEWARK AND SHERWOOD DISTRICT COUNCIL,HOUSING REVENUE ACCOUNT,G410,MATERIALS,20/05/2022,393187,513.36,PTS - CITY PLUMBING SUPPLIES LTD,107157
NEWARK AND SHERWOOD DISTRICT COUNCIL,HOUSING REVENUE ACCOUNT,G410,CONTRACTUAL SERVICES,17/06/2022,394854,513,P J LILLEY LTD,100418
NEWARK AND SHERWOOD DISTRICT COUNCIL,HOUSING REVENUE ACCOUNT,G410,MATERIALS,22/04/2022,390701,512.17,PTS - CITY PLUMBING SUPPLIES LTD,107157
NEWARK AND SHERWOOD DISTRICT COUNCIL,HOUSING REVENUE ACCOUNT,G410,MATERIALS,20/05/2022,392938,511.6,ARDEN WINCH & CO LTD,102291
NEWARK AND SHERWOOD DISTRICT COUNCIL,HOUSING REVENUE ACCOUNT,G410,TELEPHONES,27/05/2022,393960,510.21,STL BUSINESS COMMUNICATIONS LIMITED,106373
NEWARK AND SHERWOOD DISTRICT COUNCIL,LEISURE & ENVIRONMENT,G440,OFFICE EQUIPMENT PURCHASE,24/06/2022,393349,508,ANV MEASUREMENT SYSTEMS,100944
NEWARK AND SHERWOOD DISTRICT COUNCIL,HOUSING REVENUE ACCOUNT,G410,CONTRACTUAL SERVICES,20/05/2022,393206,507.84,NOVUS PROPERTY SOLUTIONS LTD,107362
NEWARK AND SHERWOOD DISTRICT COUNCIL,HOUSING REVENUE ACCOUNT,G410,MATERIALS,24/06/2022,395473,507.42,PREMIERE KITCHENS,107197
NEWARK AND SHERWOOD DISTRICT COUNCIL,HOUSING REVENUE ACCOUNT,G410,CONTRACTUAL SERVICES,30/06/2022,395973,506.33,PHS GROUP PLC,100426
NEWARK AND SHERWOOD DISTRICT COUNCIL,CAPITAL,G997,CONSTRUCTION,29/04/2022,391352,506.16,HARMONY FIRE LTD,107179
NEWARK AND SHERWOOD DISTRICT COUNCIL,POLICY & FINANCE,G450,COMPUTER SOFTWARE,29/04/2022,389868,502.57,ROWANWOOD PROFESSIONAL SERVICES LTD,107373
NEWARK AND SHERWOOD DISTRICT COUNCIL,HOUSING REVENUE ACCOUNT,G410,MATERIALS,13/05/2022,392459,501.74,HOWDEN JOINERY LTD,107418
NEWARK AND SHERWOOD DISTRICT COUNCIL,HOUSING REVENUE ACCOUNT,G410,PROFESSIONAL SERVICES,22/04/2022,390745,501.36,RESTORE RECORDS MANAGEMENT,107555
NEWARK AND SHERWOOD DISTRICT COUNCIL,ECONOMIC DEVELOPMENT,G420,CONTRACTUAL SERVICES,08/04/2022,389694,500.19,DERRY BUILDING SERVICES LTD,100125
NEWARK AND SHERWOOD DISTRICT COUNCIL,LEISURE & ENVIRONMENT,G440,ARTS DEVELOPMENT & EVENTS,17/06/2022,394999,500,DUKERIES THIRD AGE GROUP,107492
NEWARK AND SHERWOOD DISTRICT COUNCIL,POLICY & FINANCE,G450,CLEANING MATERIALS,13/05/2022,392470,500,ATLAS FACILITIES MANAGEMENT LIMITED,106088
NEWARK AND SHERWOOD DISTRICT COUNCIL,CAPITAL,G997,CONSTRUCTION,14/04/2022,389662,500,BSP CONSULTING,104667
NEWARK AND SHERWOOD DISTRICT COUNCIL,CAPITAL,G997,CONSTRUCTION,06/05/2022,391983,500,RG+P LIMITED,105755
NEWARK AND SHERWOOD DISTRICT COUNCIL,CAPITAL,G997,CONSTRUCTION,10/06/2022,394440,500,STUDIO G ASSOCIATES,104539
NEWARK AND SHERWOOD DISTRICT COUNCIL,HOMES & COMMUNITIES,G430,CONTRACTUAL SERVICES,06/05/2022,391835,500,OLLERTON & BOUGHTON SCOUT & GUIDES,107545
NEWARK AND SHERWOOD DISTRICT COUNCIL,HOMES & COMMUNITIES,G430,CONTRACTUAL SERVICES,06/05/2022,391834,500,OLLERTON VILLAGE JUBILEE COMMITTEE,107546
NEWARK AND SHERWOOD DISTRICT COUNCIL,ECONOMIC DEVELOPMENT,G420,EMPLOYMENT & SKILLS,08/04/2022,389780,500,NOTTINGHAMSHIRE IN FOCUS LTD,103313
NEWARK AND SHERWOOD DISTRICT COUNCIL,ECONOMIC DEVELOPMENT,G420,GAS,06/05/2022,391785,500,TOTAL ENERGIES GAS & POWER LTD,107289
NEWARK AND SHERWOOD DISTRICT COUNCIL,POLICY & FINANCE,G450,INTERNAL TRAINING,14/04/2022,390426,500,NEWARK COMMUNITY FIRST AID,105917
NEWARK AND SHERWOOD DISTRICT COUNCIL,HOMES & COMMUNITIES,G430,MISCELLANEOUS EXPENSES,20/05/2022,393174,500,NEWARK & SHERWOOD COMMUNITY HUB,106310
NEWARK AND SHERWOOD DISTRICT COUNCIL,HOUSING REVENUE ACCOUNT,G410,NEIGHBOURHOOD IMPROVEMENTS,10/06/2022,389894,500,ACADEMY SYSTEMS (UK)  LTD,102239
NEWARK AND SHERWOOD DISTRICT COUNCIL,ECONOMIC DEVELOPMENT,G420,PROF SERV - EXTERNAL CONTRACTS,14/04/2022,390447,500,FOXSTONE FORESTRY LTD,106901
NEWARK AND SHERWOOD DISTRICT COUNCIL,ECONOMIC DEVELOPMENT,G420,PROF SERV - EXTERNAL CONTRACTS,17/06/2022,394765,500,ROBERT MARSHALL & SONS LTD,105315
NEWARK AND SHERWOOD DISTRICT COUNCIL,ECONOMIC DEVELOPMENT,G420,PROFESSIONAL SERVICES,06/05/2022,391730,500,REDACTED PERSONAL DATA,107496
NEWARK AND SHERWOOD DISTRICT COUNCIL,ECONOMIC DEVELOPMENT,G420,PROFESSIONAL SERVICES,08/04/2022,389709,500,VIA EAST MIDLANDS LTD,105795
NEWARK AND SHERWOOD DISTRICT COUNCIL,ECONOMIC DEVELOPMENT,G420,PROMOTION OF EVENTS,27/05/2022,392326,500,NOTTINGHAMSHIRE IN FOCUS LTD,103313
NEWARK AND SHERWOOD DISTRICT COUNCIL,HOMES & COMMUNITIES,G430,PROMOTION OF EVENTS,08/04/2022,389882,500,CLIPSTONE PARISH COUNCIL,100097
NEWARK AND SHERWOOD DISTRICT COUNCIL,POLICY & FINANCE,G450,PROMOTION OF EVENTS,08/04/2022,389801,500,EDWINSTOWE PARISH COUNCIL,100143
NEWARK AND SHERWOOD DISTRICT COUNCIL,POLICY & FINANCE,G450,REPAIRS AND MAINTENANCE,14/04/2022,390357,500,KELTRUCK LIMITED,100957
NEWARK AND SHERWOOD DISTRICT COUNCIL,HOUSING REVENUE ACCOUNT,G410,MATERIALS,22/04/2022,390682,499.95,CITY ELECTRICAL FACTORS LTD,100091
NEWARK AND SHERWOOD DISTRICT COUNCIL,LEISURE & ENVIRONMENT,G440,OTHER EQUIPMENT MAINTENANCE,08/04/2022,389624,499.84,ARCO LIMITED,102144
NEWARK AND SHERWOOD DISTRICT COUNCIL,POLICY & FINANCE,G450,ELECTRICITY,06/05/2022,391799,499.16,EDF ENERGY 1 LTD,101140
NEWARK AND SHERWOOD DISTRICT COUNCIL,HOUSING REVENUE ACCOUNT,G410,TENANT INVOLVEMENT,08/04/2022,389712,497.4,GALA TENT LTD,106903
NEWARK AND SHERWOOD DISTRICT COUNCIL,HOUSING REVENUE ACCOUNT,G410,CATERING EQUIPMENT,10/06/2022,394344,496.25,FOX CATERING EQUIPMENT,106187
NEWARK AND SHERWOOD DISTRICT COUNCIL,HOUSING REVENUE ACCOUNT,G410,AGENCY STAFF,29/04/2022,388955,496.2,FULL CIRCLE CATERING,107315
NEWARK AND SHERWOOD DISTRICT COUNCIL,HOUSING REVENUE ACCOUNT,G410,AGENCY STAFF,10/06/2022,394413,495,SELLICK PARTNERSHIP LTD,106780
NEWARK AND SHERWOOD DISTRICT COUNCIL,CAPITAL,G997,CONSTRUCTION,13/05/2022,392270,495,GPR CONSTRUCTION LTD,100190
NEWARK AND SHERWOOD DISTRICT COUNCIL,HOUSING REVENUE ACCOUNT,G410,CONTRACTUAL SERVICES,13/05/2022,392410,495,CERTSURE LLP,106625
NEWARK AND SHERWOOD DISTRICT COUNCIL,HOUSING REVENUE ACCOUNT,G410,CONTRACTUAL SERVICES,13/05/2022,392245,495,SELLICK PARTNERSHIP LTD,106780
NEWARK AND SHERWOOD DISTRICT COUNCIL,HOUSING REVENUE ACCOUNT,G410,CONTRACTUAL SERVICES,24/06/2022,395492,489.85,T & S HEATING LTD,105748
NEWARK AND SHERWOOD DISTRICT COUNCIL,HOUSING REVENUE ACCOUNT,G410,CONTRACTUAL SERVICES,20/05/2022,392802,488.28,J WRIGHT ROOFING LTD,105753
NEWARK AND SHERWOOD DISTRICT COUNCIL,CAPITAL,G997,CONSTRUCTION,24/06/2022,389623,487.5,WILLIAM SAUNDERS PARTNERSHIP LLP,107133
NEWARK AND SHERWOOD DISTRICT COUNCIL,ECONOMIC DEVELOPMENT,G420,ELECTRICITY,29/04/2022,391395,487.45,EDF ENERGY 1 LTD,101140
NEWARK AND SHERWOOD DISTRICT COUNCIL,POLICY & FINANCE,G450,WORLDPAY PROCESS CHARGES,23/05/2022,393370,487.26,WORLDPAY,105893
NEWARK AND SHERWOOD DISTRICT COUNCIL,HOUSING REVENUE ACCOUNT,G410,CONTRACTUAL SERVICES,10/06/2022,394410,487.25,RENUVO LIMITED,107076
NEWARK AND SHERWOOD DISTRICT COUNCIL,LEISURE & ENVIRONMENT,G440,PROFESSIONAL SERVICES,08/04/2022,389433,486,BROXAP LTD,101567
NEWARK AND SHERWOOD DISTRICT COUNCIL,ECONOMIC DEVELOPMENT,G420,REPAIRS AND MAINTENANCE,10/06/2022,394261,486,ALLIANCE PAINTING LTD,106886
NEWARK AND SHERWOOD DISTRICT COUNCIL,ECONOMIC DEVELOPMENT,G420,CONTRACTUAL SERVICES,08/04/2022,389656,485.55,NEWARK SECURITY SERVICES LTD,100371
NEWARK AND SHERWOOD DISTRICT COUNCIL,ECONOMIC DEVELOPMENT,G420,OTHER EQUIPMENT AND TOOLS,08/04/2022,389446,485,JCP POWER & DATA CONTRACTORS LTD,100243
NEWARK AND SHERWOOD DISTRICT COUNCIL,POLICY & FINANCE,G450,ELECTRICITY,20/05/2022,392677,483.52,EDF ENERGY 1 LTD,101140
NEWARK AND SHERWOOD DISTRICT COUNCIL,POLICY & FINANCE,G450,WORLDPAY PROCESS CHARGES,23/06/2022,395565,482.28,WORLDPAY,105893
NEWARK AND SHERWOOD DISTRICT COUNCIL,HOUSING REVENUE ACCOUNT,G410,AGENCY STAFF,06/05/2022,391933,482.16,FULL CIRCLE CATERING,107315
NEWARK AND SHERWOOD DISTRICT COUNCIL,HOUSING REVENUE ACCOUNT,G410,CONTRACTUAL SERVICES,24/06/2022,395513,481.41,T & S HEATING LTD,105748
NEWARK AND SHERWOOD DISTRICT COUNCIL,HOUSING REVENUE ACCOUNT,G410,CONTRACTUAL SERVICES,17/06/2022,394846,480,UNIVERSAL PEST CONTROL (MIDLANDS) LTD,107568
NEWARK AND SHERWOOD DISTRICT COUNCIL,HOUSING REVENUE ACCOUNT,G410,MATERIALS,13/05/2022,392391,480,JWL (ARCHITECTURAL IRONMONGERS) LTD,106647
NEWARK AND SHERWOOD DISTRICT COUNCIL,HOUSING REVENUE ACCOUNT,G410,MATERIALS,17/06/2022,394830,480,JWL (ARCHITECTURAL IRONMONGERS) LTD,106647
NEWARK AND SHERWOOD DISTRICT COUNCIL,ECONOMIC DEVELOPMENT,G420,PROFESSIONAL SERVICES,08/04/2022,389942,475,FOCUS CONSULTANTS 2010 LLP,106253
NEWARK AND SHERWOOD DISTRICT COUNCIL,HOUSING REVENUE ACCOUNT,G410,CONTRACTUAL SERVICES,20/05/2022,393036,474,GAINSBOROUGH HEALTHCARE GROU,107503
NEWARK AND SHERWOOD DISTRICT COUNCIL,HOUSING REVENUE ACCOUNT,G410,CONTRACTUAL SERVICES,20/05/2022,393037,474,GAINSBOROUGH HEALTHCARE GROU,107503
NEWARK AND SHERWOOD DISTRICT COUNCIL,LEISURE & ENVIRONMENT,G440,MATERIALS,13/05/2022,392160,470.52,DENNIS EAGLE LTD,100797
NEWARK AND SHERWOOD DISTRICT COUNCIL,ECONOMIC DEVELOPMENT,G420,CONTRACTUAL SERVICES,31/05/2022,394010,470,AES CONTROL SYSTEMS,106536
NEWARK AND SHERWOOD DISTRICT COUNCIL,HOUSING REVENUE ACCOUNT,G410,MATERIALS,22/04/2022,390760,469.99,PTS - CITY PLUMBING SUPPLIES LTD,107157
NEWARK AND SHERWOOD DISTRICT COUNCIL,HOUSING REVENUE ACCOUNT,G410,CONTRACTUAL SERVICES,30/06/2022,395878,469.94,DCR ELECTRICAL LTD,101799
NEWARK AND SHERWOOD DISTRICT COUNCIL,HOUSING REVENUE ACCOUNT,G410,AGENCY STAFF,08/04/2022,389470,468,SELLICK PARTNERSHIP LTD,106780
NEWARK AND SHERWOOD DISTRICT COUNCIL,ECONOMIC DEVELOPMENT,G420,CONTRACTUAL SERVICES,31/05/2022,393486,465,CERBERUS SERVICES LTD,106813
NEWARK AND SHERWOOD DISTRICT COUNCIL,HOUSING REVENUE ACCOUNT,G410,CONTRACTUAL SERVICES,30/06/2022,395880,463.38,DCR ELECTRICAL LTD,101799
NEWARK AND SHERWOOD DISTRICT COUNCIL,ECONOMIC DEVELOPMENT,G420,REFRESHMENTS AND CATERING,24/06/2022,395361,463.21,BOOKER,104728
NEWARK AND SHERWOOD DISTRICT COUNCIL,HOUSING REVENUE ACCOUNT,G410,CONTRACTUAL SERVICES,22/04/2022,390546,463,SPS DOORGUARD LTD,102135
NEWARK AND SHERWOOD DISTRICT COUNCIL,HOUSING REVENUE ACCOUNT,G410,CONTRACTUAL SERVICES,22/04/2022,390588,462.26,METRO ROD LTD,106655
NEWARK AND SHERWOOD DISTRICT COUNCIL,HOUSING REVENUE ACCOUNT,G410,CONTRACTUAL SERVICES,20/05/2022,392863,462.26,METRO ROD LTD,106655
NEWARK AND SHERWOOD DISTRICT COUNCIL,HOUSING REVENUE ACCOUNT,G410,CONTRACTUAL SERVICES,06/05/2022,391918,462.15,T & S HEATING LTD,105748
NEWARK AND SHERWOOD DISTRICT COUNCIL,POLICY & FINANCE,G450,REPAIRS AND MAINTENANCE,22/04/2022,389996,462,TVR HIGH RISE CONSERVATION LTD,107163
NEWARK AND SHERWOOD DISTRICT COUNCIL,LEISURE & ENVIRONMENT,G440,OTHER EQUIPMENT AND TOOLS,13/05/2022,392189,460.4,NOTTINGHAM CITY COUNCIL,100390
NEWARK AND SHERWOOD DISTRICT COUNCIL,ECONOMIC DEVELOPMENT,G420,REFRESHMENTS AND CATERING,30/06/2022,395804,459.16,PILGRIM FOODSERVICE LIMITED,107367
NEWARK AND SHERWOOD DISTRICT COUNCIL,CAPITAL,G997,CONSTRUCTION,24/06/2022,394750,458.86,COOPER PLUMBING,100110
NEWARK AND SHERWOOD DISTRICT COUNCIL,HOUSING REVENUE ACCOUNT,G410,CONTRACTUAL SERVICES,06/05/2022,391919,457.18,T & S HEATING LTD,105748
NEWARK AND SHERWOOD DISTRICT COUNCIL,LEISURE & ENVIRONMENT,G440,MATERIALS,08/04/2022,389935,455.26,DENNIS EAGLE LTD,100797
NEWARK AND SHERWOOD DISTRICT COUNCIL,ECONOMIC DEVELOPMENT,G420,CONTRACTUAL SERVICES,08/04/2022,389550,455,PREMIER PRINT & PROMOTIONS LTD,107553
NEWARK AND SHERWOOD DISTRICT COUNCIL,HOUSING REVENUE ACCOUNT,G410,MATERIALS,30/06/2022,395975,452.89,PTS - CITY PLUMBING SUPPLIES LTD,107157
NEWARK AND SHERWOOD DISTRICT COUNCIL,CAPITAL,G997,CONSTRUCTION,13/05/2022,392281,450,STUDIO G ASSOCIATES,104539
NEWARK AND SHERWOOD DISTRICT COUNCIL,LEISURE & ENVIRONMENT,G440,MATERIALS,10/06/2022,394281,450,KELTRUCK LIMITED,100957
NEWARK AND SHERWOOD DISTRICT COUNCIL,ECONOMIC DEVELOPMENT,G420,REPAIRS AND MAINTENANCE,17/06/2022,394900,450,LAFFEYS LTD,105248
NEWARK AND SHERWOOD DISTRICT COUNCIL,ECONOMIC DEVELOPMENT,G420,ADVERTISING,31/05/2022,394094,448.88,TMP UK LTD,102103
NEWARK AND SHERWOOD DISTRICT COUNCIL,HOUSING REVENUE ACCOUNT,G410,CONTRACTUAL SERVICES,13/05/2022,392380,448,SPS DOORGUARD LTD,102135
NEWARK AND SHERWOOD DISTRICT COUNCIL,LEISURE & ENVIRONMENT,G440,MATERIALS,24/06/2022,395280,447.3,RH COMMERCIAL VEHICLES,107463
NEWARK AND SHERWOOD DISTRICT COUNCIL,POLICY & FINANCE,G450,EQUIPMENT REPAIRS & RENEWALS,10/06/2022,393356,446.1,STORM TECHNOLOGIES LTD,105838
NEWARK AND SHERWOOD DISTRICT COUNCIL,POLICY & FINANCE,G450,PROFESSIONAL SERVICES,08/04/2022,389704,446,LEGAL RECOVERIES & COLLECTIONS LTD,107513
NEWARK AND SHERWOOD DISTRICT COUNCIL,POLICY & FINANCE,G450,PROFESSIONAL SERVICES,08/04/2022,389658,443,NOTTINGHAMSHIRE COUNTY COUNCIL,100393
NEWARK AND SHERWOOD DISTRICT COUNCIL,HOUSING REVENUE ACCOUNT,G410,AGENCY STAFF,10/06/2022,394348,442.45,FULL CIRCLE CATERING,107315
NEWARK AND SHERWOOD DISTRICT COUNCIL,LEISURE & ENVIRONMENT,G440,PROMOTION OF EVENTS,27/05/2022,393474,441,THE JOKER ENTERTAINMENT,101335
NEWARK AND SHERWOOD DISTRICT COUNCIL,ECONOMIC DEVELOPMENT,G420,ELECTRICITY,24/06/2022,395433,438.3,OPUS ENERGY LTD,104816
NEWARK AND SHERWOOD DISTRICT COUNCIL,POLICY & FINANCE,G450,COMPUTER SOFTWARE,08/04/2022,389638,437.4,SPECIALIST COMPUTER CENTRES PLC,100773
NEWARK AND SHERWOOD DISTRICT COUNCIL,HOUSING REVENUE ACCOUNT,G410,MATERIALS,29/04/2022,390781,437.15,PREMIERE KITCHENS,107197
NEWARK AND SHERWOOD DISTRICT COUNCIL,HOUSING REVENUE ACCOUNT,G410,CONTRACTUAL SERVICES,17/06/2022,394794,433.85,T & S HEATING LTD,105748
NEWARK AND SHERWOOD DISTRICT COUNCIL,ECONOMIC DEVELOPMENT,G420,CONTRACTUAL SERVICES,27/05/2022,393694,433.29,INITIAL WASHROOM HYGIENE,104769
NEWARK AND SHERWOOD DISTRICT COUNCIL,HOUSING REVENUE ACCOUNT,G410,MATERIALS,17/06/2022,394842,431.24,PTS - CITY PLUMBING SUPPLIES LTD,107157
NEWARK AND SHERWOOD DISTRICT COUNCIL,LEISURE & ENVIRONMENT,G440,MATERIALS,29/04/2022,391301,430.31,DENNIS EAGLE LTD,100797
NEWARK AND SHERWOOD DISTRICT COUNCIL,LEISURE & ENVIRONMENT,G440,CONTRACTUAL SERVICES,06/05/2022,390431,427.5,ONE STOP PROMOTIONS  LTD,107547
NEWARK AND SHERWOOD DISTRICT COUNCIL,POLICY & FINANCE,G450,HYBRID MAIL,14/04/2022,390450,426.97,NOTTINGHAMSHIRE COUNTY COUNCIL,100393
NEWARK AND SHERWOOD DISTRICT COUNCIL,HOUSING REVENUE ACCOUNT,G410,CONTRACTUAL SERVICES,17/06/2022,394860,426.25,P J LILLEY LTD,100418
NEWARK AND SHERWOOD DISTRICT COUNCIL,CAPITAL,G997,CONSTRUCTION,10/06/2022,394439,425,STUDIO G ASSOCIATES,104539
NEWARK AND SHERWOOD DISTRICT COUNCIL,HOMES & COMMUNITIES,G430,PREVENTION FUND,06/05/2022,391248,425,HOUSING REVIEWS LTD,107506
NEWARK AND SHERWOOD DISTRICT COUNCIL,POLICY & FINANCE,G450,PROFESSIONAL SERVICES,08/04/2022,389893,425,BDA SURVEYING LTD,106961
NEWARK AND SHERWOOD DISTRICT COUNCIL,POLICY & FINANCE,G450,PROFESSIONAL SERVICES,13/05/2022,392236,425,INFORM CPI LIMITED,104513
NEWARK AND SHERWOOD DISTRICT COUNCIL,POLICY & FINANCE,G450,REPAIRS AND MAINTENANCE,29/04/2022,391256,425,GREENDAY ENERGY LTD,106825
NEWARK AND SHERWOOD DISTRICT COUNCIL,HOUSING REVENUE ACCOUNT,G410,PREMISES SECURITY,06/05/2022,391872,424,SPS DOORGUARD LTD,102135
NEWARK AND SHERWOOD DISTRICT COUNCIL,LEISURE & ENVIRONMENT,G440,CLOTHING AND UNIFORMS,08/04/2022,388847,421.88,ARCO LIMITED,102144
NEWARK AND SHERWOOD DISTRICT COUNCIL,LEISURE & ENVIRONMENT,G440,MATERIALS,10/06/2022,393729,418.84,DENNIS EAGLE LTD,100797
NEWARK AND SHERWOOD DISTRICT COUNCIL,ECONOMIC DEVELOPMENT,G420,CONTRACTUAL SERVICES,10/06/2022,394435,417.5,CERBERUS SERVICES LTD,106813
